{"text_format":"1","workbook":"xlsx","n_sheets":13,"sheets":["A印刷","A出荷指示書","F印刷","F出荷指示書","仕入印刷","仕入出荷指示書","修理印刷","修理出荷指示書","出張作業","対策書","新規登録","変更印刷","日付取得"],"not_rendered":{"charts":0,"images":1,"macros":1,"external_links":1,"defined_names":12,"comments":0,"pivot_tables":0},"unopened":[],"bounds":{"document_bytes":16777216,"sheet_cells":100000,"rows_first":2000,"rows_last":500,"rows_between":2000,"halvings":0,"cell_chars":16384,"cell_head_chars":4096},"cells_cut":0,"cells_raw":0,"read":"whole","date_system":"1900"}

{"sheet":"A印刷","index":0,"n_rows":205,"n_cols":42,"rows_kept":205,"cut":false,"hidden":false,"merged":[[8,41,8,45],[78,29,80,34],[83,29,84,34],[87,35,87,38],[88,36,88,37],[83,35,84,38],[86,31,89,34],[83,5,84,8],[82,17,82,24],[83,21,84,24],[85,5,85,24],[83,15,84,17],[83,18,84,20],[86,5,86,24],[87,5,88,24],[78,35,80,38],[94,31,94,38],[110,35,110,38],[111,29,112,34],[115,35,115,38],[106,35,108,38],[100,29,103,38],[100,26,103,28],[82,29,82,34],[82,35,82,38],[110,29,110,34],[104,5,104,38],[105,35,105,38],[100,5,103,6],[107,9,108,28],[106,29,108,34],[105,29,105,34],[82,9,82,12],[82,13,82,16],[91,35,91,38],[90,9,90,38],[98,10,98,15],[107,5,108,8],[97,16,98,26],[111,15,112,17],[43,4,61,4],[72,4,90,4],[72,3,89,3],[69,5,69,8],[69,16,70,26],[70,5,70,7],[43,11,44,12],[41,34,41,36],[70,34,70,36],[72,5,75,6],[72,7,75,10],[72,11,73,12],[79,5,80,8],[79,9,80,28],[82,5,82,8],[86,27,89,30],[72,13,75,15],[83,9,84,11],[83,12,84,14],[74,11,75,12],[59,36,59,37],[49,29,51,34],[54,15,55,17],[90,5,90,8],[17,30,18,33],[17,5,20,7],[17,8,20,23],[15,34,16,38],[17,34,18,38],[19,30,20,33],[19,34,20,38],[21,34,22,38],[28,37,28,38],[15,30,16,33],[22,8,24,11],[22,12,24,15],[14,8,16,23],[18,25,20,28],[21,25,23,28],[24,25,25,28],[25,20,27,23],[24,30,25,33],[21,30,22,33],[22,16,24,23],[24,34,25,35],[24,36,25,37],[25,11,27,13],[25,14,27,16],[2,5,2,8],[5,9,6,12],[2,16,3,26],[5,13,6,17],[5,18,6,21],[4,15,4,38],[3,10,3,15],[5,34,5,36],[5,37,5,38],[2,27,3,29],[5,23,6,26],[5,27,6,30],[5,31,5,32],[39,16,39,26],[25,5,27,7],[28,34,28,36],[33,36,34,37],[32,35,32,38],[30,31,35,34],[25,17,27,19],[29,31,29,33],[29,34,29,35],[34,22,35,23],[36,31,36,38],[5,3,32,3],[5,4,34,4],[5,5,6,8],[14,5,16,7],[7,5,9,7],[7,8,9,23],[13,5,13,38],[27,37,27,38],[14,24,14,29],[15,24,16,29],[7,34,9,38],[10,33,12,33],[10,34,12,38],[10,8,12,23],[14,34,14,38],[10,5,12,7],[10,24,12,25],[10,26,12,32],[14,30,14,33],[22,5,24,7],[25,8,27,10],[30,5,31,23],[28,5,29,23],[32,5,33,23],[7,33,9,33],[7,24,9,25],[7,26,9,32],[53,31,53,34],[54,31,55,34],[53,27,53,30],[54,27,55,30],[54,9,55,11],[54,12,55,14],[34,24,35,26],[39,27,39,30],[26,25,28,28],[36,5,36,21],[39,10,39,15],[50,5,51,8],[40,27,41,29],[43,5,46,6],[43,29,46,38],[43,7,46,10],[43,16,46,25],[41,5,41,7],[40,5,40,8],[30,27,35,30],[27,34,27,36],[48,35,48,38],[41,37,41,38],[41,10,41,15],[40,16,41,26],[53,9,53,12],[53,13,53,16],[53,17,53,24],[43,26,46,28],[54,21,55,24],[48,9,49,28],[48,29,48,34],[54,18,55,20],[43,3,60,3],[100,3,117,3],[100,4,117,4],[105,9,106,28],[105,5,106,8],[102,11,103,12],[43,13,46,15],[50,9,51,28],[100,7,103,10],[53,5,53,8],[100,11,101,12],[97,5,97,8],[60,5,60,26],[98,5,98,7],[48,5,49,8],[45,11,46,12],[47,5,47,38],[57,27,60,30],[98,37,98,38],[58,35,58,38],[97,27,98,30],[58,5,59,24],[110,13,110,16],[110,17,110,24],[72,26,75,28],[54,5,55,8],[56,5,56,24],[49,35,51,38],[57,5,57,24],[53,35,53,38],[54,35,55,38],[57,31,60,34],[72,29,75,38],[69,27,70,30],[61,5,61,8],[61,9,61,38],[62,35,62,38],[65,31,65,38],[70,37,70,38],[70,10,70,15],[72,16,75,25],[76,5,76,38],[77,5,78,8],[77,9,78,28],[77,29,77,34],[77,35,77,38],[149,31,149,38],[127,3,144,3],[127,4,144,4],[127,5,130,6],[127,7,130,10],[127,11,128,12],[127,13,130,15],[132,35,132,38],[133,29,135,34],[133,35,135,38],[134,5,135,8],[141,27,144,30],[141,31,144,34],[138,29,139,34],[138,35,139,38],[127,16,130,25],[127,26,130,28],[134,9,135,28],[137,5,137,8],[137,29,137,34],[127,29,130,38],[144,5,144,26],[143,36,143,37],[137,35,137,38],[137,9,137,12],[137,13,137,16],[137,17,137,24],[118,5,118,21],[138,5,139,8],[142,35,142,38],[168,5,168,24],[169,27,172,30],[111,9,112,11],[111,12,112,14],[111,18,112,20],[111,5,112,8],[111,21,112,24],[113,5,113,24],[124,27,125,31],[172,22,172,23],[172,24,172,26],[132,9,133,28],[114,27,117,30],[132,29,132,34],[115,5,116,24],[118,31,118,38],[114,31,117,34],[116,36,116,37],[117,22,117,23],[117,24,117,26],[114,5,114,24],[153,5,153,7],[153,10,153,15],[153,34,153,36],[187,3,204,3],[187,4,204,4],[183,5,186,6],[183,7,186,10],[183,11,184,12],[183,13,186,15],[183,16,186,25],[183,26,186,28],[180,27,181,30],[180,5,180,8],[180,16,181,26],[181,5,181,7],[181,10,181,15],[194,31,195,34],[194,15,195,17],[194,18,195,20],[194,35,195,38],[193,5,193,8],[199,36,199,37],[200,5,200,26],[197,27,200,30],[197,31,200,34],[198,35,198,38],[196,5,196,24],[197,5,197,24],[198,5,199,24],[194,5,195,8],[194,21,195,24],[194,9,195,11],[194,12,195,14],[181,34,181,36],[193,9,193,12],[193,13,193,16],[193,17,193,24],[193,35,193,38],[181,37,181,38],[193,31,193,34],[183,29,186,38],[185,11,186,12],[187,5,187,38],[188,5,189,8],[188,9,189,28],[188,29,188,34],[188,35,188,38],[189,29,191,34],[189,35,191,38],[190,5,191,8],[190,9,191,28],[98,34,98,36],[100,13,103,15],[129,11,130,12],[131,5,131,38],[132,5,133,8],[100,16,103,25],[110,5,110,8],[110,9,110,12],[111,35,112,38],[153,37,153,38],[166,12,167,14],[166,15,167,17],[166,18,167,20],[166,21,167,24],[166,29,167,34],[166,35,167,38],[157,11,158,12],[162,5,163,8],[162,9,163,28],[165,17,165,24],[165,29,165,34],[165,35,165,38],[166,5,167,8],[166,9,167,11],[155,3,172,3],[155,4,172,4],[155,5,158,6],[155,7,158,10],[155,11,156,12],[155,13,158,15],[155,16,158,25],[155,26,158,28],[155,29,158,38],[159,5,159,38],[160,5,161,8],[160,9,161,28],[160,29,160,34],[160,35,160,38],[161,29,163,34],[161,35,163,38],[165,5,165,8],[165,9,165,12],[165,13,165,16],[169,31,172,34],[170,5,171,24],[170,35,170,38],[171,36,171,37],[169,5,169,24],[152,5,152,8],[152,16,153,26],[201,5,201,8],[201,9,201,12],[201,13,201,16],[152,27,153,31],[173,31,173,38],[125,37,125,38],[125,34,125,36],[125,10,125,15],[125,5,125,7],[124,16,125,26],[124,5,124,8],[146,35,146,38],[145,9,145,38],[145,5,145,8],[138,18,139,20],[138,15,139,17],[138,12,139,14],[138,9,139,11],[142,5,143,24],[141,5,141,24],[140,5,140,24],[138,21,139,24]]}
[]
[null,null,null,null,null,"　",null,null," "," ",null," "]
[null,null,null,null,null,"[形式001]",null,null,null,null,null,null,null," ",null,null,"製作指示書",null,null,null,null,null,null,null,null,null,null,"営業控",null,null," "," "]
[null,null,null,null,null,null,null,null,null,null,"A・B・C・D・E"]
[]
[null,null,null,"使用方法¨管理規定標準書の本帳票記入要領参照","使用目的¨業務担当が受注登録をする","契約先No",null,null,null,{"$f":"[1]A入力!$J$7","v":"3420"},{"$f":"[1]A入力!$J$7","v":"3420"},{"$f":"[1]A入力!$J$7","v":"3420"},{"$f":"[1]A入力!$J$7","v":"3420"},"受注番号",null,null,null,null,{"$f":"[1]A入力!$S$7","v":"1003556"},null,null,null," ","納入先No",null,null,null,{"$f":"[1]A入力!$AB$7","v":"0041"},{"$f":"[1]A入力!$AB$7","v":"0041"},{"$f":"[1]A入力!$AB$7","v":"0041"},{"$f":"[1]A入力!$AB$7","v":"0041"},{"$f":"[1]A入力!$AF$7","v":103},null,null,"帳票Ｎｏ.",null,null,1001]
[null,null,null,null,null,null,null,null,null,{"$f":"[1]A入力!$J$7","v":"3420"},{"$f":"[1]A入力!$J$7","v":"3420"},{"$f":"[1]A入力!$J$7","v":"3420"},{"$f":"[1]A入力!$J$7","v":"3420"},null,null,null,null,null,null,null,null,null,null,null,null,null,null,{"$f":"[1]A入力!$AB$7","v":"0041"},{"$f":"[1]A入力!$AB$7","v":"0041"},{"$f":"[1]A入力!$AB$7","v":"0041"},{"$f":"[1]A入力!$AB$7","v":"0041"}]
[null,null,null,null,null,"契約先",null,null,{"$f":"[1]A入力!$I$9","v":"株式会社　愛真製作所"},null,null,null,null,null,null,null,null,null,null,null,null,null,null,null,"契約担当",null,{"$f":"[1]A入力!$AA$9","v":0},null,null,null,null,null,null,"電話",{"$f":"[1]A入力!$AI$9","v":"0243-44-1234"},null,null,null,null,null,null,"ファイル名を印刷4.xlsmでEドライブに保存してください。"]
[null,null,null,null,null,null,null,null,null,null,null,null,null,null,null,null,null,null,null,null,null,null,null,null,null,null,null,null,null,null,null,null,null,null,null,null,null,null,null,null,null,"マクロではその名前になっていますから。"]
[]
[null,null,null,null,null,"納入先",null,null,{"$f":"[1]A入力!$I$12","v":"株式会社アイタック"},null,null,null,null,null,null,null,null,null,null,null,null,null,null,null,"納入担当",null,{"$f":"[1]A入力!$AA$12","v":0},null,null,null,null,null,null,"電話",{"$f":"[1]A入力!$AI$12","v":"0849-22-1234"}]
[]
[]
[]
[null,null,null,null,null,"機種    型式",null,null,{"$f":"[1]A入力!$I$16","v":0},null,null,null,null,null,null,null,null,null,null,null,null,null,null,null,"機　番",null,null,null,null,null,"　台　数",null,null,null,"販売価格"]
[null,null,null,null,null,null,null,null,null,null,null,null,null,null,null,null,null,null,null,null,null,null,null,null,{"$f":"[1]A入力!$Y$17","v":"A-3556"},null,null,null,null,null,{"$f":"[1]A入力!$AE$17","v":0},null,null,null,{"$f":"[1]A入力!$AI$17","v":0}]
[]
[null,null,null,null,null,"関連　　機器",null,null,{"$f":"[1]A入力!$I$19","v":0},null,null,null,null,null,null,null,null,null,null,null,null,null,null,null,null,null,null,null,null,null,"　運賃",null,null,null,{"$f":"[1]A入力!$AI$19","v":0}]
[null,null,null,null,null,null,null,null,null,null,null,null,null,null,null,null,null,null,null,null,null,null,null,null,null,"納 期"]
[null,null,null,null,null,null,null,null,null,null,null,null,null,null,null,null,null,null,null,null,null,null,null,null,null,null,null,null,null,null," 取付費",null,null,null,{"$f":"[1]A入力!$AI$21","v":0}]
[]
[null,null,null,null,null," ",null,"　",null,null,null,null,null,"　",null,null,null,null,"　",null,null,null,null,null,null,{"$f":"[1]A入力!$Z$23","v":"00:00:00"},null,null,null,null,"　合　計",null,null,null,{"$f":"[1]A入力!$AI$23","v":0}]
[null,null,null,null,null,"指定色",null,null,{"$f":"[1]A入力!$J$24","v":"なし"},null,null,null,{"$f":"[1]A入力!$N$24","v":0},null,null,null,{"$f":"[1]A入力!$R$24","v":0}]
[null,null,null,null,null,null,null,null,null,null,null,null,null,null,null,null,null,null,null,null,null,null,null,null,null,null,null,null,null,null,"　",null,null,null,"　"]
[null,null,null,null,null,null,null,null,null,null,null,null,null,null,null,null,null,null,null,null,null,null,null,null,null,"据付希望日",null,null,null,null,"非該当証明",null,null,null,{"$f":"[1]A入力!$AI$29","v":"要"},null,{"$f":"[1]A入力!$AK$29","v":"不要"}]
[null,null,null,null,null,"荷姿",null,null,{"$f":"[1]A入力!$J$28","v":"平積"},null,null,{"$f":"[1]A入力!$M$28","v":0},null,null,{"$f":"[1]A入力!$P$28","v":0},null,null,{"$f":"[1]A入力!$S$28","v":0},null,null,{"$f":"[1]A入力!$V$28","v":0}]
[null,null,null,null,null,null,null,null,null,null,null,null,null,null,null,null,null,null,null,null,null,null,null,null,null,{"$f":"[1]A入力!$Z$28","v":"00:00:00"}]
[null,null,null,null,null,null,null,null,null,null,null,null,null,null,null,null,null,null,null,null,null,null,null,null,null,null,null,null,null,null,null,null,null,null,"締日",null,null,{"$f":"[1]A入力!$AK$26","v":20}]
[null,null,null,null,null,{"$f":"[1]A入力!$F$30","v":0},null,null,null,null,null,null,null,null,null,null,null,null,null,null,null,null,null,null,null,null,null,null,null,null,null,null,null,null,"回収日",null,null,{"$f":"[1]A入力!$AK$27","v":10}]
[]
[null,null,null,null,null,{"$f":"[1]A入力!$F$31","v":0},null,null,null,null,null,null,null,null,null,null,null,null,null,null,null,null,null,null,null,null,null,"承認",null,null,null,"点検",null,null,null,"作成"]
[]
[null,null,null,null,null,{"$f":"[1]A入力!$F$32","v":0},null,null,null,null,null,null,null,null,null,null,null,null,null,null,null,null,null,null,null,null,null,null,null,null,null,null,null,null,null,{"$f":"[1]A入力!$AJ$32","v":"2020-06-10"}]
[null,null,null,null,null,null,null,null,null,null,null,null,null,null,null,null,null,null,null,null,null,null,null,null,null,null,null,null,null,null,null,null,null,null,null,null,{"$f":"[1]A入力!$AK$33","v":"牛河"}]
[null,null,null,null,null,null,null,null,null,null,null,null,null,null,null,null,null,null,null,null,null,null," ",null," "]
[]
[null,null,null,null,null,"経路　発行 [担当] → [製造部長] →[ＰＣ入力] →[保存]　　",null,null,null,null,null,null,null,null,null,null,null,null,null,null,null,null,null,null,null,null,null,null,null,null,null,"株式会社　AAAAA"]
[]
[null,null,null,null,null,"　",null,null," "," "]
[]
[null,null,null,null,null,"[形式003]",null,null,null,null,null,null,null,null,null,null,"製作指示書",null,null,null,null,null,null,null,null,null,null,"組立"]
[null,null,null,null,null,"　",null,null,"　",null,"　",null,null,null,null,null,null,null,null,null,null,null,null,null,null,null,null,null,null,null," ","　",null,null,"帳票Ｎｏ.",null,null,1002]
[]
[null,null,null,"使用方法¨管理規定標準書の本帳票記入要領参照","使用目的¨組立の工数を集計する","機　番",null,{"$f":"H73","v":"A-3556"},null,null,null,"台数",null,"機種　　型式",null,null,{"$f":"Q73","v":0},null,null,null,null,null,null,null,null,null,"関連　　機器",null,null,{"$f":"AD73","v":0}]
[]
[null,null,null,null,null,null,null,null,null,null,null,{"$f":"L75","v":0}]
[]
[]
[null,null,null,null,null,"契約先",null,null,null,{"$f":"J78","v":"株式会社　愛真製作所"},null,null,null,null,null,null,null,null,null,null,null,null,null,null,null,null,null,null,null,"組立完了日",null,null,null,null,null,"客先納期"]
[null,null,null,null,null,null,null,null,null,null,null,null,null,null,null,null,null,null,null,null,null,null,null,null,null,null,null,null,null,null,null,null,null,null,null,{"$f":"Z22","v":"00:00:00"}]
[null,null,null,null,null,"納入先",null,null,null,{"$f":"J80","v":"株式会社アイタック"}]
[]
[]
[null,null,null,null,null,"指定色",null,null,null,{"$f":"I23","v":"なし"},null,null,null,{"$f":"M23","v":0},null,null,null,{"$f":"Q23","v":0},null,null,null,null,null,null,null,"　",null,"　",null,null,null,"部品調達　　完了日",null,null,null,"電気制御"]
[null,null,null,null,null,"荷　姿",null,null,null,{"$f":"I26","v":"平積"},null,null,{"$f":"L26","v":0},null,null,{"$f":"O26","v":0},null,null,{"$f":"R26","v":0},null,null,{"$f":"U26","v":0},null,null,null,null,null,null,null,null,null,null,null,null,null,"有 ・ 無"]
[]
[null,null,null,null,null,{"$f":"F29","v":0}]
[null,null,null,null,null,{"$f":"F31","v":0},null,null,null,null,null,null,null,null,null,null,null,null,null,null,null,null,null,null,null,null,null,"承認",null,null,null,"点検",null,null,null,"作成"]
[null,null,null,null,null,{"$f":"F33","v":0},null,null,null,null,null,null,null,null,null,null,null,null,null,null,null,null,null,null,null,null,null,null,null,null,null,null,null,null,null,{"$f":"AJ33","v":"2020-06-10"}]
[null,null,null,null,null,null,null,null,null,null,null,null,null,null,null,null,null,null,null,null,null,null,null,null,null,null,null,null,null,null,null,null,null,null,null,null,{"$f":"AK89","v":"牛河"}]
[null,null,null,null,null," "]
[null,null,null,null,null,"工数",null,null,null,"この製番の組立に掛かった時間を毎日記入する。　終了日に赤で完了と記入する。"]
[null,null,null,null,null,null,null,null,null,null,null,null,null,null,null,null,null,null,null,null,null,null,null,null,null,null,null,null,null,null,null,null,null,null,null," "]
[]
[]
[null,null,null,null,null,"経路　発行[担当] →[製造部長] → [組立] → [工程担当]",null,null,null,null,null,null,null,null,null,null,null,null,null,null,null,null,null,null,null,null,null,null,null,null,null,"株式会社　AAAAA"]
[]
[]
[]
[null,null,null,null,null,"[形式003]",null,null,null,null,null,null,null,null,null,null,"製作指示書",null,null,null,null,null,null,null,null,null,null,"設計提出"]
[null,null,null,null,null,"　",null,null,"　",null,"　",null,null,null,null,null,null,null,null,null,null,null,null,null,null,null,null,null,null,null,null,"　",null,null,"帳票Ｎｏ.",null,null,1003]
[]
[null,null,null,"使用方法¨管理規定標準書の本帳票記入要領参照","使用目的¨設計の工数を集計する","機　番",null,{"$f":"+Y16","v":"A-3556"},null,null,null,"台数",null,"機種　　型式",null,null,{"$f":"+I15","v":0},null,null,null,null,null,null,null,null,null,"関連　　機器",null,null,{"$f":"+I18","v":0}]
[]
[null,null,null,null,null,null,null,null,null,null,null,{"$f":"AE16","v":0}]
[]
[]
[null,null,null,null,null,"契約先",null,null,null,{"$f":"+I8","v":"株式会社　愛真製作所"},null,null,null,null,null,null,null,null,null,null,null,null,null,null,null,null,null,null,null,"設計完了日",null,null,null,null,null,"電気制御"]
[null,null,null,null,null,null,null,null,null,null,null,null,null,null,null,null,null,null,null,null,null,null,null,null,null,null,null,null,null,null,null,null,null,null,null,"有 ・ 無"]
[null,null,null,null,null,"納入先",null,null,null,{"$f":"+I11","v":"株式会社アイタック"}]
[]
[]
[null,null,null,null,null,"指定色",null,null,null,{"$f":"I23","v":"なし"},null,null,null,{"$f":"M23","v":0},null,null,null,{"$f":"Q23","v":0},null,null,null,null,null,null,null,null,null,null,null,null,null,null,null,null,null,"客先納期"]
[null,null,null,null,null,"荷　姿",null,null,null,{"$f":"I26","v":"平積"},null,null,{"$f":"L26","v":0},null,null,{"$f":"O26","v":0},null,null,{"$f":"R26","v":0},null,null,{"$f":"U26","v":0},null,null,null,null,null,null,null,null,null,null,null,null,null,{"$f":"Z22","v":0}]
[]
[null,null,null,null,null,{"$f":"F29","v":0}]
[null,null,null,null,null,{"$f":"F31","v":0},null,null,null,null,null,null,null,null,null,null,null,null,null,null,null,null,null,null,null,null,null,"承認",null,null,null,"点検",null,null,null,"作成"]
[null,null,null,null,null,{"$f":"F33","v":0},null,null,null,null,null,null,null,null,null,null,null,null,null,null,null,null,null,null,null,null,null,null,null,null,null,null,null,null,null,{"$f":"+AJ33","v":"2020-06-10"}]
[null,null,null,null,null,null,null,null,null,null,null,null,null,null,null,null,null,null,null,null,null,null,null,null,null,null,null,null,null,null,null,null,null,null,null,null,{"$f":"+AK34","v":"牛河"}]
[]
[null,null,null,null,null,"工数",null,null,null,"この製番の設計に掛かった時間を毎日記入する。　終了日に赤で完了と記入する。"]
[null,null,null,null,null,null,null,null,null,null,null,null,null,null,null,null,null,null,null,null,null,null,null,null,null,null,null,null,null,null,null,null,null,null,null," "]
[]
[]
[null,null,null,null,null,"経路　発行[担当] →[製造部長] → [設計] → [工程担当]",null,null,null,null,null,null,null,null,null,null,null,null,null,null,null,null,null,null,null,null,null,null,null,null,null,"株式会社　AAAAA"]
[]
[]
[null,null,null,null,null,"[形式003]",null,null,null,null,null,null,null,null,null,null,"製作指示書",null,null,null,null,null,null,null,null,null,null,"設計控"]
[null,null,null,null,null,"　",null,null,"　",null,"　",null,null,null,null,null,null,null,null,null,null,null,null,null,null,null,null,null,null,null,null,"　",null,null,"帳票Ｎｏ.",null,null,1004]
[]
[null,null,null,"使用方法¨管理規定標準書の本帳票記入要領参照","使用目的¨設計に受注内容を明確に知らせる","機　番",null,{"$f":"H73","v":"A-3556"},null,null,null,"台数",null,"機種　　型式",null,null,{"$f":"Q73","v":0},null,null,null,null,null,null,null,null,null,"関連　　機器",null,null,{"$f":"AD73","v":0}]
[]
[null,null,null,null,null,null,null,null,null,null,null,{"$f":"L75","v":0}]
[]
[]
[null,null,null,null,null,"契約先",null,null,null,{"$f":"J78","v":"株式会社　愛真製作所"},null,null,null,null,null,null,null,null,null,null,null,null,null,null,null,null,null,null,null,"設計完了日",null,null,null,null,null,"電気制御"]
[null,null,null,null,null,null,null,null,null,null,null,null,null,null,null,null,null,null,null,null,null,null,null,null,null,null,null,null,null,null,null,null,null,null,null,"有 ・ 無"]
[null,null,null,null,null,"納入先",null,null,null,{"$f":"J80","v":"株式会社アイタック"}]
[]
[]
[null,null,null,null,null,"指定色",null,null,null,{"$f":"I23","v":"なし"},null,null,null,{"$f":"M23","v":0},null,null,null,{"$f":"Q23","v":0},null,null,null,null,null,null,null,null,null,null,null,null,null,null,null,null,null,"客先納期"]
[null,null,null,null,null,"荷　姿",null,null,null,{"$f":"I26","v":"平積"},null,null,{"$f":"L26","v":0},null,null,{"$f":"O26","v":0},null,null,{"$f":"R26","v":0},null,null,{"$f":"U26","v":0},null,null,null,null,null,null,null,null,null,null,null,null,null,{"$f":"Z22","v":0}]
[]
[null,null,null,null,null,{"$f":"F29","v":0}]
[null,null,null,null,null,{"$f":"F31","v":0},null,null,null,null,null,null,null,null,null,null,null,null,null,null,null,null,null,null,null,null,null,"承認",null,null,null,"点検",null,null,null,"作成"]
[null,null,null,null,null,{"$f":"F33","v":0},null,null,null,null,null,null,null,null,null,null,null,null,null,null,null,null,null,null,null,null,null,null,null,null,null,null,null,null,null,{"$f":"AJ88","v":"2020-06-10"}]
[null,null,null,null,null,null,null,null,null,null,null,null,null,null,null,null,null,null,null,null,null,null,null,null,null,null,null,null,null,null,null,null,null,null,null,null,{"$f":"AK89","v":"牛河"}]
[null,null,null,null,null," ",null,null,null,null,null,null,null,null,null,null,null,null,null,null,null,null,"地区",null,{"$f":"Y35","v":" "}]
[null,null,null,null,null,"経路　発行（担当） →製造部長 →設計 → 保存　　",null,null,null,null,null,null,null,null,null,null,null,null,null,null,null,null,null,null,null,null,null,null,null,null,null,"株式会社　AAAAA"]
[]
[]
[]
[]
[]
[null,null,null,null,null,"[形式003]",null,null,null,null,null,null,null,null,null,null,"製作指示書",null,null,null,null,null,null,null,null,null,null,"電気設計提出"]
[null,null,null,null,null,"　",null,null,"　",null,"　",null,null,null,null,null,null,null,null,null,null,null,null,null,null,null,null,null,null,null,null,null,null,null,"帳票Ｎｏ.",null,null,1005]
[]
[null,null,null,"使用方法¨管理規定標準書の本帳票記入要領参照","使用目的¨電気設計の工数を集計する","機　番",null,{"$f":"H73","v":"A-3556"},null,null,null,"台数",null,"機種　　型式",null,null,{"$f":"Q73","v":0},null,null,null,null,null,null,null,null,null,"関連　　機器",null,null,{"$f":"AD73","v":0}]
[]
[null,null,null,null,null,null,null,null,null,null,null,{"$f":"L75","v":0}]
[]
[]
[null,null,null,null,null,"契約先",null,null,null,{"$f":"J78","v":"株式会社　愛真製作所"},null,null,null,null,null,null,null,null,null,null,null,null,null,null,null,null,null,null,null,"設計完了日",null,null,null,null,null,"電気制御"]
[null,null,null,null,null,null,null,null,null,null,null,null,null,null,null,null,null,null,null,null,null,null,null,null,null,null,null,null,null,null,null,null,null,null,null,"有 ・ 無"]
[null,null,null,null,null,"納入先",null,null,null,{"$f":"J80","v":"株式会社アイタック"}]
[]
[]
[null,null,null,null,null,"指定色",null,null,null,{"$f":"I23","v":"なし"},null,null,null,{"$f":"M23","v":0},null,null,null,{"$f":"Q23","v":0},null,null,null,null,null,null,null,null,null,null,null,null,null,null,null,null,null,"客先納期"]
[null,null,null,null,null,"荷　姿",null,null,null,{"$f":"I26","v":"平積"},null,null,{"$f":"L26","v":0},null,null,{"$f":"O26","v":0},null,null,{"$f":"R26","v":0},null,null,{"$f":"U26","v":0},null,null,null,null,null,null,null,null,null,null,null,null,null,{"$f":"Z22","v":0}]
[]
[null,null,null,null,null,{"$f":"F29","v":0}]
[null,null,null,null,null,{"$f":"F31","v":0},null,null,null,null,null,null,null,null,null,null,null,null,null,null,null,null,null,null,null,null,null,"承認",null,null,null,"点検",null,null,null,"作成"]
[null,null,null,null,null,{"$f":"F33","v":0},null,null,null,null,null,null,null,null,null,null,null,null,null,null,null,null,null,null,null,null,null,null,null,null,null,null,null,null,null,{"$f":"AJ88","v":"2020-06-10"}]
[null,null,null,null,null,null,null,null,null,null,null,null,null,null,null,null,null,null,null,null,null,null,null,null,null,null,null,null,null,null,null,null,null,null,null,null,{"$f":"AK89","v":"牛河"}]
[null,null,null,null,null," "]
[null,null,null,null,null,"工数",null,null,null,"この製番の設計に掛かった時間を毎日記入する。　終了日に赤で完了と記入する。"]
[null,null,null,null,null,null,null,null,null,null,null,null,null,null,null,null,null,null,null,null,null,null,null,null,null,null,null,null,null,null,null,null,null,null,null," "]
[]
[]
[null,null,null,null,null,"経路　発行[担当] →[製造部長] → [電気設計] → [工程担当]",null,null,null,null,null,null,null,null,null,null,null,null,null,null,null,null,null,null,null,null,null,null,null,null,null,"株式会社　AAAAA"]
[]
[]
[null,null,null,null,null,"[形式003]",null,null,null,null,null,null,null,null,null,null,"製作指示書",null,null,null,null,null,null,null,null,null,null,"電気設計控"]
[null,null,null,null,null,"　",null,null,"　",null,"　",null,null,null,null,null,null,null,null,null,null,null,null,null,null,null,null,null,null,null,null,null,null,null,"帳票Ｎｏ.",null,null,1006]
[]
[null,null,null,"使用方法¨管理規定標準書の本帳票記入要領参照","使用目的¨電気設計に受注内容を明確に知らせる","機　番",null,{"$f":"Y16","v":"A-3556"},null,null,null,"台数",null,"機種　　型式",null,null,{"$f":"I15","v":0},null,null,null,null,null,null,null,null,null,"関連　　機器",null,null,{"$f":"I18","v":0}]
[]
[null,null,null,null,null,null,null,null,null,null,null,{"$f":"AE16","v":0}]
[]
[]
[null,null,null,null,null,"契約先",null,null,null,{"$f":"I8","v":"株式会社　愛真製作所"},null,null,null,null,null,null,null,null,null,null,null,null,null,null,null,null,null,null,null,"設計完了日",null,null,null,null,null,"電気制御"]
[null,null,null,null,null,null,null,null,null,null,null,null,null,null,null,null,null,null,null,null,null,null,null,null,null,null,null,null,null,null,null,null,null,null,null,"有 ・ 無"]
[null,null,null,null,null,"納入先",null,null,null,{"$f":"I11","v":"株式会社アイタック"}]
[]
[]
[null,null,null,null,null,"指定色",null,null,null,{"$f":"I23","v":"なし"},null,null,null,{"$f":"M23","v":0},null,null,null,{"$f":"Q23","v":0},null,null,null,null,null,null,null,null,null,null,null,null,null,null,null,null,null,"客先納期"]
[null,null,null,null,null,"荷　姿",null,null,null,{"$f":"I26","v":"平積"},null,null,{"$f":"L26","v":0},null,null,{"$f":"O26","v":0},null,null,{"$f":"R26","v":0},null,null,{"$f":"U26","v":0},null,null,null,null,null,null,null,null,null,null,null,null,null,{"$f":"Z22","v":0}]
[]
[null,null,null,null,null,{"$f":"F29","v":0}]
[null,null,null,null,null,{"$f":"F31","v":0},null,null,null,null,null,null,null,null,null,null,null,null,null,null,null,null,null,null,null,null,null,"承認",null,null,null,"点検",null,null,null,"作成"]
[null,null,null,null,null,{"$f":"F33","v":0},null,null,null,null,null,null,null,null,null,null,null,null,null,null,null,null,null,null,null,null,null,null,null,null,null,null,null,null,null,{"$f":"AJ33","v":"2020-06-10"}]
[null,null,null,null,null,null,null,null,null,null,null,null,null,null,null,null,null,null,null,null,null,null,null,null,null,null,null,null,null,null,null,null,null,null,null,null,{"$f":"AK34","v":"牛河"}]
[null,null,null,null,null," ",null,null,null,null,null,null,null,null,null,null,null,null,null,null,null,null,"地区",null,{"$f":"Y35","v":" "}]
[null,null,null,null,null,"経路　発行[担当] →[製造部長] → [電気設計] → [工程担当]",null,null,null,null,null,null,null,null,null,null,null,null,null,null,null,null,null,null,null,null,null,null,null,null,null,"株式会社　AAAAA"]
[]
[]
[]
[]
[]
[]
[null,null,null,null,null,"[形式003]",null,null,null,null,null,null,null,null,null,null,"製作指示書",null,null,null,null,null,null,null,null,null,null,"部品調達"]
[null,null,null,null,null,"　",null,null,"　",null,"　",null,null,null,null,null,null,null,null,null,null,null,null,null,null,null,null,null,null,null,null,"　",null,null,"帳票Ｎｏ.",null,null,1007]
[]
[null,null,null,null,null,"機　番",null,{"$f":"H73","v":"A-3556"},null,null,null,"台数",null,"機種　　型式",null,null,{"$f":"Q73","v":0},null,null,null,null,null,null,null,null,null,"関連　　機器",null,null,{"$f":"AD73","v":0}]
[]
[null,null,null,null,null,null,null,null,null,null,null,{"$f":"L75","v":0}]
[]
[null,null,null,"使用方法¨管理規定標準書の本帳票記入要領参照","使用目的¨資材に受注内容を明確に知らせる"]
[null,null,null,null,null,"契約先",null,null,null,{"$f":"J78","v":"株式会社　愛真製作所"},null,null,null,null,null,null,null,null,null,null,null,null,null,null,null,null,null,null,null,"部品調達完了日",null,null,null,null,null,"設計完了日"]
[]
[null,null,null,null,null,"納入先",null,null,null,{"$f":"J80","v":"株式会社アイタック"}]
[]
[]
[null,null,null,null,null,"指定色",null,null,null,{"$f":"I23","v":"なし"},null,null,null,{"$f":"M23","v":0},null,null,null,{"$f":"Q23","v":0},null,null,null,null,null,null,null,null,null,null,null,null,null,"客先納期",null,null,null,"電気制御"]
[null,null,null,null,null,"荷　姿",null,null,null,{"$f":"I26","v":"平積"},null,null,{"$f":"L26","v":0},null,null,{"$f":"O26","v":0},null,null,{"$f":"R26","v":0},null,null,{"$f":"U26","v":0},null,null,null,null,null,null,null,null,null,{"$f":"Z22","v":"00:00:00"},null,null,null,"有 ・ 無"]
[]
[null,null,null,null,null,{"$f":"F29","v":0}]
[null,null,null,null,null,{"$f":"F31","v":0},null,null,null,null,null,null,null,null,null,null,null,null,null,null,null,null,null,null,null,null,null,"承認",null,null,null,"点検",null,null,null,"作成"]
[null,null,null,null,null,{"$f":"F33","v":0},null,null,null,null,null,null,null,null,null,null,null,null,null,null,null,null,null,null,null,null,null,null,null,null,null,null,null,null,null,{"$f":"AJ33","v":"2020-06-10"}]
[null,null,null,null,null,null,null,null,null,null,null,null,null,null,null,null,null,null,null,null,null,null,null,null,null,null,null,null,null,null,null,null,null,null,null,null,{"$f":"AK89","v":"牛河"}]
[]
[null,null,null,null,null,"手配着手日",null,null,null,"完了日",null,null,null," "]
[]
[]
[null,null,null,null,null,"経路　発行（担当） →[製造部長] →[部品調達] → [工程担当]　",null,null,null,null,null,null,null,null,null,null,null,null,null,null,null,null,null,null,null,null,null,null,null,null,null,"株式会社　AAAAA"]

{"sheet":"A出荷指示書","index":1,"n_rows":54,"n_cols":22,"rows_kept":54,"cut":false,"hidden":false,"merged":[[3,5,5,10],[7,3,7,8],[7,12,7,17],[15,3,15,7],[15,9,15,17],[8,3,9,8],[8,11,9,15],[8,16,9,17],[11,3,11,10],[11,12,11,17],[3,12,3,13],[3,14,3,17],[5,15,5,16],[16,3,16,7],[16,9,16,17],[13,3,13,7],[13,9,13,17],[14,3,14,7],[14,9,14,17],[17,3,17,7],[17,9,17,17],[18,3,18,7],[18,9,18,17],[30,5,32,10],[19,3,19,7],[19,9,19,17],[21,3,21,5],[21,8,21,11],[21,13,21,17],[34,3,34,8],[34,12,34,17],[22,3,22,5],[22,8,22,9],[22,10,22,12],[22,13,24,17],[32,15,32,16],[30,12,30,13],[30,14,30,17],[40,3,40,7],[40,9,40,17],[41,3,41,7],[41,9,41,17],[35,3,36,8],[35,11,36,15],[35,16,36,17],[38,3,38,10],[38,12,38,17],[44,3,44,7],[44,9,44,17],[45,3,45,7],[45,9,45,17],[42,3,42,7],[42,9,42,17],[43,3,43,7],[43,9,43,17],[49,8,49,11],[49,13,51,17],[50,8,50,11],[46,3,46,7],[46,9,46,17],[48,3,48,7],[48,13,48,17],[49,2,49,3],[49,4,49,6]]}
[]
[]
[]
[null,null,"帳票No",1011,null,"出　荷　指　示　書",null,null,null,null,null,null,"受注No",null,4007869,null,null,null,null,null," "," "]
[null,null,null,null,null,null,null,null,null,null,null,null,null," ",null,null," "]
[null,null,null,null,null,null,null,null,null,null,null,{"$f":"IF(VALUE(N6)<日付取得!B1,日付取得!A1+1,日付取得!A1)","v":{"$error":"#VALUE!"}},"年",{"$f":"IF(LEFT([1]A入力!$Z$23,2)=\"10\",10,IF(LEFT([1]A入力!$Z$23,2)=\"11\",11,IF(LEFT([1]A入力!$Z$23,2)=\"12\",12,LEFT([1]A入力!$Z$23,1))))","v":""},"月",{"$f":"IF(AND(MID([1]A入力!$Z$23,2,1)=\"/\",LEN([1]A入力!$Z$23)=4),RIGHT([1]A入力!$Z$23,2),IF(AND(MID([1]A入力!$Z$23,3,1)=\"/\",LEN([1]A入力!$Z$23)=5),RIGHT([1]A入力!$Z$23,2),IF(AND(MID([1]A入力!$Z$23,3,1)=\"/\",LEN([1]A入力!$Z$23)=4),RIGHT([1]A入力!$Z$23,1),IF(AND(MID([1]A入力!$Z$23,2,1)=\"/\",LEN([1]A入力!$Z$23)=3),RIGHT([1]A入力!$Z$23,1)))))","v":false},null,"日",null,null,null," "]
[]
[null,null,"契約先",{"$f":"[1]A入力!$I$9","v":"株式会社　愛真製作所"},null,null,null,null,null,null,null,null,"得意先",null,null,null,null,null,null,null," "]
[null,null,"御届先",{"$f":"[1]A入力!$I$12","v":"株式会社アイタック"},null,null,null,null,null," ",null,{"$f":"[1]A入力!$AA$12","v":0},null,null,null,null,"様"]
[null,null,"会社名",null,null,null,null,null,null,null,"担当者名"]
[]
[null,null,"住所",{"$f":"[1]A入力!$BF$49","v":"広島県福山市南藏王町25-2"},null,null,null,null,null,null,null,"TEL",{"$f":"[1]A入力!$AI$12","v":"0849-22-1234"},null,null,null,null,null,null,null," "]
[]
[null,null,"機　番","品　　　　　　　名",null,null,null,null,"数量","備　　　　　　　　考"]
[null,null,{"$f":"[1]A入力!$Y$17","v":"A-3556"},{"$f":"[1]A入力!$I$16","v":0},null,null,null,null,{"$f":"[1]A入力!$AE$17","v":0}," "]
[null,null," "," ",null,null,null,null," "," "]
[null,null," "," ",null,null,null,null," "," "]
[null,null," "," ",null,null,null,null," "," "]
[null,null," "," ",null,null,null,null," "," "]
[null,null," "," ",null,null,null,null," "," "]
[]
[null,null,null," ",null,null,null,null," ",null,null,null,null,"出荷担当者"]
[null,null,"運 送 便",null,null,null,null,null," 株式会社",null,"AAAAA"]
[null,null,null,null,null,null,null,null,null," ","TEL (00)1111-1111"]
[null,null,null,null,null,null,null,null,null," ","FAX (00-1111-1111"]
[]
[null,null,null,null,null,null,null,null,null,null," ",null,null," ",null,null," "]
[]
[]
[]
[null,null,"帳票No",1012,null,"出　荷　指　示　書",null,null,null,null,null,null,"受注No",null,{"$f":"O4","v":4007869}]
[null,null,null,null,null,null,null,null,null,null,null,null,null," ",null,null," "]
[null,null,null,null,null,null,null,null,null,null,null,{"$f":"L6","v":{"$error":"#VALUE!"}},"年",{"$f":"N6","v":""},"月",{"$f":"P6","v":false},null,"日"]
[]
[null,null,"契約先",{"$f":"+D8","v":"株式会社　愛真製作所"},null,null,null,null,null,null,null,null,"営業部業務控"]
[null,null,"御届先",{"$f":"+D9","v":"株式会社アイタック"},null,null,null,null,null," ",null,{"$f":"+L9","v":0},null,null,null,null,"様"]
[null,null,"会社名",null,null,null,null,null,null,null,"担当者名"]
[]
[null,null,"住所",{"$f":"D12","v":"広島県福山市南藏王町25-2"},null,null,null,null,null,null,null,"TEL",{"$f":"M12","v":"0849-22-1234"}]
[]
[null,null,"機　番","品　　　　　　　名",null,null,null,null,"数量","備　　　　　　　　考"]
[null,null,{"$f":"+C15","v":"A-3556"},{"$f":"+D15","v":0},null,null,null,null,{"$f":"+I15","v":0},{"$f":"+J15","v":" "}]
[null,null," "," ",null,null,null,null," "," "]
[null,null," "," ",null,null,null,null," "," "]
[null,null," "," ",null,null,null,null," "," "]
[null,null," "," ",null,null,null,null," "," "]
[null,null," "," ",null,null,null,null," "," "]
[]
[null,null,null,null,null,null,null,null,"上記の製品及び部品・付属品一式",null,null,null,null,"受　領　印"]
[null,null," 株式会社",null,"AAAAA",null,null,null,"　　　月　　　日に確かに受領しました。"]
[null,null,null," ","TEL (00)1111-1111",null,null,null,"万一紛失いたしました際は当方の責任で"]
[null,null,null," ","FAX (00-1111-1111",null,null,null,"あることを認めます。"]
[]
[null,null,null,null,null,null,null,null,null,null," ",null,null," ",null,null," "]

{"sheet":"F印刷","index":2,"n_rows":281,"n_cols":38,"rows_kept":281,"cut":false,"hidden":false,"merged":[[5,31,5,32],[0,9,0,12],[236,3,252,3],[213,15,213,18],[239,15,239,18],[264,15,264,18],[276,5,277,8],[276,36,276,38],[261,3,277,3],[261,4,277,4],[264,19,264,22],[264,23,264,26],[264,27,264,30],[264,31,264,34],[264,35,264,38],[268,5,269,8],[268,36,268,38],[270,5,271,8],[271,36,271,38],[272,5,273,8],[273,36,273,38],[274,5,275,8],[251,36,251,38],[233,5,233,8],[233,16,234,26],[278,5,279,8],[278,36,278,38],[207,27,208,31],[233,27,234,31],[258,27,259,31],[253,5,254,8],[253,36,253,38],[258,5,258,8],[258,16,259,26],[259,5,259,7],[259,10,259,15],[259,34,259,36],[259,37,259,38],[243,5,244,8],[243,36,243,38],[245,5,246,8],[261,5,261,8],[261,9,261,16],[261,17,261,20],[261,21,261,38],[262,5,262,8],[262,9,262,20],[262,21,262,24],[262,25,262,38],[234,5,234,7],[234,10,234,15],[234,34,234,36],[234,37,234,38],[236,4,252,4],[236,5,236,8],[236,9,236,16],[236,17,236,20],[236,21,236,38],[237,5,237,8],[237,9,237,20],[237,21,237,24],[237,25,237,38],[239,19,239,22],[239,23,239,26],[239,27,239,30],[239,31,239,34],[239,35,239,38],[249,5,250,8],[248,36,248,38],[247,5,248,8],[246,36,246,38],[251,5,252,8],[159,5,159,38],[160,5,161,8],[160,9,161,28],[207,5,207,8],[207,16,208,26],[208,5,208,7],[208,10,208,15],[208,34,208,36],[208,37,208,38],[165,17,165,24],[165,29,165,34],[160,29,160,34],[166,5,167,8],[166,9,167,11],[166,12,167,14],[166,15,167,17],[166,18,167,20],[166,21,167,24],[166,29,167,34],[201,5,201,8],[201,9,201,12],[201,13,201,16],[197,31,200,34],[190,5,191,8],[210,5,210,8],[210,17,210,20],[211,21,211,24],[217,36,217,38],[222,36,222,38],[227,36,227,38],[213,23,213,26],[225,36,225,38],[213,27,213,30],[213,31,213,34],[213,35,213,38],[213,19,213,22],[220,36,220,38],[217,5,218,8],[210,21,210,38],[211,9,211,20],[211,25,211,38],[225,5,226,8],[227,5,228,8],[211,5,211,8],[219,5,220,8],[221,5,222,8],[223,5,224,8],[210,3,226,3],[210,4,226,4],[169,5,169,24],[169,27,172,30],[169,31,172,34],[170,5,171,24],[170,35,170,38],[171,36,171,37],[173,31,173,38],[155,3,172,3],[155,4,172,4],[155,5,158,6],[155,7,158,10],[155,11,156,12],[155,13,158,15],[155,16,158,25],[155,26,158,28],[155,29,158,38],[157,11,158,12],[162,5,163,8],[162,9,163,28],[165,5,165,8],[165,9,165,12],[165,13,165,16],[172,22,172,23],[172,24,172,26],[210,9,210,16],[124,27,125,31],[138,29,139,34],[138,35,139,38],[139,27,139,28],[133,35,135,38],[134,5,135,8],[134,9,135,28],[181,10,181,15],[138,27,138,28],[181,34,181,36],[181,37,181,38],[180,5,180,8],[137,9,137,12],[131,5,131,38],[132,5,133,8],[132,9,133,28],[132,29,132,34],[132,35,132,38],[133,29,135,34],[137,13,137,16],[137,17,137,24],[137,29,137,34],[124,5,124,8],[124,16,125,26],[152,5,152,8],[152,16,153,26],[152,27,153,31],[153,5,153,7],[180,27,181,30],[138,9,139,11],[138,12,139,14],[138,15,139,17],[138,18,139,20],[180,16,181,26],[181,5,181,7],[145,5,145,8],[145,9,145,38],[146,35,146,38],[149,31,149,38],[153,10,153,15],[153,34,153,36],[153,37,153,38],[165,35,165,38],[166,35,167,38],[168,5,168,24],[160,35,160,38],[161,29,163,34],[161,35,163,38],[113,5,113,24],[118,5,118,21],[114,5,114,24],[111,9,112,11],[111,12,112,14],[111,15,112,17],[111,18,112,20],[115,5,116,24],[115,35,115,38],[116,36,116,37],[141,5,141,24],[142,5,143,24],[137,5,137,8],[137,27,137,28],[127,29,130,38],[129,11,130,12],[137,35,137,38],[127,26,130,28],[140,27,140,38],[141,27,144,30],[141,31,144,34],[125,5,125,7],[125,10,125,15],[72,16,75,25],[72,26,75,28],[79,9,80,28],[86,27,89,30],[82,17,82,24],[77,5,78,8],[79,5,80,8],[77,9,78,28],[83,5,84,8],[90,5,90,8],[90,9,90,38],[91,35,91,38],[94,31,94,38],[82,35,82,38],[83,35,84,38],[125,34,125,36],[125,37,125,38],[86,31,89,34],[76,5,76,38],[72,29,75,38],[74,11,75,12],[72,13,75,15],[100,4,117,4],[100,5,103,6],[100,7,103,10],[100,11,101,12],[100,13,103,15],[100,16,103,25],[100,26,103,28],[100,29,103,38],[102,11,103,12],[104,5,104,38],[105,5,106,8],[105,9,106,28],[105,29,105,34],[105,35,105,38],[106,29,108,34],[106,35,108,38],[113,27,113,38],[114,27,117,30],[114,31,117,34],[107,5,108,8],[107,9,108,28],[110,5,110,8],[110,27,110,28],[187,5,187,38],[188,5,189,8],[189,29,191,34],[189,35,191,38],[110,9,110,12],[110,13,110,16],[69,27,70,30],[61,5,61,8],[61,9,61,38],[98,37,98,38],[111,27,111,28],[111,29,112,34],[111,35,112,38],[110,35,110,38],[112,27,112,28],[98,34,98,36],[110,29,110,34],[97,16,98,26],[110,17,110,24],[111,5,112,8],[111,21,112,24],[70,34,70,36],[97,27,98,29],[98,5,98,7],[199,36,199,37],[194,9,195,11],[194,12,195,14],[194,15,195,17],[194,18,195,20],[193,31,193,34],[194,31,195,34],[193,35,193,38],[194,35,195,38],[198,35,198,38],[183,3,200,3],[183,4,200,4],[183,5,186,6],[183,7,186,10],[190,9,191,28],[197,27,200,30],[193,9,193,12],[193,13,193,16],[193,17,193,24],[194,5,195,8],[194,21,195,24],[196,5,196,24],[197,5,197,24],[198,5,199,24],[193,5,193,8],[183,11,184,12],[183,13,186,15],[183,16,186,25],[183,26,186,28],[183,29,186,38],[185,11,186,12],[188,9,189,28],[188,29,188,34],[188,35,188,38],[143,36,143,37],[144,5,144,26],[140,5,140,24],[77,35,77,38],[83,21,84,24],[86,5,86,24],[87,5,88,24],[83,9,84,11],[83,12,84,14],[83,15,84,17],[83,18,84,20],[78,35,80,38],[82,5,82,8],[85,5,85,24],[87,35,87,38],[118,31,118,38],[78,29,80,34],[89,5,89,8],[89,9,89,10],[82,9,82,12],[82,13,82,16],[127,5,130,6],[127,7,130,10],[127,11,128,12],[72,3,89,3],[72,4,89,4],[72,5,75,6],[70,10,70,15],[69,16,70,26],[54,21,55,24],[56,5,56,24],[43,3,60,3],[142,35,142,38],[127,3,144,3],[127,4,144,4],[127,13,130,15],[127,16,130,25],[138,21,139,24],[138,5,139,8],[98,10,98,15],[70,37,70,38],[77,29,77,34],[69,5,69,8],[88,36,88,37],[97,5,97,8],[117,22,117,23],[117,24,117,26],[100,3,117,3],[30,27,35,30],[30,31,35,34],[32,5,33,23],[33,36,34,37],[30,5,31,23],[32,35,32,38],[41,34,41,36],[41,5,41,7],[40,16,41,26],[34,24,35,26],[40,5,40,8],[72,11,73,12],[72,7,75,10],[70,5,70,7],[41,10,41,15],[58,35,58,38],[41,37,41,38],[48,5,49,8],[50,5,51,8],[60,5,60,26],[62,35,62,38],[65,31,65,38],[53,27,53,30],[54,27,55,30],[57,27,60,30],[58,5,59,24],[57,5,57,24],[43,5,46,6],[53,31,53,34],[56,27,56,38],[54,35,55,38],[57,31,60,34],[40,27,41,29],[53,9,53,12],[53,13,53,16],[43,4,60,4],[53,5,53,8],[43,7,46,10],[49,29,51,34],[43,29,46,38],[48,29,48,34],[50,9,51,28],[47,5,47,38],[48,9,49,28],[43,16,46,25],[43,13,46,15],[45,11,46,12],[43,11,44,12],[59,36,59,37],[54,9,55,11],[43,26,46,28],[54,12,55,14],[54,15,55,17],[54,18,55,20],[54,5,55,8],[49,35,51,38],[53,35,53,38],[54,31,55,34],[48,35,48,38],[5,3,35,3],[5,4,36,4],[5,5,6,8],[5,9,6,12],[5,13,6,17],[5,18,6,21],[10,5,12,7],[10,8,12,23],[7,5,9,7],[7,8,9,23],[13,5,13,38],[14,5,16,7],[14,8,16,23],[14,24,14,29],[14,30,14,33],[14,34,14,38],[36,31,36,38],[36,5,36,21],[27,34,27,36],[27,37,27,38],[28,5,29,23],[28,37,28,38],[23,34,24,38],[34,22,35,23],[10,24,12,25],[10,26,12,32],[10,33,12,33],[10,34,12,38],[17,5,20,7],[17,8,20,23],[17,30,18,33],[21,25,23,28],[21,30,22,33],[15,30,16,33],[15,34,16,38],[17,34,18,38],[15,24,16,29],[28,34,28,36],[25,20,27,23],[24,25,25,28],[22,16,24,23],[25,5,27,7],[25,30,26,33],[25,34,26,35],[25,14,27,16],[25,17,27,19],[25,8,27,10],[25,11,27,13],[53,17,53,24],[2,5,2,8],[2,16,3,26],[3,10,3,15],[2,27,3,29],[7,24,9,25],[7,26,9,32],[4,15,4,38],[7,33,9,33],[7,34,9,38],[5,34,5,36],[5,37,5,38],[5,23,6,26],[5,27,6,30],[26,25,28,28],[23,30,24,33],[22,5,24,7],[22,8,24,11],[22,12,24,15],[18,25,20,28],[19,30,20,33],[19,34,20,38],[21,34,22,38],[25,36,26,37]]}
[null,null,null,null,null,null,null,null,null," ",null,null,null,null,null,null,null,null,null,null,null,null,null,null,null,null,null," "]
[null,null,null,null,null,"　",null,null," "," "]
[null,null,null,null,null,"[形式001]",null,null,null,null,null,null,null," ",null,null,"製作指示書",null,null,null,null,null,null,null,null,null,null,"営業控",null,null," "," "]
[null,null,null,null,null,null,null,null,null,null,"F"]
[]
[null,null,null,"使用方法¨管理規定標準書の本帳票記入要領参照","使用目的¨業務担当が受注登録をする","客先コード",null,null,null,"3420",null,null,null,"受注番号",null,null,null,null,{"$f":"[1]F入力!$S$7","v":"6007432"},null,null,null," ","納入先No",null,null,null,"0018",null,null,null,{"$f":"[1]F入力!$AF$7","v":103},null,null,"帳票Ｎｏ.",null,null,1011]
[]
[null,null,null,null,null,"契約先",null,null,{"$f":"[1]F入力!$I$9","v":0},null,null,null,null,null,null,null,null,null,null,null,null,null,null,null,"契約担当",null,{"$f":"[1]F入力!$AA$9","v":0},null,null,null,null,null,null,"電話",{"$f":"[1]F入力!$AI$9","v":0}]
[]
[]
[null,null,null,null,null,"納入先",null,null,{"$f":"[1]F入力!$I$12","v":0},null,null,null,null,null,null,null,null,null,null,null,null,null,null,null,"納入担当",null,{"$f":"[1]F入力!$AA$12","v":0},null,null,null,null,null,null,"電話",{"$f":"[1]F入力!$AI$12","v":0}]
[]
[]
[]
[null,null,null,null,null,"機種    型式",null,null,{"$f":"[1]F入力!$I$16","v":0},null,null,null,null,null,null,null,null,null,null,null,null,null,null,null,"機　番",null,null,null,null,null,"　台　数",null,null,null,"販売価格"]
[null,null,null,null,null,null,null,null,null,null,null,null,null,null,null,null,null,null,null,null,null,null,null,null,{"$f":"[1]F入力!$Y$17","v":"F-7432"},null,null,null,null,null,{"$f":"[1]F入力!$AE$17","v":0},null,null,null,{"$f":"[1]F入力!$AI$17","v":0}]
[]
[null,null,null,null,null,"関連　　機器",null,null,{"$f":"[1]F入力!$I$19","v":0},null,null,null,null,null,null,null,null,null,null,null,null,null,null,null,null,null,null,null,null,null,"　運賃  ",null,null,null,{"$f":"[1]F入力!$AI$19","v":0}]
[null,null,null,null,null,null,null,null,null,null,null,null,null,null,null,null,null,null,null,null,null,null,null,null,null,"納 期"]
[null,null,null,null,null,null,null,null,null,null,null,null,null,null,null,null,null,null,null,null,null,null,null,null,null,null,null,null,null,null," 取付費 ",null,null,null,{"$f":"[1]F入力!$AI$21","v":0}]
[]
[null,null,null,null,null," ",null," ",null,null,null,null,null,"　",null,null,null,null,"　",null,null,null,null,null,null,{"$f":"[1]F入力!$Z$23","v":"00:00:00"},null,null,null,null,"　合　計",null,null,null,{"$f":"[1]F入力!$AI$23","v":0}]
[null,null,null,null,null,"指定色",null,null,{"$f":"[1]F入力!$J$24","v":"なし"},null,null,null,{"$f":"[1]F入力!$N$24","v":0},null,null,null,{"$f":"[1]F入力!$R$24","v":0}]
[null,null,null,null,null,null,null,null,null,null,null,null,null,null,null,null,null,null,null,null,null,null,null,null,null,null,null,null,null,null,"　",null,null,null,"　"]
[null,null,null,null,null,null,null,null,null,null,null,null,null,null,null,null,null,null,null,null,null,null,null,null,null,"据付希望日"]
[null,null,null,null,null,"荷姿",null,null,{"$f":"[1]F入力!$J$28","v":"平積"},null,null,{"$f":"[1]F入力!$M$28","v":0},null,null,{"$f":"[1]F入力!$P$28","v":0},null,null,{"$f":"[1]F入力!$S$28","v":0},null,null,{"$f":"[1]F入力!$V$28","v":0},null,null,null,null,null,null,null,null,null,"非該当証明",null,null,null,{"$f":"[1]F入力!$AI$29","v":"要"},null,{"$f":"[1]F入力!$AK$29","v":"不要"}]
[null,null,null,null,null,null,null,null,null,null,null,null,null,null,null,null,null,null,null,null,null,null,null,null,null,{"$f":"[1]F入力!$Z$28","v":"00:00:00"}]
[null,null,null,null,null,null,null,null,null,null,null,null,null,null,null,null,null,null,null,null,null,null,null,null,null,null,null,null,null,null,null,null,null,null,"締日",null,null,{"$f":"[1]F入力!$AK$26","v":0}]
[null,null,null,null,null,{"$f":"[1]F入力!$F$30","v":0},null,null,null,null,null,null,null,null,null,null,null,null,null,null,null,null,null,null,null,null,null,null,null,null,null,null,null,null,"回収日",null,null,{"$f":"[1]F入力!$AK$27","v":0}]
[]
[null,null,null,null,null,{"$f":"[1]F入力!$F$31","v":0},null,null,null,null,null,null,null,null,null,null,null,null,null,null,null,null,null,null,null,null,null,"承認",null,null,null,"点検",null,null,null,"作成"]
[]
[null,null,null,null,null,{"$f":"[1]F入力!$F$32","v":0},null,null,null,null,null,null,null,null,null,null,null,null,null,null,null,null,null,null,null,null,null,null,null,null,null,null,null,null,null,{"$f":"[1]F入力!$AJ$32","v":"2020-06-10"}]
[null,null,null,null,null,null,null,null,null,null,null,null,null,null,null,null,null,null,null,null,null,null,null,null,null,null,null,null,null,null,null,null,null,null,null,null,{"$f":"[1]F入力!$AK$33","v":"牛河"}]
[null,null,null,null,null,null,null,null,null,null,null,null,null,null,null,null,null,null,null,null,null,null," ",null," "]
[]
[null,null,null,null,null,"経路　発行 [担当] → [製造部長] →[ＰＣ入力] →[保存]　　",null,null,null,null,null,null,null,null,null,null,null,null,null,null,null,null,null,null,null,null,null,null,null,null,null,"株式会社　AAAAA"]
[]
[]
[null,null,null,null,null,"　",null,null," "," "]
[null,null,null,null,null,"[形式003]",null,null,null,null,null,null,null,null,null,null,"製作指示書",null,null,null,null,null,null,null,null,null,null,"組立"]
[null,null,null,null,null,"　",null,null,"　",null,"　",null,null,null,null,null,null,null,null,null,null,null,null,null,null,null,null,null,null,null," ","　",null,null,"帳票Ｎｏ.",null,null,1012]
[]
[null,null,null,"使用方法¨管理規定標準書の本帳票記入要領参照","使用目的¨組立に完成日と特殊仕様を明確に知らせる","機　番",null,{"$f":"+Y16","v":"F-7432"},null,null,null,"台数",null,"機種　　型式",null,null,{"$f":"+I15","v":0},null,null,null,null,null,null,null,null,null,"関連　　機器",null,null,{"$f":"+I18","v":0}]
[]
[null,null,null,null,null,null,null,null,null,null,null,1]
[]
[]
[null,null,null,null,null,"契約先",null,null,null,{"$f":"+I8","v":0},null,null,null,null,null,null,null,null,null,null,null,null,null,null,null,null,null,null,null,"組立完了日",null,null,null,null,null,"客先納期"]
[null,null,null,null,null,null,null,null,null,null,null,null,null,null,null,null,null,null,null,null,null,null,null,null,null,null,null,null,null,null,null,null,null,null,null,{"$f":"Z22","v":"00:00:00"}]
[null,null,null,null,null,"納入先",null,null,null,{"$f":"+I11","v":0}]
[]
[]
[null,null,null,null,null,"指定色",null,null,null,{"$f":"I23","v":"なし"},null,null,null,{"$f":"M23","v":0},null,null,null,{"$f":"Q23","v":0},null,null,null,null,null,null,null,null,null,"　",null,null,null,"部品調達　　完了日",null,null,null,"電気制御"]
[null,null,null,null,null,"荷　姿",null,null,null,{"$f":"I26","v":"平積"},null,null,{"$f":"L26","v":0},null,null,{"$f":"O26","v":0},null,null,{"$f":"R26","v":0},null,null,{"$f":"U26","v":0},null,null,null,null,null,null,null,null,null,null,null,null,null,"有 ・ 無"]
[]
[null,null,null,null,null,{"$f":"F29","v":0}]
[null,null,null,null,null,{"$f":"F31","v":0},null,null,null,null,null,null,null,null,null,null,null,null,null,null,null,null,null,null,null,null,null,"承認",null,null,null,"点検",null,null,null,"作成"]
[null,null,null,null,null,{"$f":"F33","v":0},null,null,null,null,null,null,null,null,null,null,null,null,null,null,null,null,null,null,null,null,null,null,null,null,null,null,null,null,null,{"$f":"+AJ33","v":"2020-06-10"}]
[null,null,null,null,null,null,null,null,null,null,null,null,null,null,null,null,null,null,null,null,null,null,null,null,null,null,null,null,null,null,null,null,null,null,null,null,{"$f":"+AK34","v":"牛河"}]
[null,null,null,null,null," "]
[null,null,null,null,null,"工数",null,null,null,"この製番の組立に掛かった時間を毎日記入する。　終了日に赤で完了と記入する。"]
[null,null,null,null,null,null,null,null,null,null,null,null,null,null,null,null,null,null,null,null,null,null,null,null,null,null,null,null,null,null,null,null,null,null,null," "]
[]
[]
[null,null,null,null,null,"経路　発行[担当] →[製造部長] → [組立] → [工程担当]",null,null,null,null,null,null,null,null,null,null,null,null,null,null,null,null,null,null,null,null,null,null,null,null,null,"株式会社　AAAAA"]
[]
[]
[]
[null,null,null,null,null,"[形式003]",null,null,null,null,null,null,null,null,null,null,"製作指示書",null,null,null,null,null,null,null,null,null,null,"設計提出"]
[null,null,null,null,null,"　",null,null,"　",null,"　",null,null,null,null,null,null,null,null,null,null,null,null,null,null,null,null,null,null,null,null,"　",null,null,"帳票Ｎｏ.",null,null,1013]
[]
[null,null,null,"使用方法¨管理規定標準書の本帳票記入要領参照","使用目的¨設計の工数を集計する","機　番",null,{"$f":"+Y16","v":"F-7432"},null,null,null,"台数",null,"機種　　型式",null,null,{"$f":"+I15","v":0},null,null,null,null,null,null,null,null,null,"関連　　機器",null,null,{"$f":"+I18","v":0}]
[]
[null,null,null,null,null,null,null,null,null,null,null,1]
[]
[]
[null,null,null,null,null,"契約先",null,null,null,{"$f":"+I8","v":0},null,null,null,null,null,null,null,null,null,null,null,null,null,null,null,null,null,null,null,"設計完了日",null,null,null,null,null,"電気制御"]
[null,null,null,null,null,null,null,null,null,null,null,null,null,null,null,null,null,null,null,null,null,null,null,null,null,null,null,null,null,null,null,null,null,null,null,"有 ・ 無"]
[null,null,null,null,null,"納入先",null,null,null,{"$f":"+I11","v":0}]
[]
[]
[null,null,null,null,null,"指定色",null,null,null,{"$f":"I23","v":"なし"},null,null,null,{"$f":"M23","v":0},null,null,null,{"$f":"Q23","v":0},null,null,null,null,null,null,null,null,null,null,null,null,null,null,null,null,null,"客先納期"]
[null,null,null,null,null,"荷　姿",null,null,null,{"$f":"I26","v":"平積"},null,null,{"$f":"L26","v":0},null,null,{"$f":"O26","v":0},null,null,{"$f":"R26","v":0},null,null,{"$f":"U26","v":0},null,null,null,null,null,null,null,null,null,null,null,null,null,{"$f":"Z22","v":0}]
[]
[null,null,null,null,null,{"$f":"F29","v":0}]
[null,null,null,null,null,{"$f":"F31","v":0},null,null,null,null,null,null,null,null,null,null,null,null,null,null,null,null,null,null,null,null,null,"承認",null,null,null,"点検",null,null,null,"作成"]
[null,null,null,null,null,{"$f":"F33","v":0},null,null,null,null,null,null,null,null,null,null,null,null,null,null,null,null,null,null,null,null,null,null,null,null,null,null,null,null,null,{"$f":"+AJ33","v":"2020-06-10"}]
[null,null,null,null,null,null,null,null,null,null,null,null,null,null,null,null,null,null,null,null,null,null,null,null,null,null,null,null,null,null,null,null,null,null,null,null,{"$f":"+AK34","v":"牛河"}]
[null,null,null,null,null,null,null,null,null,null,null,null,null,null,null,null,null,null," "]
[null,null,null,null,null,"工数",null,null,null,"この製番の設計に掛かった時間を毎日記入する。　終了日に赤で完了と記入する。"]
[null,null,null,null,null,null,null,null,null,null,null,null,null,null,null,null,null,null,null,null,null,null,null,null,null,null,null,null,null,null,null,null,null,null,null," "]
[]
[]
[null,null,null,null,null,"経路　発行[担当] →[製造部長] → [設計] → [工程担当]",null,null,null,null,null,null,null,null,null,null,null,null,null,null,null,null,null,null,null,null,null,null,null,null,null,"株式会社　AAAAA"]
[]
[]
[null,null,null,null,null,"[形式003]",null,null,null,null,null,null,null,null,null,null,"製作指示書",null,null,null,null,null,null,null,null,null,null,"設計控"]
[null,null,null,null,null,"　",null,null,"　",null,"　",null,null,null,null,null,null,null,null,null,null,null,null,null,null,null,null,null,null,null," ","　",null,null,"帳票Ｎｏ.",null,null,1014]
[]
[null,null,null,"使用方法¨管理規定標準書の本帳票記入要領参照","使用目的¨設計に完成日と特殊仕様を明確に知らせる","機　番",null,{"$f":"+Y16","v":"F-7432"},null,null,null,"台数",null,"機種　　型式",null,null,{"$f":"+I15","v":0},null,null,null,null,null,null,null,null,null,"関連　　機器",null,null,{"$f":"+I18","v":0}]
[]
[null,null,null,null,null,null,null,null,null,null,null,1]
[]
[]
[null,null,null,null,null,"契約先",null,null,null,{"$f":"+I8","v":0},null,null,null,null,null,null,null,null,null,null,null,null,null,null,null,null,null,null,null,"設計完了日",null,null,null,null,null,"電気制御"]
[null,null,null,null,null,null,null,null,null,null,null,null,null,null,null,null,null,null,null,null,null,null,null,null,null,null,null,null,null,null,null,null,null,null,null,"有 ・ 無"]
[null,null,null,null,null,"納入先",null,null,null,{"$f":"+I11","v":0}]
[]
[]
[null,null,null,null,null,"指定色",null,null,null,{"$f":"I23","v":"なし"},null,null,null,{"$f":"M23","v":0},null,null,null,{"$f":"Q23","v":0},null,null,null,null,null,null,null,null,null,null,null,null,null,null,null,null,null,"客先納期"]
[null,null,null,null,null,"荷　姿",null,null,null,{"$f":"I26","v":"平積"},null,null,{"$f":"L26","v":0},null,null,{"$f":"O26","v":0},null,null,{"$f":"R26","v":0},null,null,{"$f":"U26","v":0},null,null,null,null,null,null,null,null,null,null,null,null,null,{"$f":"Z22","v":0}]
[]
[null,null,null,null,null,{"$f":"F29","v":0}]
[null,null,null,null,null,{"$f":"F31","v":0},null,null,null,null,null,null,null,null,null,null,null,null,null,null,null,null,null,null,null,null,null,"承認",null,null,null,"点検",null,null,null,"作成"]
[null,null,null,null,null,{"$f":"F33","v":0},null,null,null,null,null,null,null,null,null,null,null,null,null,null,null,null,null,null,null,null,null,null,null,null,null,null,null,null,null,{"$f":"+AJ33","v":"2020-06-10"}]
[null,null,null,null,null,null,null,null,null,null,null,null,null,null,null,null,null,null,null,null,null,null,null,null,null,null,null,null,null,null,null,null,null,null,null,null,{"$f":"+AK34","v":"牛河"}]
[null,null,null,null,null," ",null,null,null,null,null,null,null,null,null,null,null,null,null,null,null,null,"地区",null,{"$f":"Y35","v":" "}]
[null,null,null,null,null,"経路　発行[担当] →[製造部長] → [設計] → [保存]　　",null,null,null,null,null,null,null,null,null,null,null,null,null,null,null,null,null,null,null,null,null,null,null,null,null,"株式会社　AAAAA"]
[]
[]
[]
[]
[]
[null,null,null,null,null,"[形式003]",null,null,null,null,null,null,null,null,null,null,"製作指示書",null,null,null,null,null,null,null,null,null,null,"電気設計提出"]
[null,null,null,null,null,"　",null,null,"　",null,"　",null,null,null,null,null,null,null,null,null,null,null,null,null,null,null,null,null,null,null,null,null,null,null,"帳票Ｎｏ.",null,null,1015]
[]
[null,null,null,"使用方法¨管理規定標準書の本帳票記入要領参照","使用目的¨電気の工数を集計する","機　番",null,{"$f":"+Y16","v":"F-7432"},null,null,null,"台数",null,"機種　　型式",null,null,{"$f":"+I15","v":0},null,null,null,null,null,null,null,null,null,"関連　　機器",null,null,{"$f":"+I18","v":0}]
[]
[null,null,null,null,null,null,null,null,null,null,null,1]
[]
[]
[null,null,null,null,null,"契約先",null,null,null,{"$f":"+I8","v":0},null,null,null,null,null,null,null,null,null,null,null,null,null,null,null,null,null,null,null,"設計完了日",null,null,null,null,null,"電気制御"]
[null,null,null,null,null,null,null,null,null,null,null,null,null,null,null,null,null,null,null,null,null,null,null,null,null,null,null,null,null,null,null,null,null,null,null,"有 ・ 無"]
[null,null,null,null,null,"納入先",null,null,null,{"$f":"+I11","v":0}]
[]
[]
[null,null,null,null,null,"指定色",null,null,null,{"$f":"I23","v":"なし"},null,null,null,{"$f":"M23","v":0},null,null,null,{"$f":"Q23","v":0},null,null,null,null,null,null,null,null,null,null,null,null,null,null,null,null,null,"客先納期"]
[null,null,null,null,null,"荷　姿",null,null,null,{"$f":"I26","v":"平積"},null,null,{"$f":"L26","v":0},null,null,{"$f":"O26","v":0},null,null,{"$f":"R26","v":0},null,null,{"$f":"U26","v":0},null,null,null,null,null,null,null,null,null,null,null,null,null,{"$f":"Z22","v":0}]
[]
[null,null,null,null,null,{"$f":"F29","v":0}]
[null,null,null,null,null,{"$f":"F31","v":0},null,null,null,null,null,null,null,null,null,null,null,null,null,null,null,null,null,null,null,null,null,"承認",null,null,null,"点検",null,null,null,"作成"]
[null,null,null,null,null,{"$f":"F33","v":0},null,null,null,null,null,null,null,null,null,null,null,null,null,null,null,null,null,null,null,null,null,null,null,null,null,null,null,null,null,{"$f":"+AJ33","v":"2020-06-10"}]
[null,null,null,null,null,null,null,null,null,null,null,null,null,null,null,null,null,null,null,null,null,null,null,null,null,null,null,null,null,null,null,null,null,null,null,null,{"$f":"+AK34","v":"牛河"}]
[null,null,null,null,null," "]
[null,null,null,null,null,"工数",null,null,null,"この製番の設計に掛かった時間を毎日記入する。　終了日に赤で完了と記入する。"]
[null,null,null,null,null,null,null,null,null,null,null,null,null,null,null,null,null,null,null,null,null,null,null,null,null,null,null,null,null,null,null,null,null,null,null," "]
[]
[]
[null,null,null,null,null,"経路　発行[担当] →[製造部長] → [電気設計] → [工程担当]",null,null,null,null,null,null,null,null,null,null,null,null,null,null,null,null,null,null,null,null,null,null,null,null,null,"株式会社　AAAAA"]
[]
[]
[null,null,null,null,null,"[形式003]",null,null,null,null,null,null,null,null,null,null,"製作指示書",null,null,null,null,null,null,null,null,null,null,"電気設計控"]
[null,null,null,null,null,"　",null,null,"　",null,"　",null,null,null,null,null,null,null,null,null,null,null,null,null,null,null,null,null,null,null,null,null,null,null,"帳票Ｎｏ.",null,null,1016]
[]
[null,null,null,"使用方法¨管理規定標準書の本帳票記入要領参照","使用目的¨電気設計に受注内容を明確に知らせる","機　番",null,{"$f":"Y16","v":"F-7432"},null,null,null,"台数",null,"機種　　型式",null,null,{"$f":"I15","v":0},null,null,null,null,null,null,null,null,null,"関連　　機器",null,null,{"$f":"I18","v":0}]
[]
[null,null,null,null,null,null,null,null,null,null,null,{"$f":"AE16","v":0}]
[]
[]
[null,null,null,null,null,"契約先",null,null,null,{"$f":"I8","v":0},null,null,null,null,null,null,null,null,null,null,null,null,null,null,null,null,null,null,null,"設計完了日",null,null,null,null,null,"電気制御"]
[null,null,null,null,null,null,null,null,null,null,null,null,null,null,null,null,null,null,null,null,null,null,null,null,null,null,null,null,null,null,null,null,null,null,null,"有 ・ 無"]
[null,null,null,null,null,"納入先",null,null,null,{"$f":"I11","v":0}]
[]
[]
[null,null,null,null,null,"指定色",null,null,null,{"$f":"I23","v":"なし"},null,null,null,{"$f":"M23","v":0},null,null,null,{"$f":"Q23","v":0},null,null,null,null,null,null,null,null,null,null,null,null,null,null,null,null,null,"客先納期"]
[null,null,null,null,null,"荷　姿",null,null,null,{"$f":"I26","v":"平積"},null,null,{"$f":"L26","v":0},null,null,{"$f":"O26","v":0},null,null,{"$f":"R26","v":0},null,null,{"$f":"U26","v":0},null,null,null,null,null,null,null,null,null,null,null,null,null,{"$f":"Z22","v":0}]
[]
[null,null,null,null,null,{"$f":"F29","v":0}]
[null,null,null,null,null,{"$f":"F31","v":0},null,null,null,null,null,null,null,null,null,null,null,null,null,null,null,null,null,null,null,null,null,"承認",null,null,null,"点検",null,null,null,"作成"]
[null,null,null,null,null,{"$f":"F33","v":0},null,null,null,null,null,null,null,null,null,null,null,null,null,null,null,null,null,null,null,null,null,null,null,null,null,null,null,null,null,{"$f":"AJ33","v":"2020-06-10"}]
[null,null,null,null,null,null,null,null,null,null,null,null,null,null,null,null,null,null,null,null,null,null,null,null,null,null,null,null,null,null,null,null,null,null,null,null,{"$f":"AK34","v":"牛河"}]
[null,null,null,null,null," ",null,null,null,null,null,null,null,null,null,null,null,null,null,null,null,null,"地区",null,{"$f":"Y35","v":" "}]
[null,null,null,null,null,"経路　発行[担当] →[製造部長] → [電気設計] → [工程担当]",null,null,null,null,null,null,null,null,null,null,null,null,null,null,null,null,null,null,null,null,null,null,null,null,null,"株式会社　AAAAA"]
[]
[]
[]
[]
[]
[]
[null,null,null,null,null,"[形式003]",null,null,null,null,null,null,null,null,null,null,"製作指示書",null,null,null,null,null,null,null,null,null,null,"部品調達"]
[null,null,null,null,null,"　",null,null,"　",null,"　",null,null,null,null,null,null,null,null,null,null,null,null,null,null,null,null,null,null,null,null,"　",null,null,"帳票Ｎｏ.",null,null,1017]
[]
[null,null,null,"使用方法¨管理規定標準書の本帳票記入要領参照","使用目的¨資材に完成日と特殊仕様を明確に知らせる","機　番",null,{"$f":"+Y16","v":"F-7432"},null,null,null,"台数",null,"機種　　型式",null,null,{"$f":"+I15","v":0},null,null,null,null,null,null,null,null,null,"関連　　機器",null,null,{"$f":"+I18","v":0}]
[]
[null,null,null,null,null,null,null,null,null,null,null,1]
[]
[]
[null,null,null,null,null,"契約先",null,null,null,{"$f":"+I8","v":0},null,null,null,null,null,null,null,null,null,null,null,null,null,null,null,null,null,null,null,"部品調達完了日",null,null,null,null,null,"　"]
[]
[null,null,null,null,null,"納入先",null,null,null,{"$f":"+I11","v":0}]
[]
[]
[null,null,null,null,null,"指定色",null,null,null,{"$f":"I23","v":"なし"},null,null,null,{"$f":"M23","v":0},null,null,null,{"$f":"Q23","v":0},null,null,null,null,null,null,null,null,null,null,null,null,null,"客先納期",null,null,null,"電気制御"]
[null,null,null,null,null,"荷　姿",null,null,null,{"$f":"I26","v":"平積"},null,null,{"$f":"L26","v":0},null,null,{"$f":"O26","v":0},null,null,{"$f":"R26","v":0},null,null,{"$f":"U26","v":0},null,null,null,null,null,null,null,null,null,{"$f":"Z22","v":"00:00:00"},null,null,null,"有 ・ 無"]
[]
[null,null,null,null,null,{"$f":"F29","v":0}]
[null,null,null,null,null,{"$f":"F31","v":0},null,null,null,null,null,null,null,null,null,null,null,null,null,null,null,null,null,null,null,null,null,"承認",null,null,null,"点検",null,null,null,"作成"]
[null,null,null,null,null,{"$f":"F33","v":0},null,null,null,null,null,null,null,null,null,null,null,null,null,null,null,null,null,null,null,null,null,null,null,null,null,null,null,null,null,{"$f":"+AJ33","v":"2020-06-10"}]
[null,null,null,null,null,null,null,null,null,null,null,null,null,null,null,null,null,null,null,null,null,null,null,null,null,null,null,null,null,null,null,null,null,null,null,null,{"$f":"+AK34","v":"牛河"}]
[]
[null,null,null,null,null,"手配着手日",null,null,null,"完了日",null,null,null," "]
[]
[]
[null,null,null,null,null,"経路　発行（担当） →[製造部長] →[部品調達] → [工程担当]　",null,null,null,null,null,null,null,null,null,null,null,null,null,null,null,null,null,null,null,null,null,null,null,null,null,"株式会社　AAAAA"]
[]
[]
[null,null,null,null,null,"[形式003]",null,null,null,null,null,null,null,null,null,null,"製作指示書",null,null,null,null,null,null,null,null,null,null,"機械加工 1"]
[null,null,null,null,null,"　",null,null,"　",null,"　",null,null,null,null,null,null,null,null,null,null,null,null,null,null,null,null,null,null,null,null,null,null,null,"帳票Ｎｏ.",null,null,1018]
[]
[null,null,null,"使用方法¨管理規定標準書の本帳票記入要領参照","使用目的¨機械に完成日を知らせ、工数を集計する","機　番",null,null,null,{"$f":"Y16","v":"F-7432"},null,null,null,null,null,null,null,"機種形式",null,null,null,{"$f":"I15","v":0}]
[null,null,null,null,null,"契約先",null,null,null,{"$f":"I8","v":0},null,null,null,null,null,null,null,null,null,null,null,"納入先",null,null,null,{"$f":"I11","v":0}]
[]
[null,null,null,null,null,"　",null,null,null,null,null,null,null,null,null,"ＭＣ納期",null,null,null,"穴加工納期",null,null,null,"平研納期",null,null,null,"JB納期",null,null,null,"円筒納期",null,null,null,"検査納期"]
[null,null,null,null,null," "]
[null,null,null,null,null," "]
[]
[null,null,null,null,null,"ＭＣ",null,null,null,null,null,null,null,null,null,null,null,null,null,null,null,null,null,null,null,null,null,null,null,null,null,null,null,null,null,null," "]
[]
[null,null,null,null,null,"穴加工"]
[null,null,null,null,null,null,null,null,null,null,null,null,null,null,null,null,null,null,null,null,null,null,null,null,null,null,null,null,null,null,null,null,null,null,null,null," "]
[null,null,null,null,null,"平面研削"]
[null,null,null,null,null,null,null,null,null,null,null,null,null,null,null,null,null,null,null,null,null,null,null,null,null,null,null,null,null,null,null,null,null,null,null,null," "]
[null,null,null,null,null,"ボーリング"]
[]
[null,null,null,null,null,"円筒研削",null,null,null,null,null,null,null,null,null,null,null,null,null,null,null,null,null,null,null,null,null,null,null,null,null,null,null,null,null,null," "]
[]
[null,null,null,null,null,"検査",null,null,null,null,null,null,null,null,null,null,null,null,null,null,null,null,null,null,null,null,null,null,null,null,null,null,null,null,null,null," "]
[]
[null,null,null,null,null,"経路　発行（担当） →[製造部長] →[機械加工] → [工程担当]　",null,null,null,null,null,null,null,null,null,null,null,null,null,null,null,null,null,null,null,null,null,null,null,null,null,"株式会社　AAAAA"]
[]
[]
[]
[null,null,null,null,null,"　",null,null,null,null,null,null,null,null,null,null,"製作指示書",null,null,null,null,null,null,null,null,null,null,"機械加工 2"]
[null,null,null,null,null,"　",null,null,"　",null,"　",null,null,null,null,null,null,null,null,null,null,null,null,null,null,null,null,null,null,null,null,null,null,null,"帳票Ｎｏ.",null,null,1019]
[]
[null,null,null,"使用方法¨管理規定標準書の本帳票記入要領参照","使用目的¨機械に完成日を知らせ、工数を集計する","機　番",null,null,null,{"$f":"Y16","v":"F-7432"},null,null,null,null,null,null,null,"機種形式",null,null,null,{"$f":"I15","v":0}]
[null,null,null,null,null,"契約先",null,null,null,{"$f":"I8","v":0},null,null,null,null,null,null,null,null,null,null,null,"納入先",null,null,null,{"$f":"I11","v":0}]
[]
[null,null,null,null,null," ",null,null,null,null,null,null,null,null,null,"ＭＣ納期",null,null,null,"穴加工納期",null,null,null,"平研納期",null,null,null,"JB納期",null,null,null,"円筒納期",null,null,null,"検査納期"]
[null,null,null,null,null," "]
[null,null,null,null,null," "]
[]
[null,null,null,null,null,"ＭＣ",null,null,null,null,null,null,null,null,null,null,null,null,null,null,null,null,null,null,null,null,null,null,null,null,null,null,null,null,null,null," "]
[]
[null,null,null,null,null,"穴加工"]
[null,null,null,null,null,null,null,null,null,null,null,null,null,null,null,null,null,null,null,null,null,null,null,null,null,null,null,null,null,null,null,null,null,null,null,null," "]
[null,null,null,null,null,"平面研削"]
[null,null,null,null,null,null,null,null,null,null,null,null,null,null,null,null,null,null,null,null,null,null,null,null,null,null,null,null,null,null,null,null,null,null,null,null," "]
[null,null,null,null,null,"ボーリング"]
[]
[null,null,null,null,null,"円筒研削",null,null,null,null,null,null,null,null,null,null,null,null,null,null,null,null,null,null,null,null,null,null,null,null,null,null,null,null,null,null," "]
[]
[null,null,null,null,null,"検査",null,null,null,null,null,null,null,null,null,null,null,null,null,null,null,null,null,null,null,null,null,null,null,null,null,null,null,null,null,null," "]
[]
[null,null,null,null,null,"経路　発行（担当） →[製造部長] →[機械加工] → [工程担当]　",null,null,null,null,null,null,null,null,null,null,null,null,null,null,null,null,null,null,null,null,null,null,null,null,null,"株式会社　AAAAA"]
[]
[]
[null,null,null,null,null,"　",null,null,null,null,null,null,null,null,null,null,"製作指示書",null,null,null,null,null,null,null,null,null,null,"機械加工 3"]
[null,null,null,null,null,"　",null,null,"　",null,"　",null,null,null,null,null,null,null,null,null,null,null,null,null,null,null,null,null,null,null,null,null,null,null,"帳票Ｎｏ.",null,null,1020]
[]
[null,null,null,"使用方法¨管理規定標準書の本帳票記入要領参照","使用目的¨機械に完成日を知らせ、工数を集計する","機　番",null,null,null,{"$f":"Y16","v":"F-7432"},null,null,null,null,null,null,null,"機種形式",null,null,null,{"$f":"I15","v":0}]
[null,null,null,null,null,"契約先",null,null,null,{"$f":"I8","v":0},null,null,null,null,null,null,null,null,null,null,null,"納入先",null,null,null,{"$f":"I11","v":0}]
[]
[null,null,null,null,null," ",null,null,null,null,null,null,null,null,null,"ＭＣ納期",null,null,null,"穴加工納期",null,null,null,"平研納期",null,null,null,"JB納期",null,null,null,"円筒納期",null,null,null,"検査納期"]
[null,null,null,null,null," "]
[null,null,null,null,null,"　"]
[]
[null,null,null,null,null,"ＭＣ",null,null,null,null,null,null,null,null,null,null,null,null,null,null,null,null,null,null,null,null,null,null,null,null,null,null,null,null,null,null," "]
[]
[null,null,null,null,null,"穴加工"]
[null,null,null,null,null,null,null,null,null,null,null,null,null,null,null,null,null,null,null,null,null,null,null,null,null,null,null,null,null,null,null,null,null,null,null,null," "]
[null,null,null,null,null,"平面研削"]
[null,null,null,null,null,null,null,null,null,null,null,null,null,null,null,null,null,null,null,null,null,null,null,null,null,null,null,null,null,null,null,null,null,null,null,null," "]
[null,null,null,null,null,"ボーリング"]
[]
[null,null,null,null,null,"円筒研削",null,null,null,null,null,null,null,null,null,null,null,null,null,null,null,null,null,null,null,null,null,null,null,null,null,null,null,null,null,null," "]
[]
[null,null,null,null,null,"検査",null,null,null,null,null,null,null,null,null,null,null,null,null,null,null,null,null,null,null,null,null,null,null,null,null,null,null,null,null,null," "]
[]
[null,null,null,null,null,"経路　発行（担当） →[製造部長] →[機械加工] → [工程担当]　",null,null,null,null,null,null,null,null,null,null,null,null,null,null,null,null,null,null,null,null,null,null,null,null,null,"株式会社　AAAAA"]

{"sheet":"F出荷指示書","index":3,"n_rows":54,"n_cols":18,"rows_kept":54,"cut":false,"hidden":false,"merged":[[3,5,5,10],[7,3,7,8],[7,12,7,17],[15,3,15,7],[15,9,15,17],[8,3,9,8],[8,11,9,15],[8,16,9,17],[11,3,11,10],[11,12,11,17],[3,12,3,13],[3,14,3,17],[5,15,5,16],[16,3,16,7],[16,9,16,17],[13,3,13,7],[13,9,13,17],[14,3,14,7],[14,9,14,17],[17,3,17,7],[17,9,17,17],[18,3,18,7],[18,9,18,17],[30,5,32,10],[19,3,19,7],[19,9,19,17],[21,3,21,5],[21,8,21,11],[21,13,21,17],[34,3,34,8],[34,12,34,17],[22,3,22,5],[22,8,22,9],[22,10,22,12],[22,13,24,17],[30,12,30,13],[30,14,30,17],[32,15,32,16],[40,3,40,7],[40,9,40,17],[41,3,41,7],[41,9,41,17],[35,3,36,8],[35,11,36,15],[35,16,36,17],[38,3,38,10],[38,12,38,17],[44,3,44,7],[44,9,44,17],[45,3,45,7],[45,9,45,17],[42,3,42,7],[42,9,42,17],[43,3,43,7],[43,9,43,17],[49,13,51,17],[46,3,46,7],[46,9,46,17],[48,3,48,7],[48,13,48,17],[49,2,49,3],[49,4,49,6]]}
[]
[]
[]
[null,null,"帳票No",1023,null,"出　荷　指　示　書",null,null,null,null,null,null,"受注No",null,{"$f":"[1]F入力!$S$7","v":"6007432"}]
[null,null,null,null,null,null,null,null,null,null,null,null,null," ",null,null," "]
[null,null,null,null,null,null,null,null,null,null,null,{"$f":"IF(VALUE(N6)<日付取得!B1,日付取得!A1+1,日付取得!A1)","v":{"$error":"#VALUE!"}},"年",{"$f":"IF(LEFT([1]F入力!$Z$23,2)=\"10\",10,IF(LEFT([1]F入力!$Z$23,2)=\"11\",11,IF(LEFT([1]F入力!$Z$23,2)=\"12\",12,LEFT([1]F入力!$Z$23,1))))","v":""},"月",{"$f":"IF(AND(MID([1]F入力!$Z$23,2,1)=\"/\",LEN([1]F入力!$Z$23)=4),RIGHT([1]F入力!$Z$23,2),IF(AND(MID([1]F入力!$Z$23,3,1)=\"/\",LEN([1]F入力!$Z$23)=5),RIGHT([1]F入力!$Z$23,2),IF(AND(MID([1]F入力!$Z$23,3,1)=\"/\",LEN([1]F入力!$Z$23)=4),RIGHT([1]F入力!$Z$23,1),IF(AND(MID([1]F入力!$Z$23,2,1)=\"/\",LEN([1]F入力!$Z$23)=3),RIGHT([1]F入力!$Z$23,1)))))","v":false},null,"日"]
[]
[null,null,"契約先",{"$f":"[1]F入力!$BF$44","v":0},null,null,null,null,null,null,null,null,"得意先"]
[null,null,"御届先",{"$f":"[1]F入力!$BG$44","v":0},null,null,null,null,null," ",null,{"$f":"[1]F入力!$AA$12","v":0},null,null,null,null,"様"]
[null,null,"会社名",null,null,null,null,null,null,null,"担当者名"]
[]
[null,null,"住所",{"$f":"[1]F入力!$BF$49","v":"広島県福山市南藏王町25-2"},null,null,null,null,null,null,null,"TEL",{"$f":"[1]F入力!$AI$12","v":0}]
[]
[null,null,"機　番","品　　　　　　　名",null,null,null,null,"数量","備　　　　　　　　考"]
[null,null,{"$f":"[1]F入力!$Y$17","v":"F-7432"},{"$f":"[1]F入力!$I$16","v":0},null,null,null,null,{"$f":"[1]F入力!$AE$17","v":0}," "]
[null,null," "," ",null,null,null,null," "," "]
[null,null," "," ",null,null,null,null," "," "]
[null,null," "," ",null,null,null,null," "," "]
[null,null," "," ",null,null,null,null," "," "]
[null,null," "," ",null,null,null,null," ","　"]
[]
[null,null,null," ",null,null,null,null,null,null,null,null,null,"出荷担当者"]
[null,null,"運 送 便",null,null,null,null,null," 株式会社",null,"AAAAA"]
[null,null,null,null,null,null,null,null,null," ","TEL (00)1111-1111"]
[null,null,null,null,null,null,null,null,null," ","FAX (00-1111-1111"]
[]
[null,null,null,null,null,null,null,null,null,null," ",null,null," ",null,null," "]
[null,null,null,null,null,null,null,null,null,null,null,null,null,null,null,null," "]
[]
[]
[null,null,"帳票No",1024,null,"出　荷　指　示　書",null,null,null,null,null,null,"受注No",null,{"$f":"O4","v":"6007432"}]
[null,null,null,null,null,null,null,null,null,null,null,null,null," ",null,null," "]
[null,null,null,null,null,null,null,null,null,null,null,{"$f":"L6","v":{"$error":"#VALUE!"}},"年",{"$f":"N6","v":""},"月",{"$f":"P6","v":false},null,"日"]
[]
[null,null,"契約先",{"$f":"+D8","v":0},null,null,null,null,null,null,null,null,"営業部業務控"]
[null,null,"御届先",{"$f":"+D9","v":0},null,null,null,null,null," ",null,{"$f":"+L9","v":0},null,null,null,null,"様"]
[null,null,"会社名",null,null,null,null,null,null,null,"担当者名"]
[]
[null,null,"住所",{"$f":"D12","v":"広島県福山市南藏王町25-2"},null,null,null,null,null,null,null,"TEL",{"$f":"M12","v":0}]
[]
[null,null,"機　番","品　　　　　　　名",null,null,null,null,"数量","備　　　　　　　　考"]
[null,null,{"$f":"+C15","v":"F-7432"},{"$f":"+D15","v":0},null,null,null,null,{"$f":"+I15","v":0}," "]
[null,null," "," ",null,null,null,null," "," "]
[null,null," "," ",null,null,null,null," "," "]
[null,null," "," ",null,null,null,null," "," "]
[null,null," "," ",null,null,null,null," "," "]
[null,null," "," ",null,null,null,null," "," "]
[]
[null,null,null,null,null,null,null,null,"上記の製品及び部品・付属品一式",null,null,null,null,"受　領　印"]
[null,null," 株式会社",null,"AAAAA",null,null,null,"　　　月　　　日に確かに受領しました。"]
[null,null,null," ","TEL (00)1111-1111",null,null,null,"万一紛失いたしました際は当方の責任で"]
[null,null,null," ","FAX (00-1111-1111",null,null,null,"あることを認めます。"]
[]
[null,null,null,null,null,null,null,null,null,null," ",null,null," ",null,null," "]

{"sheet":"仕入印刷","index":4,"n_rows":68,"n_cols":38,"rows_kept":68,"cut":false,"hidden":false,"merged":[[5,31,5,32],[56,3,56,10],[56,11,56,20],[56,21,56,25],[56,26,56,27],[57,3,57,10],[57,11,57,20],[57,21,57,25],[57,26,57,27],[41,6,41,9],[50,26,50,27],[53,3,53,10],[53,11,53,20],[53,21,53,25],[53,26,53,27],[54,3,54,10],[54,11,54,20],[54,21,54,25],[54,26,54,27],[43,3,43,18],[13,5,13,38],[10,34,12,38],[48,25,48,26],[48,31,48,33],[26,35,26,38],[27,31,27,34],[27,35,27,38],[28,31,28,34],[43,19,43,20],[33,5,33,21],[17,35,17,38],[16,31,16,34],[16,27,16,30],[41,3,41,5],[42,33,42,38],[16,35,16,38],[18,35,18,38],[18,25,18,26],[17,25,17,26],[17,20,17,24],[18,20,18,24],[17,12,17,19],[18,12,18,19],[17,5,17,11],[18,5,18,11],[22,31,22,34],[22,35,22,38],[19,5,19,11],[7,34,9,38],[2,5,2,8],[2,16,3,26],[3,5,3,7],[3,10,3,15],[10,33,12,33],[14,24,14,25],[2,27,3,29],[7,5,9,7],[7,8,9,23],[14,5,14,7],[14,8,14,23],[10,5,12,7],[10,8,12,23],[3,34,3,36],[3,37,3,38],[14,31,14,34],[14,35,14,38],[5,34,5,36],[5,37,5,38],[7,24,9,25],[7,26,9,32],[7,33,9,33],[10,24,12,25],[51,33,51,38],[52,28,52,32],[52,33,52,38],[60,6,60,23],[52,3,52,10],[52,11,52,20],[55,28,55,32],[56,28,56,32],[57,28,57,32],[51,3,51,10],[51,11,51,20],[51,21,51,25],[51,26,51,27],[58,3,58,10],[58,11,58,20],[58,21,58,25],[58,26,58,27],[58,28,58,32],[58,33,58,38],[59,28,59,32],[55,3,55,10],[55,11,55,20],[55,21,55,25],[55,26,55,27],[5,5,6,8],[5,9,6,12],[5,13,6,17],[5,18,6,21],[5,23,6,26],[5,27,6,30],[50,28,50,32],[51,28,51,32],[48,6,48,14],[48,19,48,21],[48,22,48,23],[50,21,50,25],[50,11,50,20],[50,3,50,10],[14,26,14,30],[10,26,12,32],[16,25,16,26],[16,20,16,24],[16,12,16,19],[16,5,16,11],[17,31,17,34],[18,31,18,34],[17,27,17,30],[18,27,18,30],[53,33,53,38],[54,33,54,38],[55,33,55,38],[56,33,56,38],[57,33,57,38],[59,33,59,38],[61,35,61,37],[62,35,62,37],[41,34,41,36],[41,37,41,38],[43,30,43,38],[44,30,44,38],[53,28,53,32],[54,28,54,32],[48,34,48,38],[45,30,45,38],[46,30,46,38],[41,12,41,28],[52,21,52,25],[52,26,52,27],[60,29,63,33],[61,6,61,23],[50,33,50,38],[62,6,63,23],[19,12,19,19],[19,20,19,24],[19,25,19,26],[19,27,19,30],[19,31,19,34],[19,35,19,38],[20,5,20,11],[20,12,20,19],[20,20,20,24],[20,25,20,26],[20,27,20,30],[20,31,20,34],[20,35,20,38],[23,20,23,24],[23,25,23,26],[23,27,23,30],[23,31,23,34],[23,35,23,38],[7,4,24,4],[7,3,24,3],[28,35,28,38],[27,27,27,28],[28,27,28,28],[23,5,23,11],[23,12,23,19],[21,5,21,11],[21,12,21,19],[21,20,21,24],[21,25,21,26],[21,27,21,30],[21,31,21,34],[21,35,21,38],[22,5,22,11],[22,12,22,19],[22,20,22,24],[22,25,22,26],[22,27,22,30],[33,30,33,38],[29,5,29,6],[29,7,30,26],[29,27,32,30],[29,31,32,34],[30,35,30,38],[31,5,32,26],[31,36,31,37],[24,5,24,11],[24,12,24,19],[24,20,24,24],[24,25,24,26],[24,27,24,30],[24,31,24,34],[24,35,24,38],[25,27,25,30],[25,31,25,34],[25,35,25,38],[26,17,26,20],[26,21,26,22],[26,23,26,24],[28,22,28,23],[28,24,28,26],[26,31,26,34]]}
[]
[null,null,null,null,null,null,null,null,null,null," ",null,null,null,null,null,null,null,null,null,null,null,null,null,null,null,null," ",null,null,null," "]
[null,null,null,null,null,"[形式004]",null,null,null,null,null,null,null,null,null,null,"製作指示書",null,null,null,null,null,null,null,null,null,null,"営業控"]
[null,null,null,null,null,"　",null,null,"　",null,"仕入商品",null,null,null,null,null,null,null,null,null,null,null,null,null,null,null,null,null,null,null," ","　",null,null,"　",null,null,"　"]
[]
[null,null,null,null,null,"コードNo",null,null,null,{"$f":"[1]仕入入力!$J$7","v":"0041"},{"$f":"[1]仕入入力!$J$7","v":"0041"},{"$f":"[1]仕入入力!$J$7","v":"0041"},{"$f":"[1]仕入入力!$J$7","v":"0041"},"受注番号",null,null,null,null,{"$f":"[1]仕入入力!$S$7","v":"900040"},null,null,null," ","納入先No",null,null,null,{"$f":"[1]仕入入力!$AB$7","v":"8240"},{"$f":"[1]仕入入力!$AB$7","v":"8240"},{"$f":"[1]仕入入力!$AB$7","v":"8240"},{"$f":"[1]仕入入力!$AB$7","v":"8240"},{"$f":"[1]仕入入力!$AF$7","v":104},null,null,"帳票Ｎｏ.",null,null,1021]
[null,null,null,null,null,null,null,null,null,{"$f":"[1]仕入入力!$J$7","v":"0041"},{"$f":"[1]仕入入力!$J$7","v":"0041"},{"$f":"[1]仕入入力!$J$7","v":"0041"},{"$f":"[1]仕入入力!$J$7","v":"0041"},null,null,null,null,null,null,null,null,null,null,null,null,null,null,{"$f":"[1]仕入入力!$AB$7","v":"8240"},{"$f":"[1]仕入入力!$AB$7","v":"8240"},{"$f":"[1]仕入入力!$AB$7","v":"8240"},{"$f":"[1]仕入入力!$AB$7","v":"8240"}]
[null,null,null,"使用方法¨管理規定標準書の本帳票記入要領参照","使用目的¨業務担当が受注登録をする","契約先",null,null,{"$f":"[1]仕入入力!$I$9","v":"株式会社アイタック"},null,null,null,null,null,null,null,null,null,null,null,null,null,null,null,"契約担当",null,{"$f":"[1]仕入入力!$AA$9","v":0},null,null,null,null,null,null,"電話",{"$f":"[1]仕入入力!$AI$9","v":"0849-22-1234"}]
[]
[]
[null,null,null,null,null,"納入先",null,null,{"$f":"[1]仕入入力!$I$12","v":"株式会社アイタック　名古屋営業所"},null,null,null,null,null,null,null,null,null,null,null,null,null,null,null,"納入担当",null,{"$f":"[1]仕入入力!$AA$12","v":0},null,null,null,null,null,null,"電話",{"$f":"[1]仕入入力!$AI$12","v":"0568-73-1234"}]
[]
[]
[]
[null,null,null,null,null,"機番",null,null,{"$f":"[1]仕入入力!$I$16","v":"G-1040"},null,null,null,null,null,null,null,null,null,null,null,null,null,null,null,"納期",null,{"$f":"[1]仕入入力!$AA$16","v":"5/20"},null,null,null,null,"商品コード",null,null,null,{"$f":"[1]仕入入力!$AJ$16","v":"V"}]
[]
[null,null,null,null,null,"品名",null,null,null,null,null,null,"型式",null,null,null,null,null,null,null,"メーカー",null,null,null,null,"数量",null,"単価",null,null,null,"金額",null,null,null,"販売価格"]
[null,null,null,null,null,{"$f":"[1]仕入入力!$F$19","v":"aaaa"},null,null,null,null,null,null,{"$f":"[1]仕入入力!$M$19","v":"a-1234"},null,null,null,null,null,null,null,{"$f":"[1]仕入入力!$U$19","v":0},null,null,null,null,{"$f":"[1]仕入入力!$Z$19","v":10},null,{"$f":"[1]仕入入力!$AB$19","v":1000},null,null,null,{"$f":"[1]仕入入力!$AF$19","v":10000},null,null,null,{"$f":"[1]仕入入力!$AJ$19","v":15000}]
[null,null,null,null,null,{"$f":"[1]仕入入力!$F$20","v":"bbbb"},null,null,null,null,null,null,{"$f":"[1]仕入入力!$M$20","v":"b-1234"},null,null,null,null,null,null,null,{"$f":"[1]仕入入力!$U$20","v":0},null,null,null,null,{"$f":"[1]仕入入力!$Z$20","v":10},null,{"$f":"[1]仕入入力!$AB$20","v":1200},null,null,null,{"$f":"[1]仕入入力!$AF$20","v":12000},null,null,null,{"$f":"[1]仕入入力!$AJ$20","v":17000}]
[null,null,null,null,null,{"$f":"[1]仕入入力!$F$21","v":0},null,null,null,null,null,null,{"$f":"[1]仕入入力!$M$21","v":0},null,null,null,null,null,null,null,{"$f":"[1]仕入入力!$U$21","v":0},null,null,null,null,{"$f":"[1]仕入入力!$Z$21","v":0},null,{"$f":"[1]仕入入力!$AB$21","v":0},null,null,null,{"$f":"[1]仕入入力!$AF$21","v":""},null,null,null,{"$f":"[1]仕入入力!$AJ$21","v":0}]
[null,null,null,null,null,{"$f":"[1]仕入入力!$F$22","v":0},null,null,null,null,null,null,{"$f":"[1]仕入入力!$M$22","v":0},null,null,null,null,null,null,null,{"$f":"[1]仕入入力!$U$22","v":0},null,null,null,null,{"$f":"[1]仕入入力!$Z$22","v":0},null,{"$f":"[1]仕入入力!$AB$22","v":0},null,null,null,{"$f":"[1]仕入入力!$AF$22","v":""},null,null,null,{"$f":"[1]仕入入力!$AJ$22","v":0}]
[null,null,null,null,null,{"$f":"[1]仕入入力!$F$23","v":0},null,null,null,null,null,null,{"$f":"[1]仕入入力!$M$23","v":0},null,null,null,null,null,null,null,{"$f":"[1]仕入入力!$U$23","v":0},null,null,null,null,{"$f":"[1]仕入入力!$Z$23","v":0},null,{"$f":"[1]仕入入力!$AB$23","v":0},null,null,null,{"$f":"[1]仕入入力!$AF$23","v":""},null,null,null,{"$f":"[1]仕入入力!$AJ$23","v":0}]
[null,null,null,null,null,{"$f":"[1]仕入入力!$F$24","v":0},null,null,null,null,null,null,{"$f":"[1]仕入入力!$M$24","v":0},null,null,null,null,null,null,null,{"$f":"[1]仕入入力!$U$24","v":0},null,null,null,null,{"$f":"[1]仕入入力!$Z$24","v":0},null,{"$f":"[1]仕入入力!$AB$24","v":0},null,null,null,{"$f":"[1]仕入入力!$AF$24","v":""},null,null,null,{"$f":"[1]仕入入力!$AJ$24","v":0}]
[null,null,null,null,null,{"$f":"[1]仕入入力!$F$25","v":0},null,null,null,null,null,null,{"$f":"[1]仕入入力!$M$25","v":0},null,null,null,null,null,null,null,{"$f":"[1]仕入入力!$U$25","v":0},null,null,null,null,{"$f":"[1]仕入入力!$Z$25","v":0},null,{"$f":"[1]仕入入力!$AB$25","v":0},null,null,null,{"$f":"[1]仕入入力!$AF$25","v":""},null,null,null,{"$f":"[1]仕入入力!$AJ$25","v":0}]
[null,null,null,null,null,{"$f":"[1]仕入入力!$F$26","v":0},null,null,null,null,null,null,{"$f":"[1]仕入入力!$M$26","v":0},null,null,null,null,null,null,null,{"$f":"[1]仕入入力!$U$26","v":0},null,null,null,null,{"$f":"[1]仕入入力!$Z$26","v":0},null,{"$f":"[1]仕入入力!$AB$26","v":0},null,null,null,{"$f":"[1]仕入入力!$AF$26","v":""},null,null,null,{"$f":"[1]仕入入力!$AJ$26","v":0}]
[null,null,null,null,null,null,null,null,null,null,null,null,null,null,null,null,null,null,null,null,null,null,null,null,null,null,null,"合計",null,null,null,{"$f":"[1]仕入入力!$AF$27","v":22000},null,null,null,{"$f":"[1]仕入入力!$AJ$27","v":32000}]
[null,null,null,null,null,null,null,null,null,null,null,null,null,null,null,null,null,"非該当証明",null,null,null,{"$f":"[1]仕入入力!$W$28","v":"要"},null,{"$f":"[1]仕入入力!$Y$28","v":"不要"},null,null,null,null,null,null,null,"運      賃",null,null,null,{"$f":"[1]仕入入力!$AJ$28","v":2000}]
[null,null,null,null,null,null,null,null,null,null,null,null,null,null,null,null,null,null,null,null,null,null,null,null,null,null,null,"締日",null,{"$f":"[1]仕入入力!$AD$29","v":31},null,"取 付 費",null,null,null,{"$f":"[1]仕入入力!$AJ$29","v":0}]
[null,null,null,null,null,null,null,null,null,null,null,null,null,null,null,null,null,null,null,null,null,null,null,null,null,null,null,"回収日",null,{"$f":"[1]仕入入力!$AD$30","v":31},null,"価格合計",null,null,null,{"$f":"[1]仕入入力!$AJ$30","v":34000}]
[null,null,null,null,null,"備考",null,{"$f":"[1]仕入入力!$H$31","v":0},null,null,null,null,null,null,null,null,null,null,null,null,null,null,null,null,null,null,null,"承認",null,null,null,"点検",null,null,null,"作成"]
[null,null,null,null,null,null,null,null,null,null,null,null,null,null,null,null,null,null,null,null,null,null,null,null,null,null,null,null,null,null,null,null,null,null,null,{"$f":"[1]仕入入力!$AJ$32","v":"2020-06-10"}]
[null,null,null,null,null,null,null,null,null,null,null,null,null,null,null,null,null,null,null,null,null,null,null,null,null,null,null,null,null,null,null,null,null,null,null,null,{"$f":"[1]仕入入力!$AK$33","v":"業務"}]
[]
[null,null,null,null,null,"経路　発行 [担当] → [製造部長] →[ＰＣ入力] →[保存]　　",null,null,null,null,null,null,null,null,null,null,null,null,null,null,null,null,null,null,null,null,null,null,null,null,"株式会社　AAAAA"]
[]
[]
[]
[]
[]
[]
[]
[null,null,null,"コードNo",null,null,{"$f":"S6","v":"900040"},null,null,null,null,null,"注 文 書　兼　納　品　書",null,null,null,null,null,null,null,null,null,null,null,null,null,null,null,null,null,null,null,null,null,"帳票Ｎｏ.",null,null,1022]
[null,null,"　",null,null,null,null,null,null,null,null,null,null,null,null,null,null,null,null,null,null,null,null,null,null,null,null,null,null,null,"発注日",null,null,{"$f":"[1]仕入入力!$AI$38","v":"2020-06-10"}]
[null,null,"　",{"$f":"[1]仕入入力!$D$39","v":"THN㈱"},null,null,null,null,null,null,null,null,null,null,null,null,null,null,null,"御中　"]
[]
[null,null,null,"いつもお世話になりまして有難うございます。"]
[null,null,null,"下記内容にて発注しますので宜しくお願い致します。"]
[]
[null,null,null,"注 番　　 ",null,null,{"$f":"+I15","v":"G-1040"},null,null,null,null,null,null,null,null,null,null,null,null,"納入日",null,null,{"$f":"IF([1]仕入入力!$W$44=\"\",\"\",[1]仕入入力!$W$44)","v":5},null,"月",{"$f":"IF([1]仕入入力!$Z$44=\"\",\"\",[1]仕入入力!$Z$44)","v":10},null,"日",null,null,null,"発注者",null,null,{"$f":"[1]仕入入力!$AI$44","v":"山田"}]
[]
[null,null,null,"品　　名",null,null,null,null,null,null,null,"型　　式",null,null,null,null,null,null,null,null,null,"メーカー",null,null,null,null,"数量",null,"単　　価",null,null,null,null,"金　　額"]
[null,null,"　",{"$f":"[1]仕入入力!$D$47","v":"aaaa"},null,null,null,null,null,null,null,{"$f":"[1]仕入入力!$L$47","v":"a-1234"},null,null,null,null,null,null,null,null,null,{"$f":"[1]仕入入力!$V$47","v":""},null,null,null,null,{"$f":"[1]仕入入力!$AA$47","v":10},null,{"$f":"[1]仕入入力!$AC$47","v":1000},null,null,null,null,{"$f":"[1]仕入入力!$AH$47","v":10000}]
[null,null,null,{"$f":"[1]仕入入力!$D$48","v":"bbbb"},null,null,null,null,null,null,null,{"$f":"[1]仕入入力!$L$48","v":"b-1234"},null,null,null,null,null,null,null,null,null,{"$f":"[1]仕入入力!$V$48","v":""},null,null,null,null,{"$f":"[1]仕入入力!$AA$47","v":10},null,{"$f":"[1]仕入入力!$AC$48","v":1200},null,null,null,null,{"$f":"[1]仕入入力!$AH$48","v":12000}]
[null,null,null,{"$f":"[1]仕入入力!$D$49","v":""},null,null,null,null,null,null,null,{"$f":"[1]仕入入力!$L$49","v":""},null,null,null,null,null,null,null,null,null,{"$f":"[1]仕入入力!$V$49","v":""},null,null,null,null,{"$f":"[1]仕入入力!$AA$47","v":10},null,{"$f":"[1]仕入入力!$AC$49","v":""},null,null,null,null,{"$f":"[1]仕入入力!$AH$49","v":""}]
[null,null,null,{"$f":"[1]仕入入力!$D$50","v":""},null,null,null,null,null,null,null,{"$f":"[1]仕入入力!$L$50","v":""},null,null,null,null,null,null,null,null,null,{"$f":"[1]仕入入力!$V$50","v":""},null,null,null,null,{"$f":"[1]仕入入力!$AA$47","v":10},null,{"$f":"[1]仕入入力!$AC$50","v":""},null,null,null,null,{"$f":"[1]仕入入力!$AH$50","v":""}]
[null,null,null,{"$f":"[1]仕入入力!$D$51","v":""},null,null,null,null,null,null,null,{"$f":"[1]仕入入力!$L$51","v":""},null,null,null,null,null,null,null,null,null,{"$f":"[1]仕入入力!$V$51","v":""},null,null,null,null,{"$f":"[1]仕入入力!$AA$47","v":10},null,{"$f":"[1]仕入入力!$AC$51","v":""},null,null,null,null,{"$f":"[1]仕入入力!$AH$51","v":""}]
[null,null,null,{"$f":"[1]仕入入力!$D$52","v":""},null,null,null,null,null,null,null,{"$f":"[1]仕入入力!$L$52","v":""},null,null,null,null,null,null,null,null,null,{"$f":"[1]仕入入力!$V$52","v":""},null,null,null,null,{"$f":"[1]仕入入力!$AA$47","v":10},null,{"$f":"[1]仕入入力!$AC$52","v":""},null,null,null,null,{"$f":"[1]仕入入力!$AH$52","v":""}]
[null,null,null,{"$f":"[1]仕入入力!$D$53","v":""},null,null,null,null,null,null,null,{"$f":"[1]仕入入力!$L$53","v":""},null,null,null,null,null,null,null,null,null,{"$f":"[1]仕入入力!$V$53","v":""},null,null,null,null,{"$f":"[1]仕入入力!$AA$47","v":10},null,{"$f":"[1]仕入入力!$AC$53","v":""},null,null,null,null,{"$f":"[1]仕入入力!$AH$53","v":""}]
[null,null,null,{"$f":"[1]仕入入力!$D$54","v":""},null,null,null,null,null,null,null,{"$f":"[1]仕入入力!$L$54","v":""},null,null,null,null,null,null,null,null,null,{"$f":"[1]仕入入力!$V$54","v":""},null,null,null,null,{"$f":"[1]仕入入力!$AA$47","v":10},null,{"$f":"[1]仕入入力!$AC$54","v":""},null,null,null,null,{"$f":"[1]仕入入力!$AH$54","v":""}]
[null,null,null,null,null,null,null,null,null,null,null,null,null,null,null,null,null,null,null,null,null,null,null,null,null,null,null,null,"合　　計",null,null,null,null,{"$f":"[1]仕入入力!$AH$55","v":22000}]
[null,null,null,"納入先",null,null,{"$f":"IF([1]仕入入力!$G$56=\"\",\"\",[1]仕入入力!$G$56)","v":""},null,null,null,null,null,null,null,null,null,null,null,null,null,null,null,null,null,"承認",null,null,null,null,"点検",null,null,null,null,"発注者印"]
[null,null,null,null,null,null,{"$f":"IF([1]仕入入力!$G$57=\"\",\"\",[1]仕入入力!$G$57)","v":""},null,null,null,null,null,null,null,null,null,null,null,null,null,null,null,null,null,null,null,null,null,null,null,null,null,null,null,null,{"$f":"$AJ$31","v":"2020-06-10"}]
[null,null,null,"備考",null,null,{"$f":"IF([1]仕入入力!$G$58=\"\",\"\",[1]仕入入力!$G$58)","v":""},null,null,null,null,null,null,null,null,null,null,null,null,null,null,null,null,null,null,null,null,null,null,null,null,null,null,null,null,{"$f":"AK32","v":"業務"}]
[]
[null,"　　"]
[]
[]
[null,"　"]

{"sheet":"仕入出荷指示書","index":5,"n_rows":54,"n_cols":21,"rows_kept":54,"cut":false,"hidden":false,"merged":[[3,5,5,10],[7,3,7,8],[7,12,7,17],[8,3,9,8],[8,11,9,15],[8,16,9,17],[3,12,3,13],[3,14,3,17],[5,15,5,16],[11,3,11,10],[11,12,11,17],[13,3,13,7],[13,9,13,17],[14,3,14,7],[14,9,14,17],[15,3,15,7],[15,9,15,17],[16,3,16,7],[16,9,16,17],[17,3,17,7],[17,9,17,17],[18,3,18,7],[18,9,18,17],[19,3,19,7],[19,9,19,17],[21,3,21,5],[21,8,21,11],[21,13,21,17],[38,3,38,10],[38,12,38,17],[22,3,22,5],[22,8,22,9],[22,10,22,12],[22,13,24,17],[30,5,32,10],[30,12,30,13],[30,14,30,17],[34,3,34,8],[34,12,34,17],[35,3,36,8],[35,11,36,15],[35,16,36,17],[32,15,32,16],[40,3,40,7],[40,9,40,17],[41,3,41,7],[41,9,41,17],[42,3,42,7],[42,9,42,17],[43,3,43,7],[43,9,43,17],[44,3,44,7],[44,9,44,17],[45,3,45,7],[45,9,45,17],[46,3,46,7],[46,9,46,17],[48,3,48,7],[48,13,48,17],[49,8,49,11],[49,13,51,17],[50,8,50,11]]}
[]
[]
[]
[null,null,"帳票No",1023,null,"出　荷　指　示　書",null,null,null,null,null,null,"受注No",null,{"$f":"[1]仕入入力!$S$7","v":"900040"}]
[null,null,null,null,null,null,null,null,null,null,null,null,null," ",null,null," "]
[null,null,null,null,null,null,null,null,null,null,null,{"$f":"IF(VALUE(N6)<日付取得!B1,日付取得!A1+1,日付取得!A1)","v":2019},"年",{"$f":"IF(LEFT([1]仕入入力!AA16,2)=\"10\",10,IF(LEFT([1]仕入入力!AA16,2)=\"11\",11,IF(LEFT([1]仕入入力!AA16,2)=\"12\",12,LEFT([1]仕入入力!AA16,1))))","v":"5"},"月",{"$f":"IF(AND(MID([1]仕入入力!$AA$16,2,1)=\"/\",LEN([1]仕入入力!$AA$16)=4),RIGHT([1]仕入入力!$AA$16,2),IF(AND(MID([1]仕入入力!$AA$16,3,1)=\"/\",LEN([1]仕入入力!$AA$16)=5),RIGHT([1]仕入入力!$AA$16,2),IF(AND(MID([1]仕入入力!$AA$16,3,1)=\"/\",LEN([1]仕入入力!$AA$16)=4),RIGHT([1]仕入入力!$AA$16,1),IF(AND(MID([1]仕入入力!$AA$16,2,1)=\"/\",LEN([1]仕入入力!$AA$16)=3),RIGHT([1]仕入入力!$AA$16,1)))))","v":"20"},null,"日"]
[]
[null,null,"契約先",{"$f":"[1]仕入入力!$I$9","v":"株式会社アイタック"},null,null,null,null,null,null,null,null,"得意先",null,null,null,null,null,null,null," "]
[null,null,"御届先",{"$f":"[1]仕入入力!$I$12","v":"株式会社アイタック　名古屋営業所"},null,null,null,null,null," ",null,{"$f":"IF([1]仕入入力!$AA$12=\"\",\"\",[1]仕入入力!$AA$12)","v":""},null,null,null,null,"様"]
[null,null,"会社名",null,null,null,null,null,null,null,"担当者名"]
[]
[null,null,"住所",{"$f":"[1]仕入入力!$BF$73","v":"広島県福山市南藏王町25-2"},null,null,null,null,null,null,null,"TEL",{"$f":"[1]仕入入力!$AI$12","v":"0568-73-1234"}]
[]
[null,null,"機　番","品　　　　　　　名",null,null,null,null,"数量","備　　　　　　　　考"]
[null,null,{"$f":"[1]仕入入力!$I$16","v":"G-1040"},{"$f":"[1]仕入入力!$F$19&\"-\"&[1]仕入入力!$M$19","v":"aaaa-a-1234"},null,null,null,null,{"$f":"[1]仕入入力!$Z$19","v":10},{"$f":"IF([1]仕入入力!$H$31=\"\",\"\",[1]仕入入力!$H$31)","v":""}]
[null,null,null,{"$f":"[1]仕入入力!$F$20&\"-\"&[1]仕入入力!$M$20","v":"bbbb-b-1234"},null,null,null,null,{"$f":"IF([1]仕入入力!$Z$20=\"\",\"\",[1]仕入入力!$Z$20)","v":10}]
[null,null,null,{"$f":"[1]仕入入力!$F$21&\"-\"&[1]仕入入力!$M$21","v":"-"},null,null,null,null,{"$f":"IF([1]仕入入力!$Z$21=\"\",\"\",[1]仕入入力!$Z$21)","v":""}]
[null,null,null,{"$f":"[1]仕入入力!$F$22&\"-\"&[1]仕入入力!$M$22","v":"-"},null,null,null,null,{"$f":"IF([1]仕入入力!$Z$22=\"\",\"\",[1]仕入入力!$Z$22)","v":""}]
[null,null,null,{"$f":"[1]仕入入力!$F$23&\"-\"&[1]仕入入力!$M$23","v":"-"},null,null,null,null,{"$f":"IF([1]仕入入力!$Z$23=\"\",\"\",[1]仕入入力!$Z$23)","v":""}]
[null,null,null,{"$f":"[1]仕入入力!$F$24&\"-\"&[1]仕入入力!$M$24","v":"-"},null,null,null,null,{"$f":"IF([1]仕入入力!$Z$24=\"\",\"\",[1]仕入入力!$Z$24)","v":""}]
[]
[null,null,null," ",null,null,null,null,null,null,null,null,null,"出荷担当者"]
[null,null,"運 送 便"]
[]
[]
[]
[null,null,null,null,null,null,null,null,null,null," ",null,null," ",null,null," "]
[null,null,null,null,null,null,null,null,null,null,null,null,null,null,null,null," "]
[]
[]
[null,null,"帳票No",1024,null,"出　荷　指　示　書",null,null,null,null,null,null,"受注No",null,{"$f":"O4","v":"900040"}]
[null,null,null,null,null,null,null,null,null,null,null,null,null," ",null,null," "]
[null,null,null,null,null,null,null,null,null,null,null,{"$f":"L6","v":2019},"年",{"$f":"N6","v":"5"},"月",{"$f":"P6","v":"20"},null,"日"]
[]
[null,null,"契約先",{"$f":"+D8","v":"株式会社アイタック"},null,null,null,null,null,null,null,null,"営業部業務控"]
[null,null,"御届先",{"$f":"+D9","v":"株式会社アイタック　名古屋営業所"},null,null,null,null,null," ",null,{"$f":"+L9","v":""},null,null,null,null,"様"]
[null,null,"会社名",null,null,null,null,null,null,null,"担当者名"]
[]
[null,null,"住所",{"$f":"D12","v":"広島県福山市南藏王町25-2"},null,null,null,null,null,null,null,"TEL",{"$f":"M12","v":"0568-73-1234"}]
[]
[null,null,"機　番","品　　　　　　　名",null,null,null,null,"数量","備　　　　　　　　考"]
[null,null,{"$f":"+C15","v":"G-1040"},{"$f":"+D15","v":"aaaa-a-1234"},null,null,null,null,{"$f":"+I15","v":10},{"$f":"J15","v":""}]
[null,null,null,{"$f":"+D16","v":"bbbb-b-1234"},null,null,null,null,{"$f":"+I16","v":10}]
[null,null,null,{"$f":"+D17","v":"-"},null,null,null,null,""]
[null,null,null,{"$f":"+D18","v":"-"},null,null,null,null,""]
[null,null,null,{"$f":"+D19","v":"-"},null,null,null,null,""]
[null,null,null,{"$f":"+D20","v":"-"},null,null,null,null,""]
[]
[null,null,null,null,null,null,null,null,"上記の製品及び部品・付属品一式",null,null,null,null,"受　領　印"]
[null,null,null,null,null,null,null,null,"　　　月　　　日に確かに受領しました。"]
[null,null,null,null,null,null,null,null,"万一紛失いたしました際は当方の責任で"]
[null,null,null,null,null,null,null,null,"あることを認めます。"]
[]
[null,null,null,null,null,null,null,null,null,null," ",null,null," ",null,null," "]

{"sheet":"修理印刷","index":6,"n_rows":434,"n_cols":38,"rows_kept":434,"cut":false,"hidden":false,"merged":[[59,12,60,14],[114,12,115,14],[173,12,174,14],[226,12,227,14],[277,12,278,14],[329,12,330,14],[382,12,383,14],[418,15,418,18],[418,19,418,20],[418,21,418,22],[426,5,426,29],[5,31,5,32],[271,7,271,28],[258,5,258,9],[258,10,258,17],[258,26,258,31],[258,32,258,38],[259,5,259,7],[259,8,259,38],[260,5,260,38],[261,5,261,38],[262,5,262,38],[263,5,263,38],[264,33,264,34],[264,35,264,38],[265,5,265,7],[265,8,265,26],[265,27,269,30],[265,31,269,34],[266,23,267,26],[267,35,267,38],[268,36,268,37],[231,3,255,3],[231,4,270,4],[231,5,231,38],[232,5,233,8],[232,9,233,28],[232,29,232,34],[232,35,232,38],[233,29,235,34],[233,35,235,38],[234,5,235,8],[234,9,235,28],[240,5,240,22],[240,23,240,25],[240,26,240,31],[240,32,240,38],[241,5,241,22],[241,23,241,25],[241,26,241,31],[241,32,241,38],[242,5,242,22],[242,23,242,25],[242,26,242,31],[242,32,242,38],[243,5,243,22],[243,23,243,25],[243,26,243,31],[243,32,243,38],[244,5,244,22],[244,23,244,25],[244,26,244,31],[255,10,255,17],[255,18,255,22],[158,36,158,38],[159,5,159,7],[159,8,159,26],[159,27,163,30],[159,31,163,34],[160,23,161,26],[161,35,161,38],[162,36,162,37],[164,5,164,28],[164,30,164,38],[165,7,165,28],[226,15,227,26],[226,27,227,31],[227,34,227,36],[227,37,227,38],[228,15,228,38],[254,26,254,31],[254,32,254,38],[250,26,250,31],[250,32,250,38],[251,5,251,22],[251,23,251,25],[251,26,251,31],[251,32,251,38],[252,5,252,22],[252,23,252,25],[252,26,252,31],[252,32,252,38],[253,5,253,22],[253,23,253,25],[253,26,253,31],[253,32,253,38],[147,5,147,22],[147,23,147,25],[147,26,147,31],[147,32,147,38],[148,26,148,31],[148,32,148,38],[149,5,149,9],[149,10,149,17],[149,18,149,22],[149,23,149,24],[149,26,149,31],[149,32,149,38],[150,5,150,9],[150,10,150,17],[150,18,150,22],[150,23,150,24],[150,26,150,31],[150,32,150,38],[148,5,148,22],[148,23,148,25],[142,5,142,22],[142,23,142,25],[142,26,142,31],[142,32,142,38],[143,5,143,22],[143,23,143,25],[143,26,143,31],[143,32,143,38],[144,5,144,22],[144,23,144,25],[144,26,144,31],[144,32,144,38],[145,5,145,22],[145,23,145,25],[145,26,145,31],[145,32,145,38],[146,5,146,22],[146,23,146,25],[146,26,146,31],[146,32,146,38],[119,3,146,3],[119,4,161,4],[119,5,121,7],[119,8,121,23],[119,24,121,25],[119,26,121,32],[119,33,121,33],[119,34,121,38],[122,5,124,7],[122,8,124,23],[122,24,124,25],[122,26,124,32],[122,33,124,33],[122,34,124,38],[125,5,125,38],[127,5,127,25],[127,34,127,35],[128,5,129,25],[129,27,129,32],[129,34,129,35],[131,5,133,7],[131,8,133,22],[131,23,133,25],[131,26,133,33],[131,34,131,38],[136,32,136,38],[137,5,137,22],[137,23,137,25],[137,26,137,31],[137,32,137,38],[138,5,138,22],[138,23,138,25],[195,5,195,22],[195,23,195,25],[195,32,195,38],[196,5,196,22],[196,23,196,25],[196,26,196,31],[196,32,196,38],[197,5,197,22],[197,23,197,25],[197,26,197,31],[197,32,197,38],[114,15,115,26],[114,27,115,30],[116,15,116,38],[117,13,118,17],[117,18,118,21],[117,22,118,33],[117,37,117,38],[138,26,138,31],[138,32,138,38],[139,5,139,22],[139,23,139,25],[139,26,139,31],[139,32,139,38],[140,5,140,22],[140,23,140,25],[140,26,140,31],[140,32,140,38],[141,5,141,22],[141,23,141,25],[141,26,141,31],[141,32,141,38],[151,18,151,22],[151,23,151,24],[152,5,152,9],[152,10,152,17],[152,26,152,31],[152,32,152,38],[175,15,175,38],[192,32,192,38],[193,5,193,22],[193,23,193,25],[193,26,193,31],[193,32,193,38],[194,5,194,22],[194,23,194,25],[194,26,194,31],[194,32,194,38],[151,5,151,9],[151,10,151,17],[151,26,151,31],[151,32,151,38],[152,18,152,25],[153,5,153,7],[153,8,153,38],[154,5,154,38],[155,5,155,38],[156,5,156,38],[157,5,157,38],[158,30,158,31],[158,32,158,33],[158,34,158,35],[176,5,177,6],[176,7,177,12],[132,34,133,38],[134,5,134,22],[134,23,134,25],[134,26,134,31],[134,32,134,38],[135,5,135,22],[135,23,135,25],[135,26,135,31],[135,32,135,38],[136,5,136,22],[136,23,136,25],[136,26,136,31],[173,27,174,31],[219,5,219,23],[370,5,370,7],[370,8,370,26],[317,5,318,8],[317,9,318,12],[317,13,318,16],[319,5,321,8],[319,9,321,12],[319,13,321,16],[322,5,322,24],[361,10,361,17],[361,18,361,22],[361,23,361,24],[361,26,361,31],[361,32,361,38],[362,5,362,9],[362,10,362,17],[362,18,362,22],[362,23,362,24],[376,7,376,28],[368,5,368,38],[369,33,369,34],[369,35,369,38],[370,27,374,30],[370,31,374,34],[372,35,372,38],[373,36,373,37],[375,30,375,38],[371,23,372,26],[363,5,363,9],[363,10,363,17],[363,26,363,31],[363,32,363,38],[364,5,364,7],[364,8,364,38],[365,5,365,38],[375,5,375,24],[366,5,366,38],[367,5,367,38],[359,23,359,25],[359,26,359,31],[359,32,359,38],[360,10,360,17],[360,18,360,22],[360,23,360,24],[360,26,360,31],[360,32,360,38],[358,5,358,22],[358,23,358,25],[358,26,358,31],[334,3,360,3],[334,4,375,4],[341,27,341,32],[341,34,341,35],[343,27,343,32],[353,32,353,38],[352,5,352,22],[352,23,352,25],[352,26,352,31],[352,32,352,38],[351,5,351,22],[351,23,351,25],[351,26,351,31],[351,32,351,38],[346,5,346,22],[346,23,346,25],[346,32,346,38],[349,5,349,22],[349,23,349,25],[349,26,349,31],[349,32,349,38],[282,3,307,3],[282,4,322,4],[280,5,281,6],[280,7,281,12],[280,13,281,15],[280,27,280,30],[280,31,280,34],[280,35,280,38],[281,27,281,30],[281,31,281,34],[281,35,281,38],[282,5,282,38],[283,5,284,8],[283,9,284,28],[283,29,283,34],[283,35,283,38],[302,23,302,25],[290,27,290,32],[290,34,290,35],[297,23,297,25],[297,26,297,31],[297,32,297,38],[298,5,298,22],[298,23,298,25],[298,26,298,31],[288,34,288,35],[280,16,281,26],[296,23,296,25],[296,26,296,31],[296,32,296,38],[297,5,297,22],[303,32,303,38],[419,26,419,31],[419,32,419,38],[420,5,420,9],[420,10,420,17],[420,18,420,25],[420,26,420,31],[429,35,429,38],[430,36,430,37],[433,7,433,28],[427,27,431,30],[427,31,431,34],[423,5,423,38],[424,5,424,38],[425,5,425,38],[426,30,426,31],[426,34,426,36],[432,30,432,38],[420,32,420,38],[426,32,426,33],[426,37,426,38],[419,5,419,9],[419,23,419,24],[432,5,432,29],[418,5,418,9],[418,23,418,24],[418,26,418,31],[418,32,418,38],[417,18,417,22],[417,23,417,24],[416,5,416,22],[416,23,416,25],[417,26,417,31],[417,32,417,38],[417,5,417,9],[417,10,417,17],[416,26,416,31],[416,32,416,38],[411,23,411,25],[409,5,409,22],[405,5,405,22],[405,23,405,25],[405,26,405,31],[405,32,405,38],[406,5,406,22],[406,23,406,25],[415,5,415,22],[415,23,415,25],[415,26,415,31],[415,32,415,38],[410,5,410,22],[410,23,410,25],[410,26,410,31],[410,32,410,38],[413,32,413,38],[414,5,414,22],[414,23,414,25],[414,26,414,31],[414,32,414,38],[413,23,413,25],[413,26,413,31],[411,5,411,22],[411,26,411,31],[411,32,411,38],[402,5,402,22],[402,23,402,25],[402,26,402,31],[402,32,402,38],[407,5,407,22],[407,23,407,25],[407,26,407,31],[407,32,407,38],[408,32,408,38],[406,26,406,31],[406,32,406,38],[403,5,403,22],[403,23,403,25],[403,26,403,31],[403,32,403,38],[404,5,404,22],[404,23,404,25],[404,26,404,31],[404,32,404,38],[385,3,412,3],[385,4,427,4],[385,5,386,8],[385,9,386,12],[387,5,389,7],[387,8,389,23],[390,5,392,7],[390,8,392,23],[399,5,401,7],[399,8,401,22],[421,5,421,7],[421,8,421,38],[422,5,422,38],[412,5,412,22],[412,23,412,25],[412,26,412,31],[412,32,412,38],[413,5,413,22],[409,23,409,25],[409,26,409,31],[409,32,409,38],[408,5,408,22],[408,23,408,25],[408,26,408,31],[399,23,401,25],[399,26,401,33],[399,34,399,38],[400,34,401,38],[390,33,392,33],[390,34,392,38],[393,5,393,38],[390,24,392,25],[22,32,22,38],[22,26,22,31],[37,10,37,17],[41,5,41,7],[41,8,41,38],[42,5,42,38],[43,5,43,38],[40,26,40,31],[40,32,40,38],[49,35,49,38],[46,32,46,33],[46,37,46,38],[32,26,32,31],[32,32,32,38],[33,5,33,22],[33,23,33,25],[32,23,32,25],[34,32,34,38],[36,26,36,31],[36,32,36,38],[35,5,35,22],[35,23,35,25],[35,26,35,31],[35,32,35,38],[40,5,40,9],[33,32,33,38],[28,23,28,25],[28,26,28,31],[30,26,30,31],[40,10,40,17],[39,5,39,9],[38,17,38,20],[2,15,3,26],[2,27,3,30],[15,27,15,32],[17,27,17,32],[13,5,13,38],[7,33,9,33],[10,33,12,33],[10,34,12,38],[7,5,9,7],[7,8,9,23],[7,24,9,25],[15,34,15,35],[17,34,17,35],[4,15,4,38],[5,23,6,26],[5,27,6,30],[15,5,15,25],[16,5,17,25],[2,12,3,14],[33,26,33,31],[382,15,383,26],[382,27,383,30],[31,26,31,31],[31,32,31,38],[30,5,30,22],[38,32,38,38],[37,18,37,22],[37,23,37,24],[36,5,36,22],[36,23,36,25],[37,26,37,31],[37,32,37,38],[332,5,333,6],[332,7,333,12],[332,13,333,15],[332,16,333,26],[332,27,332,30],[332,31,332,34],[332,35,332,38],[333,27,333,30],[333,31,333,34],[333,35,333,38],[334,5,334,38],[335,5,336,8],[335,9,336,28],[335,29,335,34],[335,35,335,38],[59,15,60,26],[59,27,60,30],[46,27,46,29],[77,26,77,31],[395,5,395,25],[396,5,397,25],[395,27,395,32],[395,34,395,35],[397,27,397,32],[397,34,397,35],[387,24,389,25],[387,26,389,32],[387,33,389,33],[387,34,389,38],[384,15,384,38],[385,13,386,17],[385,18,386,21],[385,22,386,33],[385,37,385,38],[34,5,34,22],[34,23,34,25],[34,26,34,31],[39,26,39,31],[39,32,39,38],[38,23,38,24],[38,26,38,31],[50,36,50,37],[390,26,392,32],[336,29,338,34],[336,35,338,38],[337,5,338,8],[337,9,338,28],[362,26,362,31],[362,32,362,38],[358,32,358,38],[359,5,359,22],[5,3,32,3],[5,4,47,4],[5,5,6,8],[5,9,6,12],[5,13,6,17],[5,18,6,21],[5,37,5,38],[7,34,9,38],[7,26,9,32],[10,5,12,7],[10,8,12,23],[10,24,12,25],[10,26,12,32],[44,5,44,38],[45,5,45,38],[46,30,46,31],[46,34,46,36],[20,34,21,38],[19,5,21,7],[19,26,21,33],[19,23,21,25],[19,34,19,38],[22,5,22,22],[29,32,29,38],[22,23,22,25],[29,5,29,22],[29,23,29,25],[29,26,29,31],[19,21,21,22],[19,8,21,20],[47,27,51,30],[30,23,30,25],[28,5,28,22],[28,32,28,38],[25,5,25,22],[25,23,25,25],[25,26,25,31],[23,23,23,25],[23,26,23,31],[23,32,23,38],[24,32,24,38],[24,5,24,22],[23,5,23,22],[25,32,25,38],[26,5,26,22],[53,7,53,28],[47,31,51,34],[26,23,26,25],[26,26,26,31],[26,32,26,38],[24,23,24,25],[24,26,24,31],[27,5,27,22],[27,23,27,25],[27,26,27,31],[38,21,38,22],[32,5,32,22],[30,32,30,38],[31,5,31,22],[31,23,31,25],[27,32,27,38],[52,5,52,21],[52,30,52,38],[46,25,46,26],[62,3,89,3],[62,4,104,4],[61,13,61,17],[61,18,61,21],[61,22,61,33],[60,37,60,38],[62,5,64,7],[62,8,64,23],[62,24,64,25],[62,26,64,32],[62,33,64,33],[62,34,64,38],[65,5,67,7],[65,8,67,23],[65,24,67,25],[65,26,67,32],[65,33,67,33],[65,34,67,38],[68,5,68,38],[70,5,70,25],[70,34,70,35],[71,5,72,25],[72,27,72,32],[72,34,72,35],[74,5,76,7],[74,8,76,22],[74,23,76,25],[74,26,76,33],[74,34,74,38],[75,34,76,38],[77,5,77,22],[77,23,77,25],[77,32,77,38],[78,5,78,22],[78,23,78,25],[78,26,78,31],[78,32,78,38],[79,5,79,22],[79,23,79,25],[79,26,79,31],[79,32,79,38],[80,5,80,22],[80,23,80,25],[80,26,80,31],[80,32,80,38],[81,5,81,22],[81,23,81,25],[81,26,81,31],[81,32,81,38],[82,5,82,22],[82,23,82,25],[82,26,82,31],[82,32,82,38],[83,5,83,22],[83,23,83,25],[83,26,83,31],[83,32,83,38],[84,5,84,22],[84,23,84,25],[84,26,84,31],[84,32,84,38],[85,5,85,22],[85,23,85,25],[85,26,85,31],[85,32,85,38],[90,5,90,22],[90,23,90,25],[90,26,90,31],[90,32,90,38],[91,5,91,22],[91,23,91,25],[91,26,91,31],[91,32,91,38],[92,23,92,24],[92,26,92,31],[92,32,92,38],[92,5,92,9],[92,10,92,17],[92,18,92,22],[86,5,86,22],[86,23,86,25],[86,26,86,31],[86,32,86,38],[87,5,87,22],[87,23,87,25],[87,26,87,31],[87,32,87,38],[88,5,88,22],[88,23,88,25],[88,26,88,31],[88,32,88,38],[89,5,89,22],[89,23,89,25],[89,26,89,31],[89,32,89,38],[102,27,106,30],[102,31,106,34],[104,35,104,38],[105,36,105,37],[107,5,107,28],[107,30,107,38],[94,5,94,9],[94,10,94,17],[94,18,94,22],[94,23,94,24],[94,26,94,31],[94,32,94,38],[95,5,95,9],[95,10,95,17],[95,18,95,25],[95,26,95,31],[95,32,95,38],[101,34,101,35],[101,36,101,38],[102,5,102,7],[103,23,104,26],[102,8,102,26],[100,5,100,38],[101,30,101,31],[101,32,101,33],[99,5,99,38],[178,3,204,3],[178,4,219,4],[173,15,174,26],[174,34,174,36],[174,37,174,38],[93,5,93,9],[93,10,93,17],[93,18,93,22],[93,23,93,24],[93,26,93,31],[93,32,93,38],[108,7,108,28],[96,5,96,7],[96,8,96,38],[97,5,97,38],[98,5,98,38],[189,5,189,22],[189,23,189,25],[189,26,189,31],[189,32,189,38],[190,5,190,22],[190,23,190,25],[190,26,190,31],[190,32,190,38],[191,5,191,22],[191,23,191,25],[191,26,191,31],[191,32,191,38],[192,5,192,22],[192,23,192,25],[192,26,192,31],[195,26,195,31],[198,5,198,22],[198,23,198,25],[198,26,198,31],[198,32,198,38],[199,5,199,22],[199,23,199,25],[199,26,199,31],[199,32,199,38],[200,5,200,22],[200,23,200,25],[200,26,200,31],[200,32,200,38],[201,5,201,22],[201,23,201,25],[201,26,201,31],[201,32,201,38],[202,5,202,22],[202,23,202,25],[202,26,202,31],[202,32,202,38],[203,5,203,22],[203,23,203,25],[203,26,203,31],[203,32,203,38],[204,10,204,17],[204,18,204,22],[204,23,204,24],[204,26,204,31],[204,32,204,38],[205,10,205,17],[205,18,205,22],[205,23,205,24],[205,26,205,31],[205,32,205,38],[206,5,206,9],[206,10,206,17],[206,18,206,22],[206,23,206,24],[206,26,206,31],[206,32,206,38],[207,5,207,9],[207,10,207,17],[207,26,207,31],[207,32,207,38],[208,5,208,7],[208,8,208,38],[209,5,209,38],[210,5,210,38],[211,5,211,38],[212,5,212,38],[213,33,213,34],[213,35,213,38],[277,15,278,26],[277,27,278,30],[278,34,278,36],[278,37,278,38],[279,15,279,38],[214,5,214,7],[214,8,214,26],[215,23,216,26],[229,5,230,6],[229,7,230,12],[229,13,230,15],[244,32,244,38],[245,5,245,22],[255,23,255,24],[255,26,255,31],[255,32,255,38],[256,10,256,17],[256,18,256,22],[256,23,256,24],[256,26,256,31],[284,29,286,34],[284,35,286,38],[285,5,286,8],[285,9,286,28],[300,23,300,25],[300,26,300,31],[300,32,300,38],[288,27,288,32],[292,5,292,22],[292,23,292,25],[256,32,256,38],[257,5,257,9],[257,10,257,17],[257,18,257,22],[257,23,257,24],[257,26,257,31],[257,32,257,38],[292,26,292,31],[249,26,249,31],[249,32,249,38],[250,5,250,22],[250,23,250,25],[270,5,270,23],[270,30,270,38],[229,16,230,30],[229,31,229,34],[229,35,229,38],[230,31,230,34],[230,35,230,38],[245,23,245,25],[245,26,245,31],[245,32,245,38],[246,5,246,22],[246,23,246,25],[246,26,246,31],[246,32,246,38],[247,5,247,22],[247,23,247,25],[254,5,254,22],[254,23,254,25],[305,23,305,25],[305,26,305,31],[305,32,305,38],[301,5,301,22],[301,23,301,25],[301,26,301,31],[301,32,301,38],[302,5,302,22],[214,27,218,30],[214,31,218,34],[216,35,216,38],[217,36,217,37],[219,30,219,38],[220,7,220,28],[303,5,303,22],[303,23,303,25],[303,26,303,31],[298,32,298,38],[299,5,299,22],[299,23,299,25],[299,26,299,31],[299,32,299,38],[300,5,300,22],[296,5,296,22],[247,26,247,31],[247,32,247,38],[248,5,248,22],[248,23,248,25],[248,26,248,31],[248,32,248,38],[249,5,249,22],[249,23,249,25],[304,5,304,22],[304,23,304,25],[304,26,304,31],[304,32,304,38],[305,5,305,22],[311,5,311,7],[311,8,311,38],[329,27,330,30],[330,34,330,36],[312,5,312,38],[330,37,330,38],[309,10,309,17],[309,18,309,22],[306,5,306,22],[306,23,306,25],[292,32,292,38],[293,5,293,22],[293,23,293,25],[293,26,293,31],[293,32,293,38],[294,5,294,22],[294,23,294,25],[294,26,294,31],[294,32,294,38],[302,26,302,31],[302,32,302,38],[295,5,295,22],[295,23,295,25],[295,26,295,31],[295,32,295,38],[306,26,306,31],[306,32,306,38],[308,26,308,31],[308,32,308,38],[309,26,309,31],[309,32,309,38],[310,10,310,17],[310,26,310,31],[310,32,310,38],[308,10,308,17],[308,18,308,22],[308,23,308,24],[309,5,309,9],[309,23,309,24],[310,5,310,9],[346,26,346,31],[347,5,347,22],[350,5,350,22],[350,23,350,25],[350,26,350,31],[350,32,350,38],[347,23,347,25],[347,26,347,31],[347,32,347,38],[348,5,348,22],[348,23,348,25],[357,5,357,22],[357,23,357,25],[357,26,357,31],[357,32,357,38],[313,5,313,38],[314,5,314,38]],"merged_total":1058,"flags":["merged_cut"]}
[]
[null,null,null,null,null,"　",null,null," "," "," ",null,null,null,null,null,null,null,null,null,null,null,null,null,null,null," "]
[null,null,null,null,null,"[形式005]",null,null,null,null,null,null,"修理",null,null,"製作指示書",null,null,null,null,null,null,null,null,null,null,null,"営業控",null,null,null," "]
[null,null,null,null,null,null,null,null,null,null," "]
[]
[null,null,null,"使用方法¨管理規定標準書の本帳票記入要領参照","使用目的¨業務担当が受注登録をする","コードNo",null,null,null,{"$f":"[1]修理入力!$J$7","v":0},{"$f":"[1]修理入力!$J$7","v":0},{"$f":"[1]修理入力!$J$7","v":0},{"$f":"[1]修理入力!$J$7","v":0},"受注番号",null,null,null,null,{"$f":"[1]修理入力!$S$7","v":1205930},null,null,null," ","納入先No",null,null,null,{"$f":"[1]修理入力!$AB$7","v":0},{"$f":"[1]修理入力!$AB$7","v":0},{"$f":"[1]修理入力!$AB$7","v":0},{"$f":"[1]修理入力!$AB$7","v":0},{"$f":"[1]修理入力!$AF$7","v":199},null,null,"帳票Ｎｏ.",null,null,1031]
[null,null,null,null,null,null,null,null,null,{"$f":"[1]修理入力!$J$7","v":0},{"$f":"[1]修理入力!$J$7","v":0},{"$f":"[1]修理入力!$J$7","v":0},{"$f":"[1]修理入力!$J$7","v":0},null,null,null,null,null,null,null,null,null,null,null,null,null,null,{"$f":"[1]修理入力!$AB$7","v":0},{"$f":"[1]修理入力!$AB$7","v":0},{"$f":"[1]修理入力!$AB$7","v":0},{"$f":"[1]修理入力!$AB$7","v":0}]
[null,null,null,null,null,"契約先",null,null,{"$f":"[1]修理入力!$I$9","v":0},null,null,null,null,null,null,null,null,null,null,null,null,null,null,null,"契約担当",null,{"$f":"[1]修理入力!$AA$9","v":0},null,null,null,null,null,null,"電話",{"$f":"[1]修理入力!$AI$9","v":0}]
[]
[]
[null,null,null,null,null,"納入先",null,null,{"$f":"[1]修理入力!$I$12","v":0},null,null,null,null,null,null,null,null,null,null,null,null,null,null,null,"納入担当",null,{"$f":"[1]修理入力!$AA$12","v":0},null,null,null,null,null,null,"電話",{"$f":"[1]修理入力!$AI$12","v":0}]
[]
[]
[]
[null,null,null,null,null,null,null,null,null,null,null,null,null,null,null,null,null,null,null,null,null,null,null,null," "]
[null,null,null,null,null,"  無償の場合はクレーム対策書に記入します。　",null,null,null,null,null,null,null,null,null,null,null,null,null,null,null,null,null,null,null,null,null," 現地工事必要",null,null,null,null,null,null,{"$f":"IF([1]修理入力!$AI$17=\"\",\"\",[1]修理入力!$AI$17)","v":""}]
[null,null,null,null,null,"　部品の手配は部品調達指示書に記入します。"]
[null,null,null,null,null,null,null,null,null,null,null,null,null,null,null,null,null,null,null,null,null,null,null,null,null,null,null," 客先へ発送のみ",null,null,null,null,null,null,{"$f":"IF([1]修理入力!$AI$19=\"\",\"\",[1]修理入力!$AI$19)","v":"●"}]
[null,null,null,null,null,null,"　"]
[null,null,null,null,null,"機種　　型式",null,null,{"$f":"IF([1]修理入力!$I$21=\"\",\"\",[1]修理入力!$I$21)","v":""},null,null,null,null,null,null,null,null,null,null,null,null," ",null,"機番",null,null,{"$f":"[1]修理入力!$AA$21","v":"A-123456"},null,null,null,null,null,null,null,"納期"]
[null,null,null,null,null,null,null,null,null,null,null,null,null,null,null,null,null,null,null,null,null,null,null,null,null,null,null,null,null,null,null,null,null,null,{"$f":"[1]修理入力!$AI$22","v":"00:00:00"}]
[]
[null,null,null,null,null,"ユニット名　及び　部品名",null,null,null,null,null,null,null,null,null,null,null,null,null,null,null,null,null,"数量",null,null,"単価",null,null,null,null,null,"金額"]
[null,null,null,null,null,{"$f":"IF([1]修理入力!F25=\"\",\"\",[1]修理入力!F25)","v":""},null,null,null,null,null,null,null,null,null,null,null,null,null,null,null,null,null,{"$f":"IF([1]修理入力!X25=\"\",\"\",[1]修理入力!X25)","v":""},null,null,{"$f":"IF([1]修理入力!AA25=\"\",\"\",[1]修理入力!AA25)","v":""},null,null,null,null,null,{"$f":"IF([1]修理入力!AG25=\"\",\"\",[1]修理入力!AG25)","v":""}]
[null,null,null,null,null,{"$f":"IF([1]修理入力!F26=\"\",\"\",[1]修理入力!F26)","v":""},null,null,null,null,null,null,null,null,null,null,null,null,null,null,null,null,null,{"$f":"IF([1]修理入力!X26=\"\",\"\",[1]修理入力!X26)","v":""},null,null,{"$f":"IF([1]修理入力!AA26=\"\",\"\",[1]修理入力!AA26)","v":""},null,null,null,null,null,{"$f":"IF([1]修理入力!AG26=\"\",\"\",[1]修理入力!AG26)","v":""}]
[null,null,null,null,null,{"$f":"IF([1]修理入力!F27=\"\",\"\",[1]修理入力!F27)","v":""},null,null,null,null,null,null,null,null,null,null,null,null,null,null,null,null,null,{"$f":"IF([1]修理入力!X27=\"\",\"\",[1]修理入力!X27)","v":""},null,null,{"$f":"IF([1]修理入力!AA27=\"\",\"\",[1]修理入力!AA27)","v":""},null,null,null,null,null,{"$f":"IF([1]修理入力!AG27=\"\",\"\",[1]修理入力!AG27)","v":""}]
[null,null,null,null,null,{"$f":"IF([1]修理入力!F28=\"\",\"\",[1]修理入力!F28)","v":""},null,null,null,null,null,null,null,null,null,null,null,null,null,null,null,null,null,{"$f":"IF([1]修理入力!X28=\"\",\"\",[1]修理入力!X28)","v":""},null,null,{"$f":"IF([1]修理入力!AA28=\"\",\"\",[1]修理入力!AA28)","v":""},null,null,null,null,null,{"$f":"IF([1]修理入力!AG28=\"\",\"\",[1]修理入力!AG28)","v":""}]
[null,null,null,null,null,{"$f":"IF([1]修理入力!F29=\"\",\"\",[1]修理入力!F29)","v":""},null,null,null,null,null,null,null,null,null,null,null,null,null,null,null,null,null,{"$f":"IF([1]修理入力!X29=\"\",\"\",[1]修理入力!X29)","v":""},null,null,{"$f":"IF([1]修理入力!AA29=\"\",\"\",[1]修理入力!AA29)","v":""},null,null,null,null,null,{"$f":"IF([1]修理入力!AG29=\"\",\"\",[1]修理入力!AG29)","v":""}]
[null,null,null,null,null,{"$f":"IF([1]修理入力!F30=\"\",\"\",[1]修理入力!F30)","v":""},null,null,null,null,null,null,null,null,null,null,null,null,null,null,null,null,null,{"$f":"IF([1]修理入力!X30=\"\",\"\",[1]修理入力!X30)","v":""},null,null,{"$f":"IF([1]修理入力!AA30=\"\",\"\",[1]修理入力!AA30)","v":""},null,null,null,null,null,{"$f":"IF([1]修理入力!AG30=\"\",\"\",[1]修理入力!AG30)","v":""}]
[null,null,null,null,null,{"$f":"IF([1]修理入力!F31=\"\",\"\",[1]修理入力!F31)","v":""},null,null,null,null,null,null,null,null,null,null,null,null,null,null,null,null,null,{"$f":"IF([1]修理入力!X31=\"\",\"\",[1]修理入力!X31)","v":""},null,null,{"$f":"IF([1]修理入力!AA31=\"\",\"\",[1]修理入力!AA31)","v":""},null,null,null,null,null,{"$f":"IF([1]修理入力!AG31=\"\",\"\",[1]修理入力!AG31)","v":""}]
[null,null,null,null,null,{"$f":"IF([1]修理入力!F32=\"\",\"\",[1]修理入力!F32)","v":""},null,null,null,null,null,null,null,null,null,null,null,null,null,null,null,null,null,{"$f":"IF([1]修理入力!X32=\"\",\"\",[1]修理入力!X32)","v":""},null,null,{"$f":"IF([1]修理入力!AA32=\"\",\"\",[1]修理入力!AA32)","v":""},null,null,null,null,null,{"$f":"IF([1]修理入力!AG32=\"\",\"\",[1]修理入力!AG32)","v":""}]
[null,null,null,null,null,{"$f":"IF([1]修理入力!F33=\"\",\"\",[1]修理入力!F33)","v":""},null,null,null,null,null,null,null,null,null,null,null,null,null,null,null,null,null,{"$f":"IF([1]修理入力!X33=\"\",\"\",[1]修理入力!X33)","v":""},null,null,{"$f":"IF([1]修理入力!AA33=\"\",\"\",[1]修理入力!AA33)","v":""},null,null,null,null,null,{"$f":"IF([1]修理入力!AG33=\"\",\"\",[1]修理入力!AG33)","v":""}]
[null,null,null,null,null,{"$f":"IF([1]修理入力!F34=\"\",\"\",[1]修理入力!F34)","v":""},null,null,null,null,null,null,null,null,null,null,null,null,null,null,null,null,null,{"$f":"IF([1]修理入力!X34=\"\",\"\",[1]修理入力!X34)","v":""},null,null,{"$f":"IF([1]修理入力!AA34=\"\",\"\",[1]修理入力!AA34)","v":""},null,null,null,null,null,{"$f":"IF([1]修理入力!AG34=\"\",\"\",[1]修理入力!AG34)","v":""}]
[null,null,null,null,null,{"$f":"IF([1]修理入力!F35=\"\",\"\",[1]修理入力!F35)","v":""},null,null,null,null,null,null,null,null,null,null,null,null,null,null,null,null,null,{"$f":"IF([1]修理入力!X35=\"\",\"\",[1]修理入力!X35)","v":""},null,null,{"$f":"IF([1]修理入力!AA35=\"\",\"\",[1]修理入力!AA35)","v":""},null,null,null,null,null,{"$f":"IF([1]修理入力!AG35=\"\",\"\",[1]修理入力!AG35)","v":""}]
[null,null,null,null,null,{"$f":"IF([1]修理入力!F36=\"\",\"\",[1]修理入力!F36)","v":""},null,null,null,null,null,null,null,null,null,null,null,null,null,null,null,null,null,{"$f":"IF([1]修理入力!X36=\"\",\"\",[1]修理入力!X36)","v":""},null,null,{"$f":"IF([1]修理入力!AA36=\"\",\"\",[1]修理入力!AA36)","v":""},null,null,null,null,null,{"$f":"IF([1]修理入力!AG36=\"\",\"\",[1]修理入力!AG36)","v":""}]
[null,null,null,null,null,{"$f":"IF([1]修理入力!F37=\"\",\"\",[1]修理入力!F37)","v":""},null,null,null,null,null,null,null,null,null,null,null,null,null,null,null,null,null,{"$f":"IF([1]修理入力!X37=\"\",\"\",[1]修理入力!X37)","v":""},null,null,{"$f":"IF([1]修理入力!AA37=\"\",\"\",[1]修理入力!AA37)","v":""},null,null,null,null,null,{"$f":"IF([1]修理入力!AG37=\"\",\"\",[1]修理入力!AG37)","v":""}]
[null,null,null,null,null,{"$f":"IF([1]修理入力!F38=\"\",\"\",[1]修理入力!F38)","v":""},null,null,null,null,null,null,null,null,null,null,null,null,null,null,null,null,null,{"$f":"IF([1]修理入力!X38=\"\",\"\",[1]修理入力!X38)","v":""},null,null,{"$f":"IF([1]修理入力!AA38=\"\",\"\",[1]修理入力!AA38)","v":""},null,null,null,null,null,{"$f":"IF([1]修理入力!AG38=\"\",\"\",[1]修理入力!AG38)","v":""}]
[null,null,null,null,null,null,null,null,null,null," ",null,null,null,null,null,null,null," ",null,null,null,null,null,null," ","部品価格合計",null,null,null,null,null,{"$f":"IF([1]修理入力!AG39=\"\",\"\",[1]修理入力!AG39)","v":0}]
[null,null,null,null,null,"　",null,null,null,null," ",null,null,null,null,null,null,"非該当証明",null,null,null,{"$f":"[1]修理入力!$V$40","v":"要"},null,{"$f":"[1]修理入力!$X$40","v":"不要"},null," ","運 賃",null,null,null,null,null,{"$f":"IF([1]修理入力!AG40=\"\",\"\",[1]修理入力!AG40)","v":""}]
[null,null,null,null,null,"　",null,null,null,null," ",null,null,null,null,null,null,null," ",null,null,null,null,null,null," ","出張作業費",null,null,null,null,null,{"$f":"IF([1]修理入力!AG41=\"\",\"\",[1]修理入力!AG41)","v":""}]
[null,null,null,null,null,"　",null,null,null,null,null,null,null,null,null,null,null,null," ",null,null,null,null,null,null,null,"販売価格合計",null,null,null,null,null,{"$f":"IF([1]修理入力!AG42=\"\",\"\",[1]修理入力!AG42)","v":0}]
[null,null,null,null,null,"内容",null,null,{"$f":"IF([1]修理入力!I43=\"\",\"\",[1]修理入力!I43)","v":""}]
[null,null,null,null,null,{"$f":"IF([1]修理入力!F44=\"\",\"\",[1]修理入力!F44)","v":""}]
[null,null,null,null,null,{"$f":"IF([1]修理入力!F45=\"\",\"\",[1]修理入力!F45)","v":""}]
[null,null,null,null,null,{"$f":"IF([1]修理入力!F46=\"\",\"\",[1]修理入力!F46)","v":""}]
[null,null,null,null,null,{"$f":"IF([1]修理入力!F47=\"\",\"\",[1]修理入力!F47)","v":""}]
[null,null,null,null,null,null,null,null," ",null,null,null,null,null,null,null,null,null,null,null,null,null,null,null,null," ",null," ",null,null,"締日",null,{"$f":"[1]修理入力!AG48","v":0},null,"回収日",null,null,{"$f":"[1]修理入力!AL48","v":0}]
[null,null,null,null,null,"　",null,null,null,null,null,null,null,null,null,null,null,null,null,null,null,null,null,null,null,null,null,"承認",null,null,null,"点検",null,null,null,"作成"]
[]
[null,null,null,null,null,null,null,null,null,null,null,null,null,null,null,null,null,null,null,null,null,null,null,null,null,null,null,null,null,null,null,null,null,null,null,{"$f":"[1]修理入力!AJ51","v":"2020-06-10"}]
[null,null,null,null,null,null,null,null,null,null,null,null,null,null,null,null,null,null,null,null,null,null,null,null,null,null,null,null,null,null,null,null,null,null,null,null,{"$f":"[1]修理入力!AK52","v":"業務"}]
[]
[null,null,null,null,null,"経路　発行 [担当] → [製造部長] →[ＰＣ入力] →[保存]　　",null,null,null,null,null,null,null,null,null,null,null,null,null,null,null,null,null,null,null,null,null,null,null,null,"株式会社　AAAAA"]
[null,null,null,null,null,null,null,"　"]
[]
[]
[]
[]
[null,null,null,null,null,"　",null,null," "," "]
[null,null,null,null,null,"[形式005]",null,null,null,null,null,null,"修理",null,null,"製作指示書",null,null,null,null,null,null,null,null,null,null,null,"設計提出",null,null,null," "]
[null,null,null,null,null,null,null,null,null,null," ",null,null,null,null,null,null,null,null,null,null,null,null,null,null,null,null,null,null,null,null,null,null,null,"帳票Ｎｏ.",null,null,1033]
[]
[null,null,null,"使用方法¨管理規定標準書の本帳票記入要領参照","使用目的¨設計の工数を集計する","契約先",null,null,{"$f":"I8","v":0},null,null,null,null,null,null,null,null,null,null,null,null,null,null,null,"契約担当",null,{"$f":"+AA8","v":0},null,null,null,null,null,null,"電話",{"$f":"+AI8","v":0}]
[]
[]
[null,null,null,null,null,"納入先",null,null,{"$f":"+I11","v":0},null,null,null,null,null,null,null,null,null,null,null,null,null,null,null,"納入担当",null,{"$f":"+AA11","v":0},null,null,null,null,null,null,"電話",{"$f":"+AI11","v":0}]
[]
[]
[]
[null,null,null,null,null,null,null,null,null,null,null,null,null,null,null,null,null,null,null,null,null,null,null,null," "]
[null,null,null,null,null," ",null,null,null,null,null,null,null,null,null,null,null,null,null,null,null,null,null,null,null,null,null," ",null,null,null,null,null,null," "]
[null,null,null,null,null," "]
[null,null,null,null,null,null,null,null,null,null,null,null,null,null,null,null,null,null,null,null,null,null,null,null,null,null,null," ",null,null,null,null,null,null," "]
[null,null,null,null,null,null,"　"]
[null,null,null,null,null,"機種　　型式",null,null,{"$f":"+I20","v":""},null,null,null,null,null,null,null,null,null,null,null,null,null,null,"機番",null,null,{"$f":"+AA20","v":"A-123456"},null,null,null,null,null,null,null,"設計完了日"]
[null,null,null,null,null,null,null,null,null,null,null,null,null,null,null,null,null,null,null,null,null,null,null,null,null,null,null,null,null,null,null,null,null,null," "]
[]
[null,null,null,null,null,"ユニット名　及び　部品名",null,null,null,null,null,null,null,null,null,null,null,null,null,null,null,null,null,"数量",null,null,"　",null,null,null,null,null,"　"]
[null,null,null,null,null,{"$f":"+F24","v":""},null,null,null,null,null,null,null,null,null,null,null,null,null,null,null,null,null,{"$f":"+X24","v":""}]
[null,null,null,null,null,{"$f":"+F25","v":""},null,null,null,null,null,null,null,null,null,null,null,null,null,null,null,null,null,{"$f":"+X25","v":""}]
[null,null,null,null,null,"",null,null,null,null,null,null,null,null,null,null,null,null,null,null,null,null,null,""]
[null,null,null,null,null,"",null,null,null,null,null,null,null,null,null,null,null,null,null,null,null,null,null,""]
[null,null,null,null,null,"",null,null,null,null,null,null,null,null,null,null,null,null,null,null,null,null,null,""]
[null,null,null,null,null,"",null,null,null,null,null,null,null,null,null,null,null,null,null,null,null,null,null,""]
[null,null,null,null,null,"",null,null,null,null,null,null,null,null,null,null,null,null,null,null,null,null,null,""]
[null,null,null,null,null,"",null,null,null,null,null,null,null,null,null,null,null,null,null,null,null,null,null,""]
[null,null,null,null,null,"",null,null,null,null,null,null,null,null,null,null,null,null,null,null,null,null,null,""]
[null,null,null,null,null,"",null,null,null,null,null,null,null,null,null,null,null,null,null,null,null,null,null,""]
[null,null,null,null,null,"",null,null,null,null,null,null,null,null,null,null,null,null,null,null,null,null,null,""]
[null,null,null,null,null,"",null,null,null,null,null,null,null,null,null,null,null,null,null,null,null,null,null,""]
[null,null,null,null,null,"",null,null,null,null,null,null,null,null,null,null,null,null,null,null,null,null,null,""]
[null,null,null,null,null,"",null,null,null,null,null,null,null,null,null,null,null,null,null,null,null,null,null,""]
[null,null,null,null,null," ",null,null,null,null," ",null,null,null,null,null,null,null,"　",null,null,null,null,"　",null,"　"]
[null,null,null,null,null," ",null,null,null,null," ",null,null,null,null,null,null,null,"　",null,null,null,null,"　",null,"　"]
[null,null,null,null,null,"　",null,null,null,null," ",null,null,null,null,null,null,null,"　",null,null,null,null,"　",null,"　"]
[null,null,null,null,null,"　",null,null,null,null,null,null,null,null,null,null,null,null," "]
[null,null,null,null,null,"内容",null,null,{"$f":"+I42","v":""}]
[null,null,null,null,null,{"$f":"+F43","v":""}]
[null,null,null,null,null,{"$f":"+F44","v":""}]
[null,null,null,null,null,""]
[null,null,null,null,null,""]
[null,null,null,null,null,null,null,null,null,null,null,null,null,null,null,null,null,null,null,null,null,null,null,null,null,null,null,null,null,null,null,null,null,null,"地区",null,{"$f":"AB47","v":" "}]
[null,null,null,null,null,"工数",null,null,"この製番の設計に掛かった時間を毎日記入する。",null,null,null,null,null,null,null,null,null,null,null,null,null,null,null,null,null,null,"承認",null,null,null,"点検",null,null,null,"作成"]
[null,null,null,null,null,null,null,null,null,null,null,null,null,null,null,null,null,null,null,null,null,null,null," "]
[null,null,null,null,null,null,null,null,null,null,null,null,null,null,null,null,null,null,null,null,null,null,null,null,null,null,null,null,null,null,null,null,null,null,null,{"$f":"+AJ50","v":"2020-06-10"}]
[null,null,null,null,null,null,null,null,null,null,null,null,null,null,null,null,null,null,null,null,null,null,null,null,null,null,null,null,null,null,null,null,null,null,null,null,{"$f":"+AK51","v":"業務"}]
[]
[null,null,null,null,null,"経路　発行（担当）→[製造部長]→[設計]→[工程担当]　",null,null,null,null,null,null,null,null,null,null,null,null,null,null,null,null,null,null,null,null,null,null,null,null,"株式会社　AAAAA"]
[null,null,null,null,null,null,null,"　"]
[]
[]
[]
[]
[null,null,null,null,null,"　",null,null," "," "]
[null,null,null,null,null,"[形式005]",null,null,null,null,null,null,"修理",null,null,"製作指示書",null,null,null,null,null,null,null,null,null,null,null,"設計控",null,null,null," "]
[null,null,null,null,null,null,null,null,null,null," "]
[]
[null,null,null,null,null,null,null,null,null,null,null,null,null," ",null,null,null,null," ",null,null,null," ",null,null,null,null,null,null,null,null,null,null,null,"帳票Ｎｏ.",null,null,1034]
[]
[null,null,null,"使用方法¨管理規定標準書の本帳票記入要領参照","使用目的¨設計に納期と受注内容を知らせる。","契約先",null,null,{"$f":"I8","v":0},null,null,null,null,null,null,null,null,null,null,null,null,null,null,null,"契約担当",null,{"$f":"AA8","v":0},null,null,null,null,null,null,"電話",{"$f":"AI8","v":0}]
[]
[]
[null,null,null,null,null,"納入先",null,null,{"$f":"I11","v":0},null,null,null,null,null,null,null,null,null,null,null,null,null,null,null,"納入担当",null,{"$f":"AA11","v":0},null,null,null,null,null,null,"電話",{"$f":"AI11","v":0}]
[]
[]
[]
[null,null,null,null,null,null,null,null,null,null,null,null,null,null,null,null,null,null,null,null,null,null,null,null," "]
[null,null,null,null,null," ",null,null,null,null,null,null,null,null,null,null,null,null,null,null,null,null,null,null,null,null,null," ",null,null,null,null,null,null," "]
[null,null,null,null,null," "]
[null,null,null,null,null,null,null,null,null,null,null,null,null,null,null,null,null,null,null,null,null,null,null,null,null,null,null," ",null,null,null,null,null,null," "]
[null,null,null,null,null,null,"　"]
[null,null,null,null,null,"機種　　型式",null,null,{"$f":"I20","v":""},null,null,null,null,null,null,null,null,null,null,null,null,null,null,"機番",null,null,{"$f":"AA20","v":"A-123456"},null,null,null,null,null,null,null,"設計完了日"]
[null,null,null,null,null,null,null,null,null,null,null,null,null,null,null,null,null,null,null,null,null,null,null,null,null,null,null,null,null,null,null,null,null,null," "]
[]
[null,null,null,null,null,"ユニット名　及び　部品名",null,null,null,null,null,null,null,null,null,null,null,null,null,null,null,null,null,"数量",null,null,"　",null,null,null,null,null,"　"]
[null,null,null,null,null,{"$f":"F24","v":""},null,null,null,null,null,null,null,null,null,null,null,null,null,null,null,null,null,{"$f":"X24","v":""}]
[null,null,null,null,null,{"$f":"F25","v":""},null,null,null,null,null,null,null,null,null,null,null,null,null,null,null,null,null,{"$f":"X25","v":""}]
[null,null,null,null,null,"",null,null,null,null,null,null,null,null,null,null,null,null,null,null,null,null,null,""]
[null,null,null,null,null,"",null,null,null,null,null,null,null,null,null,null,null,null,null,null,null,null,null,""]
[null,null,null,null,null,"",null,null,null,null,null,null,null,null,null,null,null,null,null,null,null,null,null,""]
[null,null,null,null,null,"",null,null,null,null,null,null,null,null,null,null,null,null,null,null,null,null,null,""]
[null,null,null,null,null,"",null,null,null,null,null,null,null,null,null,null,null,null,null,null,null,null,null,""]
[null,null,null,null,null,"",null,null,null,null,null,null,null,null,null,null,null,null,null,null,null,null,null,""]
[null,null,null,null,null,"",null,null,null,null,null,null,null,null,null,null,null,null,null,null,null,null,null,""]
[null,null,null,null,null,"",null,null,null,null,null,null,null,null,null,null,null,null,null,null,null,null,null,""]
[null,null,null,null,null,"",null,null,null,null,null,null,null,null,null,null,null,null,null,null,null,null,null,""]
[null,null,null,null,null,"",null,null,null,null,null,null,null,null,null,null,null,null,null,null,null,null,null,""]
[null,null,null,null,null,"",null,null,null,null,null,null,null,null,null,null,null,null,null,null,null,null,null,""]
[null,null,null,null,null,"",null,null,null,null,null,null,null,null,null,null,null,null,null,null,null,null,null,""]
[null,null,null,null,null," ",null,null,null,null," ",null,null,null,null,null,null,null,"　",null,null,null,null,"　",null,"　"]
[null,null,null,null,null," ",null,null,null,null," ",null,null,null,null,null,null,null,"　",null,null,null,null,"　",null,"　"]
[null,null,null,null,null,"　",null,null,null,null," ",null,null,null,null,null,null,null,"　",null,null,null,null,"　",null,"　"]
[null,null,null,null,null,"　",null,null,null,null,null,null,null,null,null,null,null,null," "]
[null,null,null,null,null,"内容",null,null,{"$f":"I42","v":""}]
[null,null,null,null,null,{"$f":"F43","v":""}]
[null,null,null,null,null,{"$f":"F44","v":""}]
[null,null,null,null,null,""]
[null,null,null,null,null,""]
[null,null,null,null,null,null,null,null,null,null,null,null,null,null,null,null,null,null,null,null,null,null,null,null,null,null,null,null,null,null,null,null,null,null,"地区",null,{"$f":"AB47","v":" "}]
[null,null,null,null,null,null,null,null,null,null,null,null,null,null,null,null,null,null,null,null,null,null,null,null,null,null,null,"承認",null,null,null,"点検",null,null,null,"作成"]
[]
[null,null,null,null,null,null,null,null,null,null,null,null,null,null,null,null,null,null,null,null,null,null,null,null,null,null,null,null,null,null,null,null,null,null,null,{"$f":"AJ50","v":"2020-06-10"}]
[null,null,null,null,null,null,null,null,null,null,null,null,null,null,null,null,null,null,null,null,null,null,null,null,null,null,null,null,null,null,null,null,null,null,null,null,{"$f":"AK51","v":"業務"}]
[]
[null,null,null,null,null,"経路　発行（担当）→[製造部長]→[設計]→[保存] 　",null,null,null,null,null,null,null,null,null,null,null,null,null,null,null,null,null,null,null,null,null,null,null,null,"株式会社　AAAAA"]
[null,null,null,null,null,null,null,"　"]
[]
[]
[]
[]
[]
[]
[null,null,null,null,null,"　",null,null," "," "]
[null,null,null,null,null,"[形式003]",null,null,null,null,null,null,"修理",null,null,"製作指示書",null,null,null,null,null,null,null,null,null,null,null,"電気設計提出"]
[null,null,null,null,null,null,null,null,null,null," ",null,null,null,null,null,null,null,null,null,null,null,null,null,null,null,null,null,null,null,null,null,null,null,"帳票Ｎｏ.",null,null,1035]
[]
[null,null,null,null,null,"機　番",null,{"$f":"AA20","v":"A-123456"},null,null,null,null,null,"機種　　型式",null,null,{"$f":"I20","v":""},null,null,null,null,null,null,null,null,null,null,null,null,null,null,"　",null,null,null,"　"]
[]
[null,null,null,"使用方法¨管理規定標準書の本帳票記入要領参照","使用目的¨電気設計工数を集計する"]
[null,null,null,null,null,"契約先",null,null,null,{"$f":"I8","v":0},null,null,null,null,null,null,null,null,null,null,null,null,null,null,null,null,null,null,null,"設計完了日",null,null,null,null,null,"　"]
[]
[null,null,null,null,null,"納入先",null,null,null,{"$f":"I11","v":0}]
[]
[]
[]
[null,null,null,null,null," "]
[null,null,null,null,null," "]
[]
[null,null,null,null,null,null,"　"]
[null,null,null,null,null,"ユニット名　及び　部品名",null,null,null,null,null,null,null,null,null,null,null,null,null,null,null,null,null,"数量"]
[null,null,null,null,null,{"$f":"F24","v":""},null,null,null,null,null,null,null,null,null,null,null,null,null,null,null,null,null,{"$f":"X24","v":""}]
[null,null,null,null,null,{"$f":"F25","v":""},null,null,null,null,null,null,null,null,null,null,null,null,null,null,null,null,null,{"$f":"X25","v":""}]
[null,null,null,null,null,"",null,null,null,null,null,null,null,null,null,null,null,null,null,null,null,null,null,""]
[null,null,null,null,null,"",null,null,null,null,null,null,null,null,null,null,null,null,null,null,null,null,null,""]
[null,null,null,null,null,"",null,null,null,null,null,null,null,null,null,null,null,null,null,null,null,null,null,""]
[null,null,null,null,null,"",null,null,null,null,null,null,null,null,null,null,null,null,null,null,null,null,null,""]
[null,null,null,null,null,"",null,null,null,null,null,null,null,null,null,null,null,null,null,null,null,null,null,""]
[null,null,null,null,null,"",null,null,null,null,null,null,null,null,null,null,null,null,null,null,null,null,null,""]
[null,null,null,null,null,"",null,null,null,null,null,null,null,null,null,null,null,null,null,null,null,null,null,""]
[null,null,null,null,null,"",null,null,null,null,null,null,null,null,null,null,null,null,null,null,null,null,null,""]
[null,null,null,null,null,"",null,null,null,null,null,null,null,null,null,null,null,null,null,null,null,null,null,""]
[null,null,null,null,null,"",null,null,null,null,null,null,null,null,null,null,null,null,null,null,null,null,null,""]
[null,null,null,null,null,"",null,null,null,null,null,null,null,null,null,null,null,null,null,null,null,null,null,""]
[null,null,null,null,null,"",null,null,null,null,null,null,null,null,null,null,null,null,null,null,null,null,null,""]
[null,null,null,null,null,null,null,null,null,null," ",null,null,null,null,null,null,null," ",null,null,null,null,null,null," "]
[null,null,null,null,null,"　",null,null,null,null," ",null,null,null,null,null,null,null," ",null,null,null,null,null,null," "]
[null,null,null,null,null,"　",null,null,null,null," ",null,null,null,null,null,null,null," ",null,null,null,null,null,null," "]
[null,null,null,null,null,"　",null,null,null,null,null,null,null,null,null,null,null,null," "]
[null,null,null,null,null,"内容",null,null,{"$f":"I42","v":""}]
[null,null,null,null,null,{"$f":"F43","v":""}]
[null,null,null,null,null,{"$f":"F44","v":""}]
[null,null,null,null,null,""]
[null,null,null,null,null,""]
[null,null,null,null,null,null,null,null,null,null,null,null,null,null,null,null,null,null,null,null,null,null,null,null,null," ",null," ",null,null,null,null,null,"地区",null,{"$f":"AB47","v":" "}]
[null,null,null,null,null,"工数",null,null,"この製番の設計に掛かった時間を毎日記入する。",null,null,null,null,null,null,null,null,null,null,null,null,null,null,null,null,null,null,"承認",null,null,null,"点検",null,null,null,"作成"]
[null,null,null,null,null,null,null,null,null,null,null,null,null,null,null,null,null,null,null,null,null,null,null," "]
[null,null,null,null,null,null,null,null,null,null,null,null,null,null,null,null,null,null,null,null,null,null,null,null,null,null,null,null,null,null,null,null,null,null,null,{"$f":"AJ50","v":"2020-06-10"}]
[null,null,null,null,null,null,null,null,null,null,null,null,null,null,null,null,null,null,null,null,null,null,null,null,null,null,null,null,null,null,null,null,null,null,null,null,{"$f":"AK51","v":"業務"}]
[]
[null,null,null,null,null,"経路　発行（担当） →[製造部長] → [電気設計] → [工程担当]　",null,null,null,null,null,null,null,null,null,null,null,null,null,null,null,null,null,null,null,null,null,null,null,null,"株式会社　AAAAA"]
[null,null,null,null,null,null,null,"　"]
[]
[]
[]
[]
[null,null,null,null,null,"　",null,null," "," "]
[null,null,null,null,null,"[形式003]",null,null,null,null,null,null,"修理",null,null,"製作指示書",null,null,null,null,null,null,null,null,null,null,null,"電気設計控"]
[null,null,null,null,null,null,null,null,null,null," ",null,null,null,null,null,null,null,null,null,null,null,null,null,null,null,null,null,null,null,null,null,null,null,"帳票Ｎｏ.",null,null,1036]
[]
[null,null,null,null,null,"機　番",null,{"$f":"AA20","v":"A-123456"},null,null,null,null,null,"機種　　型式",null,null,{"$f":"I20","v":""},null,null,null,null,null,null,null,null,null,null,null,null,null,null,"　",null,null,null,"　"]
[]
[null,null,null,"使用方法¨管理規定標準書の本帳票記入要領参照","使用目的¨電気担当に受注内容を知らせる"]
[null,null,null,null,null,"契約先",null,null,null,{"$f":"I8","v":0},null,null,null,null,null,null,null,null,null,null,null,null,null,null,null,null,null,null,null,"設計完了日",null,null,null,null,null,"　"]
[]
[null,null,null,null,null,"納入先",null,null,null,{"$f":"I11","v":0}]
[]
[]
[null,null,null,null,null," "]
[]
[null,null,null,null,null,null,"　"]
[null,null,null,null,null,"ユニット名　及び　部品名",null,null,null,null,null,null,null,null,null,null,null,null,null,null,null,null,null,"数量"]
[null,null,null,null,null,{"$f":"F24","v":""},null,null,null,null,null,null,null,null,null,null,null,null,null,null,null,null,null,{"$f":"X24","v":""}]
[null,null,null,null,null,{"$f":"F25","v":""},null,null,null,null,null,null,null,null,null,null,null,null,null,null,null,null,null,{"$f":"X25","v":""}]
[null,null,null,null,null,"",null,null,null,null,null,null,null,null,null,null,null,null,null,null,null,null,null,""]
[null,null,null,null,null,"",null,null,null,null,null,null,null,null,null,null,null,null,null,null,null,null,null,""]
[null,null,null,null,null,"",null,null,null,null,null,null,null,null,null,null,null,null,null,null,null,null,null,""]
[null,null,null,null,null,"",null,null,null,null,null,null,null,null,null,null,null,null,null,null,null,null,null,""]
[null,null,null,null,null,"",null,null,null,null,null,null,null,null,null,null,null,null,null,null,null,null,null,""]
[null,null,null,null,null,"",null,null,null,null,null,null,null,null,null,null,null,null,null,null,null,null,null,""]
[null,null,null,null,null,"",null,null,null,null,null,null,null,null,null,null,null,null,null,null,null,null,null,""]
[null,null,null,null,null,"",null,null,null,null,null,null,null,null,null,null,null,null,null,null,null,null,null,""]
[null,null,null,null,null,"",null,null,null,null,null,null,null,null,null,null,null,null,null,null,null,null,null,""]
[null,null,null,null,null,"",null,null,null,null,null,null,null,null,null,null,null,null,null,null,null,null,null,""]
[null,null,null,null,null,"",null,null,null,null,null,null,null,null,null,null,null,null,null,null,null,null,null,""]
[null,null,null,null,null,"",null,null,null,null,null,null,null,null,null,null,null,null,null,null,null,null,null,""]
[null,null,null,null,null,null,null,null,null,null," ",null,null,null,null,null,null,null," ",null,null,null,null,null,null," "]
[null,null,null,null,null,"　",null,null,null,null," ",null,null,null,null,null,null,null," ",null,null,null,null,null,null," "]
[null,null,null,null,null,"　",null,null,null,null," ",null,null,null,null,null,null,null," ",null,null,null,null,null,null," "]
[null,null,null,null,null,"　",null,null,null,null,null,null,null,null,null,null,null,null," "]
[null,null,null,null,null,"内容",null,null,{"$f":"I42","v":""}]
[null,null,null,null,null,{"$f":"F43","v":""}]
[null,null,null,null,null,{"$f":"F44","v":""}]
[null,null,null,null,null,""]
[null,null,null,null,null,""]
[null,null,null,null,null,null,null,null,null,null,null,null,null,null,null,null,null,null,null,null,null,null,null,null,null," ",null," ",null,null,null,null,null,"地区",null,{"$f":"AB47","v":" "}]
[null,null,null,null,null,null,null,null,null,null,null,null,null,null,null,null,null,null,null,null,null,null,null,null,null,null,null,"承認",null,null,null,"点検",null,null,null,"作成"]
[]
[null,null,null,null,null,null,null,null,null,null,null,null,null,null,null,null,null,null,null,null,null,null,null,null,null,null,null,null,null,null,null,null,null,null,null,{"$f":"AJ50","v":"2020-06-10"}]
[null,null,null,null,null,null,null,null,null,null,null,null,null,null,null,null,null,null,null,null,null,null,null,null,null,null,null,null,null,null,null,null,null,null,null,null,{"$f":"AK51","v":"業務"}]
[]
[null,null,null,null,null,"経路　発行（担当） →[製造部長] → [電気設計] → [保存]",null,null,null,null,null,null,null,null,null,null,null,null,null,null,null,null,null,null,null,null,null,null,null,null,"株式会社　AAAAA"]
[null,null,null,null,null,null,null,"　"]
[]
[]
[]
[]
[null,null,null,null,null,"　",null,null," "," "]
[null,null,null,null,null,"[形式003]",null,null,null,null,null,null,"修理",null,null,"製作指示書",null,null,null,null,null,null,null,null,null,null,null,"部品調達",null,null,null," "]
[null,null,null,null,null,null,null,null,null,null," ",null,null,null,null,null,null,null,null,null,null,null,null,null,null,null,null,null,null,null,null,null,null,null,"帳票Ｎｏ.",null,null,1037]
[]
[null,null,null,null,null,"機　番",null,{"$f":"AA20","v":"A-123456"},null,null,null,null,null,"機種　　型式",null,null,{"$f":"I20","v":""},null,null,null,null,null,null,null,null,null,null," ",null,null,null,"設計完了日",null,null,null,"客先納期"]
[null,null,null,null,null,null,null,null,null,null,null,null,null,null,null,null,null,null,null,null,null,null,null,null,null,null,null,null,null,null,null,null,null,null,null,{"$f":"AI21","v":"00:00:00"}]
[null,null,null,"使用方法¨管理規定標準書の本帳票記入要領参照","使用目的¨資材担当に受注内容を知らせる"]
[null,null,null,null,null,"契約先",null,null,null,{"$f":"I8","v":0},null,null,null,null,null,null,null,null,null,null,null,null,null,null,null,null,null,null,null,"部品調達完了",null,null,null,null,null,"電気制御"]
[null,null,null,null,null,null,null,null,null,null,null,null,null,null,null,null,null,null,null,null,null,null,null,null,null,null,null,null,null," ",null,null,null,null,null,"有 ・ 無"]
[null,null,null,null,null,"納入先",null,null,null,{"$f":"I11","v":0}]
[]
[]
[null,null,null,null,null," ",null,null,null,null,null,null,null,null,null,null,null,null,null,null,null,null,null,null,null,null,null," 現地工事必要",null,null,null,null,null,null,{"$f":"AI16","v":""}]
[null,null,null,null,null," "]
[null,null,null,null,null,null,null,null,null,null,null,null,null,null,null,null,null,null,null,null,null,null,null,null,null,null,null," 客先へ発送のみ",null,null,null,null,null,null,{"$f":"AI18","v":"●"}]
[null,null,null,null,null,null,"　"]
[null,null,null,null,null,"ユニット名　及び　部品名",null,null,null,null,null,null,null,null,null,null,null,null,null,null,null,null,null,"数量",null,null,"単価",null,null,null,null,null,"金額"]
[null,null,null,null,null,{"$f":"F24","v":""},null,null,null,null,null,null,null,null,null,null,null,null,null,null,null,null,null,{"$f":"X24","v":""},null,null,{"$f":"AA24","v":""},null,null,null,null,null,{"$f":"AG24","v":""}]
[null,null,null,null,null,{"$f":"F25","v":""},null,null,null,null,null,null,null,null,null,null,null,null,null,null,null,null,null,{"$f":"X25","v":""},null,null,{"$f":"AA25","v":""},null,null,null,null,null,{"$f":"AG25","v":""}]
[null,null,null,null,null,"",null,null,null,null,null,null,null,null,null,null,null,null,null,null,null,null,null,"",null,null,"",null,null,null,null,null,""]
[null,null,null,null,null,"",null,null,null,null,null,null,null,null,null,null,null,null,null,null,null,null,null,"",null,null,"",null,null,null,null,null,""]
[null,null,null,null,null,"",null,null,null,null,null,null,null,null,null,null,null,null,null,null,null,null,null,"",null,null,"",null,null,null,null,null,""]
[null,null,null,null,null,"",null,null,null,null,null,null,null,null,null,null,null,null,null,null,null,null,null,"",null,null,"",null,null,null,null,null,""]
[null,null,null,null,null,"",null,null,null,null,null,null,null,null,null,null,null,null,null,null,null,null,null,"",null,null,"",null,null,null,null,null,""]
[null,null,null,null,null,"",null,null,null,null,null,null,null,null,null,null,null,null,null,null,null,null,null,"",null,null,"",null,null,null,null,null,""]
[null,null,null,null,null,"",null,null,null,null,null,null,null,null,null,null,null,null,null,null,null,null,null,"",null,null,"",null,null,null,null,null,""]
[null,null,null,null,null,"",null,null,null,null,null,null,null,null,null,null,null,null,null,null,null,null,null,"",null,null,"",null,null,null,null,null,""]
[null,null,null,null,null,"",null,null,null,null,null,null,null,null,null,null,null,null,null,null,null,null,null,"",null,null,"",null,null,null,null,null,""]
[null,null,null,null,null,"",null,null,null,null,null,null,null,null,null,null,null,null,null,null,null,null,null,"",null,null,"",null,null,null,null,null,""]
[null,null,null,null,null,"",null,null,null,null,null,null,null,null,null,null,null,null,null,null,null,null,null,"",null,null,"",null,null,null,null,null,""]
[null,null,null,null,null,"",null,null,null,null,null,null,null,null,null,null,null,null,null,null,null,null,null,"",null,null,"",null,null,null,null,null,""]
[null,null,null,null,null,null,null,null,null,null," ",null,null,null,null,null,null,null," ",null,null,null,null,null,null," ","部品価格合計",null,null,null,null,null,{"$f":"AG38","v":0}]
[null,null,null,null,null,"　",null,null,null,null," ",null,null,null,null,null,null,null," ",null,null,null,null,null,null," ","運 賃",null,null,null,null,null,{"$f":"AG39","v":""}]
[null,null,null,null,null,"　",null,null,null,null," ",null,null,null,null,null,null,null," ",null,null,null,null,null,null," ","出張作業費",null,null,null,null,null,""]
[null,null,null,null,null,"　",null,null,null,null,null,null,null,null,null,null,null,null," ",null,null,null,null,null,null,null,"販売価格合計",null,null,null,null,null,0]
[null,null,null,null,null,"内容",null,null,{"$f":"I42","v":""}]
[null,null,null,null,null,{"$f":"F43","v":""}]
[null,null,null,null,null,{"$f":"F44","v":""}]
[null,null,null,null,null,""]
[null,null,null,null,null,""]
[null,null,null,null,null,null,null,null,null,null,null,null,null,null,null,null,null,null,null,null,null,null,null,null,null," ",null," ",null,null,null,null,null,"地区",null,{"$f":"AB47","v":" "}]
[null,null,null,null,null,"手配着手日",null,null,null,"完了日",null,null,null," ",null,null,null,null,null,null,null,null,null,null,null,null,null,"承認",null,null,null,"点検",null,null,null,"作成"]
[]
[null,null,null,null,null,null,null,null,null,null,null,null,null,null,null,null,null,null,null,null,null,null,null,null,null,null,null,null,null,null,null,null,null,null,null,{"$f":"AJ50","v":"2020-06-10"}]
[null,null,null,null,null,null,null,null,null,null,null,null,null,null,null,null,null,null,null,null,null,null,null,null,null,null,null,null,null,null,null,null,null,null,null,null,{"$f":"AK51","v":"業務"}]
[]
[null,null,null,null,null,"経路　発行（担当） →[製造部長] →[部品調達] → [工程担当]　",null,null,null,null,null,null,null,null,null,null,null,null,null,null,null,null,null,null,null,null,null,null,null,null,"株式会社　AAAAA"]
[null,null,null,null,null,null,null,"　"]
[]
[]
[null,null,null,null,null,null,null,"　"]
[]
[null,null,null,null,null,"　",null,null," "," "]
[null,null,null,null,null,"[形式003]",null,null,null,null,null,null,"修理",null,null,"製作指示書",null,null,null,null,null,null,null,null,null,null,null,"組立",null,null,null," "]
[null,null,null,null,null,null,null,null,null,null," ",null,null,null,null,null,null,null,null,null,null,null,null,null,null,null,null,null,null,null,null,null,null,null,"帳票Ｎｏ.",null,null,1038]
[]
[null,null,null,null,null,"機　番",null,{"$f":"AA20","v":"A-123456"},null,null,null,null,null,"機種　　型式",null,null,{"$f":"I20","v":""},null,null,null,null,null,null,null,null,null,null,"部品調達完了",null,null,null," ",null,null,null,"客先納期"]
[null,null,null,null,null,null,null,null,null,null,null,null,null,null,null,null,null,null,null,null,null,null,null,null,null,null,null,null,null,null,null,null,null,null,null,{"$f":"AI21","v":"00:00:00"}]
[null,null,null,"使用方法¨管理規定標準書の本帳票記入要領参照","使用目的¨組立担当に受注内容を知らせ、工数を集計する"]
[null,null,null,null,null,"契約先",null,null,null,{"$f":"I8","v":0},null,null,null,null,null,null,null,null,null,null,null,null,null,null,null,null,null,null,null,"組立完了日"]
[null,null,null,null,null,null,null,null,null,null,null,null,null,null,null,null,null,null,null,null,null,null,null,null,null,null,null,null,null," "]
[null,null,null,null,null,"納入先",null,null,null,{"$f":"I11","v":0}]
[]
[]
[null,null,null,null,null,null,null,null,null,null,null,null,null,null,null,null,"本体塗装色",null,null,null,null,null,"電気制御"]
[null,null,null,null,null," ",null,null,null,null,null,null,null,null,null,null," ",null,null,null,null,null,"有 ・ 無",null,null,null,null," 現地工事必要",null,null,null,null,null,null,{"$f":"AI16","v":""}]
[null,null,null,null,null," "]
[null,null,null,null,null,null,null,null,null,null,null,null,null,null,null,null,null,null,null,null,null,null,null,null,null,null,null," 客先へ発送のみ",null,null,null,null,null,null,{"$f":"AI18","v":"●"}]
[null,null,null,null,null,null,"　"]
[null,null,null,null,null,"ユニット名　及び　部品名",null,null,null,null,null,null,null,null,null,null,null,null,null,null,null,null,null,"数量"]
[null,null,null,null,null,{"$f":"F24","v":""},null,null,null,null,null,null,null,null,null,null,null,null,null,null,null,null,null,{"$f":"X24","v":""}]
[null,null,null,null,null,{"$f":"F25","v":""},null,null,null,null,null,null,null,null,null,null,null,null,null,null,null,null,null,{"$f":"X25","v":""}]
[null,null,null,null,null,"",null,null,null,null,null,null,null,null,null,null,null,null,null,null,null,null,null,""]
[null,null,null,null,null,"",null,null,null,null,null,null,null,null,null,null,null,null,null,null,null,null,null,""]
[null,null,null,null,null,"",null,null,null,null,null,null,null,null,null,null,null,null,null,null,null,null,null,""]
[null,null,null,null,null,"",null,null,null,null,null,null,null,null,null,null,null,null,null,null,null,null,null,""]
[null,null,null,null,null,"",null,null,null,null,null,null,null,null,null,null,null,null,null,null,null,null,null,""]
[null,null,null,null,null,"",null,null,null,null,null,null,null,null,null,null,null,null,null,null,null,null,null,""]
[null,null,null,null,null,"",null,null,null,null,null,null,null,null,null,null,null,null,null,null,null,null,null,""]
[null,null,null,null,null,"",null,null,null,null,null,null,null,null,null,null,null,null,null,null,null,null,null,""]
[null,null,null,null,null,"",null,null,null,null,null,null,null,null,null,null,null,null,null,null,null,null,null,""]
[null,null,null,null,null,"",null,null,null,null,null,null,null,null,null,null,null,null,null,null,null,null,null,""]
[null,null,null,null,null,"",null,null,null,null,null,null,null,null,null,null,null,null,null,null,null,null,null,""]
[null,null,null,null,null,"",null,null,null,null,null,null,null,null,null,null,null,null,null,null,null,null,null,""]
[null,null,null,null,null,null,null,null,null,null," ",null,null,null,null,null,null,null," ",null,null,null,null,null,null," "]
[null,null,null,null,null,"　",null,null,null,null," ",null,null,null,null,null,null,null," ",null,null,null,null,null,null," "]
[null,null,null,null,null,"　",null,null,null,null," ",null,null,null,null,null,null,null," ",null,null,null,null,null,null," "]
[null,null,null,null,null,"　",null,null,null,null,null,null,null,null,null,null,null,null," "]
[null,null,null,null,null,"内容",null,null,{"$f":"I42","v":""}]
[null,null,null,null,null,{"$f":"F43","v":""}]
[null,null,null,null,null,{"$f":"F44","v":""}]
[null,null,null,null,null,{"$f":"F45","v":""}]
[null,null,null,null,null,{"$f":"F46","v":""}]
[null,null,null,null,null,null,null,null,null,null,null,null,null,null,null,null,null,null,null,null,null,null,null,null,null," ",null," ",null,null,null,null,null,"地区",null,{"$f":"AB47","v":" "}]
[null,null,null,null,null,"工数",null,null,"この製番の組立に掛かった時間を毎日記入する。",null,null,null,null,null,null,null,null,null,null,null,null,null,null,null,null,null,null,"承認",null,null,null,"点検",null,null,null,"作成"]
[null,null,null,null,null,null,null,null,null,null,null,null,null,null,null,null,null,null,null,null,null,null,null," "]
[null,null,null,null,null,null,null,null,null,null,null,null,null,null,null,null,null,null,null,null,null,null,null,null,null,null,null,null,null,null,null,null,null,null,null,{"$f":"AJ50","v":"2020-06-10"}]
[null,null,null,null,null,null,null,null,null,null,null,null,null,null,null,null,null,null,null,null,null,null,null,null,null,null,null,null,null,null,null,null,null,null,null,null,{"$f":"AK51","v":"業務"}]
[]
[null,null,null,null,null,"経路　発行（担当） →[製造部長 →[組立] → [工程担当]　",null,null,null,null,null,null,null,null,null,null,null,null,null,null,null,null,null,null,null,null,null,null,null,null,"株式会社　AAAAA"]
[null,null,null,null,null,null,null,"　"]
[]
[]
[]
[]
[null,null,null,null,null,"　",null,null," "," "]
[null,null,null,null,null,"[形式005]",null,null,null,null,null,null,"修理",null,null,"製作指示書",null,null,null,null,null,null,null,null,null,null,null,"サービス",null,null,null," "]
[null,null,null,null,null,null,null,null,null,null," "]
[]
[null,null,null,"使用方法¨管理規定標準書の本帳票記入要領参照","使用目的¨サービスに作業内容を知らせる。","コードNo",null,null,null,{"$f":"+J6","v":0},null,null,null," ",null,null,null,null," ",null,null,null," ",null,null,null,null,null,null,null,null,null,null,null,"帳票Ｎｏ.",null,null,1032]
[]
[null,null,null,null,null,"契約先",null,null,{"$f":"+I8","v":0},null,null,null,null,null,null,null,null,null,null,null,null,null,null,null,"契約担当",null,{"$f":"+AA8","v":0},null,null,null,null,null,null,"電話",{"$f":"+AI8","v":0}]
[]
[]
[null,null,null,null,null,"納入先",null,null,{"$f":"+I11","v":0},null,null,null,null,null,null,null,null,null,null,null,null,null,null,null,"納入担当",null,{"$f":"+AA11","v":0},null,null,null,null,null,null,"電話",{"$f":"+AI11","v":0}]
[]
[]
[]
[null,null,null,null,null,null,null,null,null,null,null,null,null,null,null,null,null,null,null,null,null,null,null,null," "]
[null,null,null,null,null," ",null,null,null,null,null,null,null,null,null,null,null,null,null,null,null,null,null,null,null,null,null," 現地工事必要",null,null,null,null,null,null,{"$f":"+AI16","v":""}]
[null,null,null,null,null," "]
[null,null,null,null,null,null,null,null,null,null,null,null,null,null,null,null,null,null,null,null,null,null,null,null,null,null,null," 客先へ発送のみ",null,null,null,null,null,null,{"$f":"+AI18","v":"●"}]
[null,null,null,null,null,null,"　"]
[null,null,null,null,null,"機種　　型式",null,null,{"$f":"+I20","v":""},null,null,null,null,null,null,null,null,null,null,null,null,null,null,"機番",null,null,{"$f":"+AA20","v":"A-123456"},null,null,null,null,null,null,null,"工事日"]
[null,null,null,null,null,null,null,null,null,null,null,null,null,null,null,null,null,null,null,null,null,null,null,null,null,null,null,null,null,null,null,null,null,null,{"$f":"+AI21","v":"00:00:00"}]
[]
[null,null,null,null,null,"ユニット名　及び　部品名",null,null,null,null,null,null,null,null,null,null,null,null,null,null,null,null,null,"数量",null,null,"単価",null,null,null,null,null,"金額"]
[null,null,null,null,null,{"$f":"+F24","v":""},null,null,null,null,null,null,null,null,null,null,null,null,null,null,null,null,null,{"$f":"+X24","v":""},null,null,{"$f":"+AA24","v":""},null,null,null,null,null,{"$f":"+AG24","v":""}]
[null,null,null,null,null,"",null,null,null,null,null,null,null,null,null,null,null,null,null,null,null,null,null,"",null,null,"",null,null,null,null,null,""]
[null,null,null,null,null,"",null,null,null,null,null,null,null,null,null,null,null,null,null,null,null,null,null,"",null,null,"",null,null,null,null,null,""]
[null,null,null,null,null,"",null,null,null,null,null,null,null,null,null,null,null,null,null,null,null,null,null,"",null,null,"",null,null,null,null,null,""]
[null,null,null,null,null,"",null,null,null,null,null,null,null,null,null,null,null,null,null,null,null,null,null,"",null,null,"",null,null,null,null,null,""]
[null,null,null,null,null,"",null,null,null,null,null,null,null,null,null,null,null,null,null,null,null,null,null,"",null,null,"",null,null,null,null,null,""]
[null,null,null,null,null,"",null,null,null,null,null,null,null,null,null,null,null,null,null,null,null,null,null,"",null,null,"",null,null,null,null,null,""]
[null,null,null,null,null,"",null,null,null,null,null,null,null,null,null,null,null,null,null,null,null,null,null,"",null,null,"",null,null,null,null,null,""]
[null,null,null,null,null,"",null,null,null,null,null,null,null,null,null,null,null,null,null,null,null,null,null,"",null,null,"",null,null,null,null,null,""]
[null,null,null,null,null,"",null,null,null,null,null,null,null,null,null,null,null,null,null,null,null,null,null,"",null,null,"",null,null,null,null,null,""]
[null,null,null,null,null,"",null,null,null,null,null,null,null,null,null,null,null,null,null,null,null,null,null,"",null,null,"",null,null,null,null,null,""]
[null,null,null,null,null,"",null,null,null,null,null,null,null,null,null,null,null,null,null,null,null,null,null,"",null,null,"",null,null,null,null,null,""]
[null,null,null,null,null,"",null,null,null,null,null,null,null,null,null,null,null,null,null,null,null,null,null,"",null,null,"",null,null,null,null,null,""]
[null,null,null,null,null,"",null,null,null,null,null,null,null,null,null,null,null,null,null,null,null,null,null,"",null,null,"",null,null,null,null,null,""]
[null,null,null,null,null," ",null,null,null,null," ",null,null,null,null,null,null,null,"　",null,null,null,null,"　",null,"　","部品価格合計",null,null,null,null,null,0]
[null,null,null,null,null," ",null,null,null,null," ",null,null,null,null,"非該当証明",null,null,null,{"$f":"[1]修理入力!$V$40","v":"要"},null,{"$f":"[1]修理入力!$X$40","v":"不要"},null,"　",null,"　","運 賃",null,null,null,null,null,""]
[null,null,null,null,null,"　",null,null,null,null," ",null,null,null,null,null,null,null,"　",null,null,null,null,"　",null,"　","出張作業費",null,null,null,null,null,""]
[null,null,null,null,null,"　",null,null,null,null,null,null,null,null,null,null,null,null," ",null,null,null,null,null,null,null,"販売価格合計",null,null,null,null,null,0]
[null,null,null,null,null,"内容",null,null,{"$f":"[1]修理入力!$AY$60","v":"広島県福山市南藏王町25-2"}]
[null,null,null,null,null,{"$f":"+F43","v":""}]
[null,null,null,null,null,{"$f":"+F44","v":""}]
[null,null,null,null,null,{"$f":"+F45","v":""}]
[null,null,null,null,null,{"$f":"+F46","v":""}]
[null,null,null,null,null,null,null,null,null,null,null,null,null,null,null,null,null,null,null,null,null,null,null,null,null,null,null,null,null,null,"締日",null,{"$f":"+AG47","v":0},null,"回収日",null,null,{"$f":"+AL47","v":0}]
[null,null,null,null,null,"　",null,null,null,null,null,null,null,null,null,null,null,null,null,null,null,null,null,null,null,null,null,"承認",null,null,null,"点検",null,null,null,"作成"]
[]
[null,null,null,null,null,null,null,null,null,null,null,null,null,null,null,null,null,null,null,null,null,null,null,null,null,null,null,null,null,null,null,null,null,null,null,{"$f":"+AJ50","v":"2020-06-10"}]
[null,null,null,null,null,null,null,null,null,null,null,null,null,null,null,null,null,null,null,null,null,null,null,null,null,null,null,null,null,null,null,null,null,null,null,null,{"$f":"+AK51","v":"業務"}]
[]
[null,null,null,null,null,"経路　発行（担当）→[製造部長]（出張作業指示書に添付）→[サービス]→[PC入力] 　",null,null,null,null,null,null,null,null,null,null,null,null,null,null,null,null,null,null,null,null,null,null,null,null,"株式会社　AAAAA"]
[null,null,null,null,null,null,null,"　"]

{"sheet":"修理出荷指示書","index":7,"n_rows":54,"n_cols":18,"rows_kept":54,"cut":false,"hidden":false,"merged":[[3,5,5,10],[7,3,7,8],[7,12,7,17],[8,3,9,8],[8,11,9,15],[8,16,9,17],[3,12,3,13],[3,14,3,17],[5,15,5,16],[11,3,11,10],[11,12,11,17],[13,3,13,7],[13,9,13,17],[14,3,14,7],[14,9,14,17],[15,3,15,7],[15,9,15,17],[16,3,16,7],[16,9,16,17],[17,3,17,7],[17,9,17,17],[18,3,18,7],[18,9,18,17],[19,3,19,7],[19,9,19,17],[21,3,21,5],[21,8,21,11],[21,13,21,17],[38,3,38,10],[38,12,38,17],[22,3,22,5],[22,8,22,9],[22,10,22,12],[22,13,24,17],[30,5,32,10],[30,12,30,13],[30,14,30,17],[34,3,34,8],[34,12,34,17],[35,3,36,8],[35,11,36,15],[35,16,36,17],[32,15,32,16],[40,3,40,7],[40,9,40,17],[41,3,41,7],[41,9,41,17],[42,3,42,7],[42,9,42,17],[43,3,43,7],[43,9,43,17],[44,3,44,7],[44,9,44,17],[45,3,45,7],[45,9,45,17],[46,3,46,7],[46,9,46,17],[48,3,48,7],[48,13,48,17],[49,13,51,17]]}
[]
[]
[]
[null,null,null,null,null,"出　荷　指　示　書",null,null,null,null,null,null,"受注No",null,{"$f":"[1]修理入力!$S$7","v":1205930}]
[null,null,null,null,null,null,null,null,null,null,null,null,null," ",null,null," "]
[null,null,null,null,null,null,null,null,null,null,null,{"$f":"IF(VALUE(N6)<日付取得!B1,日付取得!A1+1,日付取得!A1)","v":{"$error":"#VALUE!"}},"年",{"$f":"IF(LEFT([1]修理入力!AI22,2)=\"10\",10,IF(LEFT([1]修理入力!AI22,2)=\"11\",11,IF(LEFT([1]修理入力!AI22,2)=\"12\",12,LEFT([1]修理入力!AI22,1))))","v":""},"月",{"$f":"IF(AND(MID([1]修理入力!$AI$22,2,1)=\"/\",LEN([1]修理入力!$AI$22)=4),RIGHT([1]修理入力!$AI$22,2),IF(AND(MID([1]修理入力!$AI$22,3,1)=\"/\",LEN([1]修理入力!$AI$22)=5),RIGHT([1]修理入力!$AI$22,2),IF(AND(MID([1]修理入力!$AI$22,3,1)=\"/\",LEN([1]修理入力!$AI$22)=4),RIGHT([1]修理入力!$AI$22,1),IF(AND(MID([1]修理入力!$AI$22,2,1)=\"/\",LEN([1]修理入力!$AI$22)=3),RIGHT([1]修理入力!$AI$22,1)))))","v":false},null,"日"]
[]
[null,null,"契約先",{"$f":"[1]修理入力!$I$9","v":0},null,null,null,null,null,null,null,null,"得意先"]
[null,null,"御届先",{"$f":"[1]修理入力!$I$12","v":0},null,null,null,null,null," ",null,{"$f":"IF([1]修理入力!$AA$12=\"\",\"\",[1]修理入力!$AA$12)","v":""},null,null,null,null,"様"]
[null,null,"会社名",null,null,null,null,null,null,null,"担当者名"]
[]
[null,null,"住所",{"$f":"[1]修理入力!$AY$60","v":"広島県福山市南藏王町25-2"},null,null,null,null,null,null,null,"TEL",{"$f":"[1]修理入力!$AI$12","v":0}]
[]
[null,null,"機　番","品　　　　　　　名",null,null,null,null,"数量","備　　　　　　　　考"]
[null,null,{"$f":"[1]修理入力!$AA$21","v":"A-123456"},{"$f":"[1]修理入力!F25","v":0},null,null,null,null,{"$f":"[1]修理入力!X25","v":0},{"$f":"[1]修理入力!$F$44","v":"00:00:00"}]
[null,null," ",{"$f":"IF([1]修理入力!F26=\"\",\"\",[1]修理入力!F26)","v":""},null,null,null,null,{"$f":"IF([1]修理入力!X26=\"\",\"\",[1]修理入力!X26)","v":""}]
[null,null," ",{"$f":"IF([1]修理入力!F27=\"\",\"\",[1]修理入力!F27)","v":""},null,null,null,null,{"$f":"IF([1]修理入力!X27=\"\",\"\",[1]修理入力!X27)","v":""}]
[null,null," ",{"$f":"IF([1]修理入力!F28=\"\",\"\",[1]修理入力!F28)","v":""},null,null,null,null,{"$f":"IF([1]修理入力!X28=\"\",\"\",[1]修理入力!X28)","v":""}]
[null,null," ",{"$f":"IF([1]修理入力!F29=\"\",\"\",[1]修理入力!F29)","v":""},null,null,null,null,{"$f":"IF([1]修理入力!X29=\"\",\"\",[1]修理入力!X29)","v":""}]
[null,null," ",{"$f":"IF([1]修理入力!F30=\"\",\"\",[1]修理入力!F30)","v":""},null,null,null,null,{"$f":"IF([1]修理入力!X30=\"\",\"\",[1]修理入力!X30)","v":""}]
[]
[null,null,null," ",null,null,null,null,null,null,null,null,null,"出荷担当者"]
[null,null,"運 送 便"]
[]
[]
[]
[null,null,null,null,null,null,null,null,null,null," ",null,null," ",null,null," "]
[]
[]
[]
[null,null,null,null,null,"出　荷　指　示　書",null,null,null,null,null,null,"受注No",null,{"$f":"O4","v":1205930}]
[null,null,null,null,null,null,null,null,null,null,null,null,null," ",null,null," "]
[null,null,null,null,null,null,null,null,null,null,null,{"$f":"L6","v":{"$error":"#VALUE!"}},"年",{"$f":"N6","v":""},"月",{"$f":"P6","v":false},null,"日"]
[]
[null,null,"契約先",{"$f":"+D8","v":0},null,null,null,null,null,null,null,null,"営業部業務控"]
[null,null,"御届先",{"$f":"+D9","v":0},null,null,null,null,null," ",null,{"$f":"+L9","v":""},null,null,null,null,"様"]
[null,null,"会社名",null,null,null,null,null,null,null,"担当者名"]
[]
[null,null,"住所",{"$f":"D12","v":"広島県福山市南藏王町25-2"},null,null,null,null,null,null,null,"TEL","052-504-5201"]
[]
[null,null,"機　番","品　　　　　　　名",null,null,null,null,"数量","備　　　　　　　　考"]
[null,null,{"$f":"+C15","v":"A-123456"},{"$f":"+D15","v":0},null,null,null,null,{"$f":"+I15","v":0},{"$f":"J15","v":0}]
[null,null,"　",{"$f":"+D16","v":""},null,null,null,null,{"$f":"+I16","v":""}]
[null,null,"　","",null,null,null,null,""]
[null,null,"　","",null,null,null,null,""]
[null,null,"　","",null,null,null,null,""]
[null,null,"　","",null,null,null,null,""]
[]
[null,null,null,null,null,null,null,null,"上記の製品及び部品・付属品一式",null,null,null,null,"受　領　印"]
[null,null,null,null,null,null,null,null,"　　　月　　　日に確かに受領しました。"]
[null,null,null,null,null,null,null,null,"万一紛失いたしました際は当方の責任で"]
[null,null,null,null,null,null,null,null,"あることを認めます。"]
[]
[null,null,null,null,null,null,null,null,null,null," ",null,null," ",null,null," "]

{"sheet":"出張作業","index":8,"n_rows":52,"n_cols":39,"rows_kept":52,"cut":false,"hidden":false,"merged":[[51,7,51,28],[45,27,49,30],[45,31,49,34],[50,5,50,29],[50,31,50,38],[48,36,48,37],[47,35,47,38],[43,25,43,31],[43,32,43,37],[44,5,44,12],[44,13,44,14],[44,15,44,18],[44,19,44,23],[44,25,44,31],[44,32,44,37],[43,5,43,12],[43,13,43,14],[43,15,43,18],[43,19,43,23],[42,5,42,12],[42,13,42,14],[42,15,42,18],[42,19,42,23],[40,25,40,31],[41,5,41,12],[41,13,41,14],[41,15,41,18],[41,19,41,23],[41,25,41,31],[40,5,40,12],[40,13,40,14],[40,15,40,18],[40,19,40,23],[35,25,35,31],[37,25,37,31],[38,25,38,31],[39,5,39,12],[39,13,39,14],[39,15,39,18],[39,19,39,23],[30,5,30,13],[30,14,30,17],[30,18,30,24],[30,25,30,31],[30,32,30,38],[17,16,17,20],[17,22,17,26],[17,28,17,32],[17,34,17,38],[18,5,20,33],[18,34,20,38],[7,24,9,25],[7,26,9,32],[7,33,9,33],[7,34,9,38],[16,5,17,8],[16,10,16,14],[16,16,16,20],[16,22,16,26],[16,28,16,32],[15,8,15,15],[15,16,15,18],[15,19,15,26],[15,27,15,30],[15,31,15,38],[16,34,16,38],[17,10,17,14],[2,15,3,15],[2,16,3,26],[2,27,3,28],[4,15,4,38],[5,3,29,3],[5,4,45,4],[5,5,6,8],[5,9,6,12],[7,5,9,7],[7,8,9,23],[14,5,14,38],[15,5,15,7],[5,13,6,17],[5,18,6,21],[5,22,6,33],[5,37,5,38],[10,33,13,33],[10,34,13,38],[10,5,13,7],[10,8,11,23],[12,8,13,23],[10,24,13,25],[10,26,13,32]]}
[]
[null,null,null,null,null,"　",null,null," "," "]
[null,null,null,null,null," ",null,null,null,null,null,null,null," ",null," ","出張作業指示書",null,null,null,null,null,null,null,null,null,null," ",null,null," "," "]
[null,null,null,null,null,null,null,null,null,null," "]
[]
[null,null,null,"使用方法¨管理規定標準書の本帳票記入要領参照","使用目的¨作業内容を把握して明確に処理をする","客先コード",null,null,null,{"$f":"[1]修理入力!$J$7","v":0},{"$f":"[1]修理入力!$J$7","v":0},{"$f":"[1]修理入力!$J$7","v":0},{"$f":"[1]修理入力!$J$7","v":0},"受注番号",null,null,null,null,{"$f":"[1]修理入力!$S$7","v":1205930},null,null,null," ",null,null,null,null,null,null,null,null,null,null,null,"帳票Ｎｏ.",null,null,1036]
[null,null,null,null,null,null,null,null,null,{"$f":"[1]修理入力!$J$7","v":0},{"$f":"[1]修理入力!$J$7","v":0},{"$f":"[1]修理入力!$J$7","v":0},{"$f":"[1]修理入力!$J$7","v":0}]
[null,null,null,null,null,"契約先",null,null,{"$f":"[1]修理入力!$I$9","v":0},null,null,null,null,null,null,null,null,null,null,null,null,null,null,null,"契約担当",null,{"$f":"[1]修理入力!$AA$9","v":0},null,null,null,null,null,null,"電話",{"$f":"[1]修理入力!$AI$9","v":0}]
[]
[]
[null,null,null,null,null,"客先",null,null,{"$f":"[1]修理入力!$I$12","v":0},null,null,null,null,null,null,null,null,null,null,null,null,null,null,null,"客先担当",null,{"$f":"[1]修理入力!$AA$12","v":0},null,null,null,null,null,null,"電話",{"$f":"[1]修理入力!$AI$12","v":0}]
[]
[null,null,null,null,null,null,null,null,{"$f":"[1]修理入力!$AY$60","v":"広島県福山市南藏王町25-2"}]
[]
[]
[null,null,null,null,null,"機種名",null,null,{"$f":"[1]修理入力!$I$21","v":"00:00:00"},null,null,null,null,null,null,null,"機番",null,null,{"$f":"[1]修理入力!$AA$21","v":"A-123456"},null,null,null,null,null,null,null,"作業者名"]
[null,null,null,null,null,"作業項目",null,null,null,"①","新規立会トライ",null,null,null,null,"②","再度立会トライ",null,null,null,null,"③","修理依頼",null,null,null,null,"④","クレーム",null,null,null,null,"⑤","再発クレーム"]
[null,null,null,null,null,null,null,null,null,"⑥","新設スケッチ",null,null,null,null,"⑦","技術打合わせ"]
[null,null,null,null,null,"作業内容",null,null,null,null,null,null,null,null,null,null,null,null,null,null,null,null,null,null,null,null,null,null,null,null,null,null,null,null,"客先確認印"]
[]
[]
[null,null,null,null,null,"クレームの場合、内容と現象"]
[]
[]
[null,null,null,null,null,"原因"]
[]
[]
[null,null,null,null,null,"処置"]
[]
[]
[null,null,null,null,null,"作　業　日",null,null,null,null,null,null,null,null,"人　数",null,null,null,"作業開始時刻",null,null,null,null,null,null,"作業終了時刻",null,null,null,null,null,null,"作業時間"]
[null,null,null,null,null,"　",null,"年",null,null,"月",null,null,"日",null,null,null,null,null,null,null,"：",null,null,null,null,null,null,"：",null,null,null,null,null,"時間",null,null,null,"分"]
[null,null,null,null,null,"　",null,"年",null,null,"月",null,null,"日",null,null,null,null,null,null,null,"：",null,null,null,null,null,null,"：",null,null,null,null,null,"時間",null,null,null,"分"]
[null,null,null,null,null,"　",null,"年",null,null,"月",null,null,"日",null,null,null,null,null,null,null,"：",null,null,null,null,null,null,"：",null,null,null,null,null,"時間",null,null,null,"分"]
[null,null,null,null,null,"　",null,"年",null,null,"月",null,null,"日",null,null,null,null,null,null,null,"：",null,null,null,null,null,null,"：",null,null,null,null,null,"時間",null,null,null,"分"]
[null,null,null,null,null,null,null,null,null,null,null,null,null,null,null,null,null,null,null,null,null,null,null,null,null,"作業時間合計",null,null,null,null,null,null,null,null,"時間",null,null,null,"分"]
[]
[null,null,null,null,null,null,null,null,null,null,null,null,null,null,null,null,null,null,null,null,null,null,null,null,null,"作　業　金　額",null,null,null,null,null,null,null,null,null,null,null,null,"円"]
[null,null,null,null,null,"　弊社から貴社までの往復所要時間",null,null,null,null,null,null,null,null,null,null,null,null,null,null,"時間",null,null,null,"分","往復所要金額",null,null,null,null,null,null,null,null,null,null,null,null,"円"]
[null,null,null,null,null,"修理に使用した部品",null,null,null,null,null,null,null,"個数",null,"単　価",null,null,null,"金　額",null,null,null,null,null,"往復通行料金",null,null,null,null,null,null,null,null,"　",null,null,null,"円"]
[null,null,null,null,null,null,null,null,null,null,null,null,null,null,null,null,null,null,null,null,null,null,null,null,null,"宿　 　泊　　費",null,null,null,null,null,null,null,null,"　",null,null,null,"円"]
[null,null,null,null,null,null,null,null,null,null,null,null,null,null,null,null,null,null,null,null,null,null,null,null,null,"部品合計金額",null,null,null,null,null,null,null,null,null,null,null,null,"円"]
[]
[null,null,null,null,null,null,null,null,null,null,null,null,null,null,null,null,null,null,null,null,null,null,null,null,null,"　",null,null,null,null,null,null,null,null,null,null,null,null,"　"]
[null,null,null,null,null,null,null,null,null,null,null,null,null,null,null,"合計金額",null,null,null,null,null,null,null,null,null,"請求合計金額",null,null,null,null,null,null,null,null,null,null,null,null,"円"]
[null,null,null,null,null,null,null,null,null,null,null,null,null,null,null,null,null,null,null,null,null,null,null,null,null,null,null,"承認",null,null,null,"点検",null,null,null,"作成"]
[]
[null,null,null,null,null,null,null,null,null,null,null,null,null,null,null,null,null,null,null,null,null,null,null,null,null,null,null,null,null,null,null,null,null,null,null,{"$f":"[1]修理入力!$AJ$51","v":"2020-06-10"}]
[null,null,null,null,null,null,null,null,null,null,null,null,null,null,null,null,null,null,null,null,null,null,null,null,null,null,null,null,null,null,null,null,null,null,null,null,{"$f":"[1]修理入力!$AK$52","v":"業務"}]
[]
[null,null,null,null,null,"経路 発行 [担当] → [製造部長] → [サービス] → [製造部長] →[事務] →[保存]　　",null,null,null,null,null,null,null,null,null,null,null,null,null,null,null,null,null,null,null,null,null,null,null,null,null,"株式会社　AAAAA"]
[null,null,null,null,null,null,null,"　"]

{"sheet":"対策書","index":9,"n_rows":59,"n_cols":33,"rows_kept":59,"cut":false,"hidden":false,"merged":[[4,28,5,29],[4,30,7,31],[6,2,7,6],[6,7,7,15],[6,16,7,19],[6,20,7,29],[4,16,5,19],[4,20,5,21],[4,22,5,23],[4,24,5,25],[4,26,5,27],[1,2,2,15],[4,0,21,0],[4,1,27,1],[4,2,5,6],[4,7,5,15],[8,2,9,7],[18,2,19,7],[24,32,27,35],[28,2,29,7],[38,2,39,7],[40,3,40,6],[58,26,58,35],[54,24,57,27],[54,28,57,31],[54,32,57,35],[58,2,58,24]]}
[]
[null,null,"不良発生対策書"]
[null,null,null,null,null,null,null,null,null,null,null,null,null,null,null,null,null,"発生日",null,null,null,null,"年",null,null,"月",null,null,"日",null,null,"帳票Ｎｏ 0010"]
[]
["使用方法¨管理規定標準書の本帳票記入要領参照。","使用目的¨不良発生の内容を把握し再発を防止する。","発見部署",null,null,null,null,"　",null,null,null,null,null,null,null,null,"発生部署",null,null,null,"営",null,"設",null,"外",null,"機",null,"組",null,"発生回数"]
[]
[null,null,"機種名",null,null,null,null,null,null,null,null,null,null,null,null,null,"発生頻度",null,null,null,"初回    　　再発"]
[]
[null,null," 1. 発生現象",null,null,null,null,null,null,"製番、品番、品名は必ず書く。　発生している状態だけを明確に書く"]
[]
[]
[]
[]
[]
[]
[]
[]
[]
[null,null," 2.処置内容",null,null,null,null,null,null,"修正内容だけを書く"]
[]
[]
[]
[]
[]
[null,null,null,null,null,null,null,null,null,null,null,null,null,null,null,null,null,null,null,null,null,null,null,null,null,null,null,null,null,null,null,null,"処置承認"]
[]
[]
[]
[null,null," 3. 原因",null,null,null,null,null,null,"不良を発生させた人、又はその監督者がその原因を書く"]
[]
[]
[]
[]
[]
[]
[]
[]
[null,null,null,"　"]
[null,null," 4. 対策",null,null,null,null,null,null,"二度と起こさないようにするための対策方法を書く"]
[]
[null,null,null,"　",null,null,null,null,"　"]
[]
[]
[null,null,null,null,null,null,null,null,"　"]
[]
[]
[]
[]
[]
[]
[]
[]
[null,null,"　"]
[]
[null,null,null,null,null,null,null,null,null,null,null,null,null,null,null,null,null,null,null,null,null,null,null,null,"承認",null,null,null,"点検",null,null,null,"作成"]
[null,null,null,"　"]
[]
[]
[null,null,"経路　発行[担当] - [主任]  - [部長]",null,null,null,null,null,null,null,null,null,null,null,null,null,null,null,null,null,null,null,null,null,null,null,"株式会社　AAAAAA"]

{"sheet":"新規登録","index":10,"n_rows":57,"n_cols":18,"rows_kept":57,"cut":false,"hidden":false,"merged":[[56,3,56,5],[56,10,56,14],[49,7,49,14],[51,7,55,7],[51,8,55,8],[51,9,55,9],[54,12,54,13],[53,11,53,14],[46,7,46,14],[47,7,47,14],[48,7,48,14],[45,7,45,14],[40,4,40,5],[40,7,40,8],[40,9,40,14],[41,4,41,5],[41,7,41,8],[41,9,41,14],[42,4,42,5],[42,7,42,8],[42,9,42,14],[44,7,44,14],[44,3,44,4],[45,3,45,4],[38,4,38,5],[38,7,38,8],[38,9,38,14],[39,4,39,5],[39,7,39,8],[39,9,39,14],[31,5,31,8],[31,10,31,12],[31,13,31,14],[34,1,55,1],[34,2,55,2],[34,4,34,5],[34,9,34,14],[35,4,35,5],[35,7,35,8],[35,9,35,14],[36,4,36,5],[36,7,36,8],[36,9,36,14],[37,4,37,5],[37,7,37,8],[37,9,37,14],[26,10,26,14],[21,9,25,9],[26,3,26,5],[5,7,5,8],[6,7,6,8],[7,7,7,8],[8,7,8,8],[9,7,9,8],[10,7,10,8],[11,7,11,8],[14,7,14,14],[15,7,15,14],[16,7,16,14],[17,7,17,14],[18,7,18,14],[19,7,19,14],[21,7,25,7],[8,9,8,14],[9,9,9,14],[23,11,23,14],[12,9,12,14],[12,7,12,8],[5,4,5,5],[4,2,25,2],[1,5,1,8],[1,13,1,14],[1,10,1,12],[10,9,10,14],[11,9,11,14],[4,9,4,14],[5,9,5,14],[6,9,6,14],[7,9,7,14],[6,4,6,5],[7,4,7,5],[8,4,8,5],[24,12,24,13],[21,8,25,8],[46,3,46,4],[47,3,47,4],[48,3,48,4],[49,3,49,4],[4,1,25,1],[18,3,18,4],[19,3,19,4],[9,4,9,5],[10,4,10,5],[16,3,16,4],[17,3,17,4],[11,4,11,5],[12,4,12,5],[14,3,14,4],[15,3,15,4],[4,4,4,5]]}
[]
[null,null,null,"[形式006]",null,"新規契約先　登録申請書",null,null,null,null,"帳票Ｎｏ.",null,null,1046,null,null,null,{"$f":"IF(CODE(J5)=32,\"A\",\"B\")","v":"B"}]
[null,null,null,"コードＮｏ",null,null,null,null,null,null," "]
[]
[null,"使用方法¨管理規定標準書の本帳票記入要領参照","使用目的¨業務担当が新規契約先の登録をする","会社名",{"$f":"[1]登録申請!D5","v":"鹿児島工業㈱"},null,null,"事業所・工場・支店名",null,{"$f":"[1]登録申請!H5","v":0}]
[null,null,null,"ふりがな",{"$f":"[1]登録申請!D6","v":"かごしまこうぎょう"},null,null,"ふりがな",null,{"$f":"[1]登録申請!H6","v":0}]
[null,null,null,"郵便番号",{"$f":"[1]登録申請!D7","v":"123-22222"},null,null,"郵便番号",null,{"$f":"[1]登録申請!H7","v":0}]
[null,null,null,"住所",{"$f":"[1]登録申請!D8","v":"鹿児島市薩摩"},null,null,"住所",null,{"$f":"[1]登録申請!H8","v":0},null,null,null,null,null,"　","　","　"]
[null,null,null,"TEL",{"$f":"[1]登録申請!D9","v":"123-33333"},null,null,"TEL",null,{"$f":"[1]登録申請!H9","v":0}]
[null,null,null,"FAX",{"$f":"[1]登録申請!D10","v":"123-44444"},null,null,"FAX",null,{"$f":"[1]登録申請!H10","v":0}]
[null,null,null,"担当者",{"$f":"[1]登録申請!D11","v":"山田"},null,null,"担当者",null,{"$f":"[1]登録申請!H11","v":0}]
[null,null,null,"部署名",{"$f":"[1]登録申請!D12","v":"購買課"},null,null,"部署名",null,{"$f":"[1]登録申請!H12","v":0},null,null,null,null,null,"　"]
[null,null,null,"役職名",{"$f":"[1]登録申請!D13","v":"課長"},null,null,"役職名",null,{"$f":"[1]登録申請!H13","v":0}]
[null,null,null,null,null,null,null,null,null," "]
[null,null,null,"締切日",null,{"$f":"[1]登録申請!E15","v":20},null,"その他の指定内容"]
[null,null,null,"支払日",null,{"$f":"[1]登録申請!E16","v":5},null,{"$f":"[1]登録申請!G16","v":0}]
[null,null,null,"支払方法",null,{"$f":"[1]登録申請!E17","v":"現金"},null,{"$f":"[1]登録申請!G17","v":0}]
[null,null,null,"手形サイト",null,{"$f":"[1]登録申請!E18","v":0},null,{"$f":"[1]登録申請!G18","v":0}]
[null,null,null,"指定納品伝票　有・無",null,{"$f":"[1]登録申請!E19","v":0},null,{"$f":"[1]登録申請!G19","v":0}]
[null,null,null,"指定請求書　　 有・無",null,{"$f":"[1]登録申請!E20","v":"なし"},null,{"$f":"[1]登録申請!G20","v":0}]
[]
[null,null,null,"　",null,null,null,"ソフト修正","入力","承認","点検","作成"]
[]
[null,null,null,null,null,null,null,null,null,null,null,{"$f":"[1]登録申請!$J$24","v":"2020-06-10"}]
[null,null,null,null,null,null,null,null,null,null,null,null,{"$f":"[1]登録申請!$K$25","v":"浅田"}]
[]
[null,null,null,"経路　発行 [担当] → [社長] →[業務] →[ソフト担当] →[廃棄]　　",null,null,null,null,null,null,"株式会社　AAAAAA"]
[]
[]
[]
[]
[null,null,null,"[形式006]",null,"新規納入先　登録申請書",null,null,null,null,"帳票Ｎｏ.",null,null,1047,null,null,null,{"$f":"IF(CODE(J35)=32,\"A\",\"B\")","v":"B"}]
[null,null,null,"コードＮｏ",null,null,null,null,null,null," "]
[]
[null,"使用方法¨管理規定標準書の本帳票記入要領参照","使用目的¨業務担当が新規契約先の登録をする","会社名",{"$f":"[1]登録申請!D34","v":"鹿児島工業㈱"},null,null,"事業所・工場・支店名",null,{"$f":"[1]登録申請!H34","v":0}]
[null,null,null,"ふりがな",{"$f":"[1]登録申請!D35","v":"かごしまこうぎょう"},null,null,"ふりがな",null,{"$f":"[1]登録申請!H35","v":0}]
[null,null,null,"郵便番号",{"$f":"[1]登録申請!D36","v":"123-55555"},null,null,"郵便番号",null,{"$f":"[1]登録申請!H36","v":0}]
[null,null,null,"住所",{"$f":"[1]登録申請!D37","v":"鹿児島市山手"},null,null,"住所",null,{"$f":"[1]登録申請!H37","v":0},null,null,null,null,null,"　","　","　"]
[null,null,null,"TEL",{"$f":"[1]登録申請!D38","v":"123-66666"},null,null,"TEL",null,{"$f":"[1]登録申請!H38","v":0}]
[null,null,null,"FAX",{"$f":"[1]登録申請!D39","v":"123-77777"},null,null,"FAX",null,{"$f":"[1]登録申請!H39","v":0}]
[null,null,null,"担当者",{"$f":"[1]登録申請!D40","v":"山田"},null,null,"担当者",null,{"$f":"[1]登録申請!H40","v":0}]
[null,null,null,"部署名",{"$f":"[1]登録申請!D41","v":"購買課"},null,null,"部署名",null,{"$f":"[1]登録申請!H41","v":0},null,null,null,null,null,"　"]
[null,null,null,"役職名",{"$f":"[1]登録申請!D42","v":"課長"},null,null,"役職名",null,{"$f":"[1]登録申請!H42","v":0}]
[null,null,null,null,null,null,null,null,null," "]
[null,null,null,"締切日",null,{"$f":"[1]登録申請!E44","v":0},null,"その他の指定内容"]
[null,null,null,"支払日",null,{"$f":"[1]登録申請!E45","v":0},null,{"$f":"[1]登録申請!G45","v":0}]
[null,null,null,"支払方法",null,{"$f":"[1]登録申請!E46","v":0},null,{"$f":"[1]登録申請!G46","v":0}]
[null,null,null,"手形サイト",null,{"$f":"[1]登録申請!E47","v":0},null,{"$f":"[1]登録申請!G47","v":0}]
[null,null,null,"指定納品伝票　有・無",null,{"$f":"[1]登録申請!E48","v":0},null,{"$f":"[1]登録申請!G48","v":0}]
[null,null,null,"指定請求書　　 有・無",null,{"$f":"[1]登録申請!E49","v":0},null,{"$f":"[1]登録申請!G49","v":0}]
[]
[null,null,null,"　",null,null,null,"ソフト修正","入力","承認","点検","作成"]
[]
[null,null,null,null,null,null,null,null,null,null,null,{"$f":"+L24","v":"2020-06-10"}]
[null,null,null,null,null,null,null,null,null,null,null,null,{"$f":"M25","v":"浅田"}]
[]
[null,null,null,"経路　発行 [担当] → [社長] →[業務] →[ソフト担当] →[廃棄]　　",null,null,null,null,null,null,"株式会社　AAAAA"]

{"sheet":"変更印刷","index":11,"n_rows":156,"n_cols":41,"rows_kept":156,"cut":false,"hidden":false,"merged":[[80,5,80,23],[35,5,35,23],[66,34,66,36],[66,37,66,38],[65,5,66,23],[67,5,68,23],[67,34,67,36],[67,37,67,38],[66,25,67,28],[44,37,44,38],[75,5,75,26],[75,30,75,38],[41,5,41,8],[40,5,40,8],[42,10,42,15],[43,15,43,38],[44,22,45,33],[44,34,44,36],[52,5,52,38],[78,5,78,23],[79,5,79,23],[76,5,76,23],[60,25,62,28],[60,34,61,38],[62,30,63,33],[61,9,62,23],[62,34,63,38],[63,5,64,23],[49,8,51,38],[64,25,65,28],[19,40,20,41],[21,6,21,10],[21,11,21,12],[21,15,21,19],[21,20,21,21],[31,5,32,23],[31,27,36,30],[31,31,36,34],[33,5,34,23],[33,35,33,38],[34,36,35,37],[41,16,42,26],[57,40,58,41],[39,5,39,23],[28,34,28,36],[28,37,28,38],[29,5,30,23],[29,34,29,36],[22,25,24,28],[22,30,23,33],[23,9,24,23],[22,34,23,38],[24,30,25,33],[24,34,25,38],[20,34,21,38],[15,30,15,33],[15,34,15,38],[20,30,21,33],[16,24,17,29],[16,30,17,33],[18,30,19,33],[19,25,21,28],[16,34,17,38],[25,5,26,23],[23,5,24,8],[29,37,29,38],[6,3,33,3],[6,4,35,4],[6,5,7,8],[6,9,7,12],[26,25,27,28],[28,25,29,28],[8,8,10,38],[11,8,13,38],[19,6,20,10],[19,11,20,12],[19,13,21,14],[19,15,20,19],[19,20,20,21],[6,13,7,17],[6,18,7,21],[27,5,28,23],[14,5,14,38],[6,34,6,36],[6,37,6,38],[6,22,7,33],[15,5,17,7],[15,8,17,23],[15,24,15,29],[44,3,71,3],[44,4,73,4],[44,5,45,8],[44,9,45,12],[44,13,45,17],[44,18,45,21],[61,5,62,8],[46,5,48,7],[46,8,48,38],[49,5,51,7],[58,30,59,33],[58,34,59,38],[59,6,59,10],[59,11,59,12],[59,15,59,19],[59,20,59,21],[57,6,58,10],[57,11,58,12],[57,13,59,14],[57,20,58,21],[57,25,59,28],[56,30,57,33],[56,34,57,38],[60,30,61,33],[3,27,4,30],[41,27,42,30],[69,5,70,23],[69,27,74,30],[69,31,74,34],[71,5,72,23],[57,15,58,19],[53,5,55,7],[53,8,55,23],[53,24,53,29],[53,30,53,33],[53,34,53,38],[54,24,55,29],[54,30,55,33],[54,34,55,38],[3,5,3,8],[3,16,4,26],[4,10,4,15],[11,5,13,7],[8,5,10,7],[5,15,5,38],[18,34,19,38],[37,5,37,26],[37,30,37,38],[85,18,86,21],[85,22,86,33],[85,34,85,36],[85,37,85,38],[82,5,82,8],[82,16,83,26],[82,27,83,30],[83,10,83,15],[87,5,89,7],[87,8,89,38],[90,5,92,7],[90,8,92,38],[84,15,84,38],[85,3,112,3],[85,4,114,4],[85,5,86,8],[85,9,86,12],[85,13,86,17],[93,5,93,38],[94,5,96,7],[94,8,96,23],[94,24,94,29],[94,30,94,33],[94,34,94,38],[95,24,96,29],[95,30,96,33],[95,34,96,38],[98,6,99,10],[98,11,99,12],[98,13,100,14],[98,15,99,19],[100,6,100,10],[100,11,100,12],[100,15,100,19],[103,34,104,38],[104,5,105,23],[100,20,100,21],[98,40,99,41],[99,30,100,33],[99,34,100,38],[97,30,98,33],[97,34,98,38],[98,20,99,21],[98,25,100,28],[105,25,106,28],[107,25,108,28],[136,40,137,41],[116,5,116,26],[116,30,116,38],[113,36,114,37],[110,5,111,23],[110,27,115,30],[71,35,71,38],[72,36,73,37],[102,9,103,23],[112,35,112,38],[110,31,115,34],[112,5,113,23],[106,5,107,23],[107,34,107,36],[107,37,107,38],[108,5,109,23],[108,34,108,36],[108,37,108,38],[101,25,103,28],[101,30,102,33],[101,34,102,38],[102,5,103,8],[103,30,104,33],[120,5,120,8],[121,5,121,8],[121,16,122,26],[121,27,122,30],[122,10,122,15],[123,15,123,38],[124,3,151,3],[124,4,153,4],[124,5,125,8],[124,9,125,12],[124,13,125,17],[124,18,125,21],[124,22,125,33],[124,34,124,36],[124,37,124,38],[126,5,128,7],[126,8,128,38],[129,5,131,7],[129,8,131,38],[132,5,132,38],[133,5,135,7],[133,8,135,23],[133,24,133,29],[133,30,133,33],[133,34,133,38],[134,24,135,29],[134,30,135,33],[134,34,135,38],[136,30,137,33],[136,34,137,38],[137,6,138,10],[137,11,138,12],[137,13,139,14],[137,15,138,19],[137,20,138,21],[137,25,139,28],[138,30,139,33],[138,34,139,38],[139,6,139,10],[139,11,139,12],[139,15,139,19],[139,20,139,21],[149,5,150,23],[149,27,154,30],[149,31,154,34],[151,5,152,23],[151,35,151,38],[152,36,153,37],[155,5,155,26],[155,30,155,38],[140,25,142,28],[140,30,141,33],[140,34,141,38],[141,5,142,8],[141,9,142,23],[142,30,143,33],[142,34,143,38],[143,5,144,23],[144,25,145,28],[145,5,146,23],[146,25,147,28],[146,34,146,36],[146,37,146,38],[147,5,148,23],[147,34,147,36],[147,37,147,38]]}
[]
[]
[null,null,null,null,null,"　",null,null," "," "]
[null,null,null,null,null,"[形式001]",null,null,null,null,null,null,null," ",null,null,"受注内容変更届",null,null,null,null,null,null,null,null,null,null,"営業控",null,null,null," "]
[null,null,null,null,null,null,null,null,null,null,"　"]
[]
[null,null,null,"使用方法¨管理規定標準書の本帳票記入要領参照","使用目的¨業務担当が受注内容変更を弥生販売に登録する","コードNo",null,null,null,{"$f":"[1]変更入力!$J$7","v":0},null,null,null," ",null,null,null,null," ",null,null,null," ",null,null,null,null,null,null,null,null,null,null,null,"帳票Ｎｏ.",null,null,1048]
[]
[null,null,null,null,null,"契約先",null,null,{"$f":"[1]変更入力!$I$9","v":0}]
[]
[]
[null,null,null,null,null,"納入先",null,null,{"$f":"[1]変更入力!$I$12","v":0}]
[]
[]
[]
[null,null,null,null,null,"機種    型式",null,null,{"$f":"[1]変更入力!$I$16","v":0},null,null,null,null,null,null,null,null,null,null,null,null,null,null,null,"機　番",null,null,null,null,null,"　台　数",null,null,null,"販売価格"]
[null,null,null,null,null,null,null,null,null,null,null,null,null,null,null,null,null,null,null,null,null,null,null,null,{"$f":"[1]変更入力!$Y$17","v":0},null,null,null,null,null,{"$f":"[1]変更入力!$AE$17","v":0},null,null,null,{"$f":"[1]変更入力!$AI$17","v":0}]
[]
[null,null,null,null,null,"　",null,null,"　",null,null,null,null,null,null,null,null,null,null,null,null,null,null,null,null,null,null,null,null,null,"　運賃",null,null,null,{"$f":"IF([1]変更入力!$AI$19=\"\",\"\",[1]変更入力!$AI$19)","v":""}]
[null,null,null,null,null,null,"価格変更",null,null,null,null,{"$f":"IF([1]変更入力!L20=\"\",\"\",[1]変更入力!L20)","v":"●"},null,null,null,"仕様変更",null,null,null,null,{"$f":"IF([1]変更入力!U20=\"\",\"\",[1]変更入力!U20)","v":""},null,null,null,null,"納期（現在）",null,null,null,null,null,null,null,null,null,null,null,null,null,null,"　"]
[null,null,null,null,null,null,null,null,null,null,null,null,null,null,null,null,null,null,null,null,null,null,null,null,null,null,null,null,null,null," 取 付 費",null,null,null,{"$f":"IF([1]変更入力!$AI$21=\"\",\"\",[1]変更入力!$AI$21)","v":""}]
[null,null,null,null,null,null,"納期変更",null,null,null,null,{"$f":"IF([1]変更入力!L22=\"\",\"\",[1]変更入力!L22)","v":""},null,null,null,"受注取消",null,null,null,null,{"$f":"IF([1]変更入力!U22=\"\",\"\",[1]変更入力!U22)","v":""}]
[null,null,null,null,null," ",null,"　",null,null,null,null,null,"　",null,null,null,null,"　",null,null,null,null,null,null,{"$f":"[1]変更入力!$Z$23","v":"00:00:00"},null,null,null,null,"　合　計",null,null,null,{"$f":"[1]変更入力!$AI$23","v":0}]
[null,null,null,null,null,"説明",null,null,null,{"$f":"IF([1]変更入力!$J$24=\"\",\"\",[1]変更入力!$J$24)","v":""}]
[null,null,null,null,null,null,null,null,null,null,null,null,null,null,null,null,null,null,null,null,null,null,null,null,null,null,null,null,null,null,"　",null,null,null,"　"]
[null,null,null,null,null,{"$f":"[1]変更入力!$F$26","v":0},null,null,null,null,null,null,null,null,null,null,null,null,null,null,null,null,null,null,null,"　"]
[null,null,null,null,null,{"$f":"[1]変更入力!$F$26","v":0},null,null,null,null,null,null,null,null,null,null,null,null,null,null,null,null,null,null,null,"変更納期"]
[null,null,null,null,null,{"$f":"[1]変更入力!$F$28","v":0}]
[null,null,null,null,null,{"$f":"[1]変更入力!$F$28","v":0},null,null,null,null,null,null,null,null,null,null,null,null,null,null,null,null,null,null,null,{"$f":"IF([1]変更入力!$Z$29=\"\",\"\",[1]変更入力!$Z$29)","v":""},null,null,null,null,null,null,null,null,"　",null,null,"　"]
[null,null,null,null,null,{"$f":"[1]変更入力!$F$30","v":0},null,null,null,null,null,null,null,null,null,null,null,null,null,null,null,null,null,null,null,null,null,null,null,null,null,null,null,null,"　",null,null,"　"]
[null,null,null,null,null,{"$f":"[1]変更入力!$F$30","v":0}]
[null,null,null,null,null,{"$f":"[1]変更入力!$F$32","v":0},null,null,null,null,null,null,null,null,null,null,null,null,null,null,null,null,null,null,null,null,null,"承認",null,null,null,"点検",null,null,null,"作成"]
[null,null,null,null,null,{"$f":"[1]変更入力!$F$32","v":0}]
[null,null,null,null,null,{"$f":"[1]変更入力!$F$34","v":0},null,null,null,null,null,null,null,null,null,null,null,null,null,null,null,null,null,null,null,null,null,null,null,null,null,null,null,null,null,{"$f":"[1]変更入力!$AJ$34","v":"2020-06-10"}]
[null,null,null,null,null,{"$f":"[1]変更入力!$F$34","v":0},null,null,null,null,null,null,null,null,null,null,null,null,null,null,null,null,null,null,null,null,null,null,null,null,null,null,null,null,null,null,{"$f":"[1]変更入力!$AK$35","v":"井上"}]
[]
[]
[null,null,null,null,null,"経路　発行 [担当] → [社長] →[製造部長] →[ＰＣ入力] →[保存]　　",null,null,null,null,null,null,null,null,null,null,null,null,null,null,null,null,null,null,null,null,null,null,null,null,"株式会社　AAAAA"]
[]
[]
[]
[null,null,null,null,null,"[形式001]",null,null,null,null,null,null,null," ",null,null,"受注内容変更届",null,null,null,null,null,null,null,null,null,null,"設計",null,null,null," "]
[null,null,null,null,null,null,null,null,null,null,"　"]
[]
[null,null,null,"使用方法¨管理規定標準書の本帳票記入要領参照","使用目的¨設計担当に変更内容を知らせる","コードNo",null,null,null,{"$f":"+J7","v":0},null,null,null," ",null,null,null,null," ",null,null,null," ",null,null,null,null,null,null,null,null,null,null,null,"帳票Ｎｏ.",null,null,1049]
[]
[null,null,null,null,null,"契約先",null,null,{"$f":"+I9","v":0}]
[]
[]
[null,null,null,null,null,"納入先",null,null,{"$f":"+I12","v":0}]
[]
[]
[]
[null,null,null,null,null,"機種    型式",null,null,{"$f":"+I16","v":0},null,null,null,null,null,null,null,null,null,null,null,null,null,null,null,"機　番",null,null,null,null,null,"　台　数",null,null,null,"販売価格"]
[null,null,null,null,null,null,null,null,null,null,null,null,null,null,null,null,null,null,null,null,null,null,null,null,{"$f":"+Y17","v":0},null,null,null,null,null,1,null,null,null,{"$f":"+AI17","v":0}]
[]
[null,null,null,null,null,"　",null,null,"　",null,null,null,null,null,null,null,null,null,null,null,null,null,null,null,null,null,null,null,null,null,"　運賃",null,null,null,{"$f":"+AI19","v":""}]
[null,null,null,null,null,null,"価格変更",null,null,null,null,{"$f":"+L20","v":"●"},null,null,null,"仕様変更",null,null,null,null,{"$f":"+U20","v":""},null,null,null,null,"納期（現在）",null,null,null,null,null,null,null,null,null,null,null,null,null,null,"　"]
[null,null,null,null,null,null,null,null,null,null,null,null,null,null,null,null,null,null,null,null,null,null,null,null,null,null,null,null,null,null," 取 付 費",null,null,null,{"$f":"+AI21","v":""}]
[null,null,null,null,null,null,"納期変更",null,null,null,null,{"$f":"+L22","v":""},null,null,null,"受注取消",null,null,null,null,{"$f":"+U22","v":""}]
[null,null,null,null,null," ",null,"　",null,null,null,null,null,"　",null,null,null,null,"　",null,null,null,null,null,null,{"$f":"+Z23","v":"00:00:00"},null,null,null,null,"　合　計",null,null,null,{"$f":"+AI23","v":0}]
[null,null,null,null,null,"変更内容",null,null,null,{"$f":"+J24","v":""}]
[null,null,null,null,null,null,null,null,null,null,null,null,null,null,null,null,null,null,null,null,null,null,null,null,null,null,null,null,null,null,"　",null,null,null,"　"]
[null,null,null,null,null,{"$f":"+F26","v":0},null,null,null,null,null,null,null,null,null,null,null,null,null,null,null,null,null,null,null,"　"]
[null,null,null,null,null,null,null,null,null,null,null,null,null,null,null,null,null,null,null,null,null,null,null,null,null,"変更納期"]
[null,null,null,null,null,{"$f":"+F28","v":0}]
[null,null,null,null,null,null,null,null,null,null,null,null,null,null,null,null,null,null,null,null,null,null,null,null,null,{"$f":"+Z29","v":""},null,null,null,null,null,null,null,null,"　",null,null,"　"]
[null,null,null,null,null,{"$f":"+F30","v":0},null,null,null,null,null,null,null,null,null,null,null,null,null,null,null,null,null,null,null,null,null,null,null,null,null,null,null,null,"　",null,null,"　"]
[]
[null,null,null,null,null,{"$f":"+F32","v":0},null,null,null,null,null,null,null,null,null,null,null,null,null,null,null,null,null,null,null,null,null,"承認",null,null,null,"点検",null,null,null,"作成"]
[]
[null,null,null,null,null,{"$f":"+F34","v":0},null,null,null,null,null,null,null,null,null,null,null,null,null,null,null,null,null,null,null,null,null,null,null,null,null,null,null,null,null,{"$f":"+AJ34","v":"2020-06-10"}]
[null,null,null,null,null,null,null,null,null,null,null,null,null,null,null,null,null,null,null,null,null,null,null,null,null,null,null,null,null,null,null,null,null,null,null,null,{"$f":"+AK35","v":"井上"}]
[]
[]
[null,null,null,null,null,"経路　発行 [担当] → [社長] →[製造部長] →[設計] →[保存]　　",null,null,null,null,null,null,null,null,null,null,null,null,null,null,null,null,null,null,null,null,null,null,null,null,"株式会社　AAAAA"]
[]
[]
[]
[]
[]
[null,null,null,null,null,"　",null,null," "," "]
[null,null,null,null,null,"[形式001]",null,null,null,null,null,null,null," ",null,null,"受注内容変更届",null,null,null,null,null,null,null,null,null,null,"経理",null,null,null," "]
[null,null,null,null,null,null,null,null,null,null,"　"]
[]
[null,null,null,"使用方法¨管理規定標準書の本帳票記入要領参照","使用目的¨経理担当に変更内容を知らせる","コードNo",null,null,null,{"$f":"+$J$7","v":0},null,null,null," ",null,null,null,null," ",null,null,null," ",null,null,null,null,null,null,null,null,null,null,null,"帳票Ｎｏ.",null,null,1050]
[]
[null,null,null,null,null,"契約先",null,null,{"$f":"+$I$9","v":0}]
[]
[]
[null,null,null,null,null,"納入先",null,null,{"$f":"+$I$12","v":0}]
[]
[]
[]
[null,null,null,null,null,"機種    型式",null,null,{"$f":"+$I$16","v":0},null,null,null,null,null,null,null,null,null,null,null,null,null,null,null,"機　番",null,null,null,null,null,"　台　数",null,null,null,"販売価格"]
[null,null,null,null,null,null,null,null,null,null,null,null,null,null,null,null,null,null,null,null,null,null,null,null,{"$f":"+$Y$17","v":0},null,null,null,null,null,1,null,null,null,{"$f":"+$AI$17","v":0}]
[]
[null,null,null,null,null,"　",null,null,"　",null,null,null,null,null,null,null,null,null,null,null,null,null,null,null,null,null,null,null,null,null,"　運賃",null,null,null,{"$f":"+$AI$19","v":""}]
[null,null,null,null,null,null,"価格変更",null,null,null,null,{"$f":"+$L$20","v":"●"},null,null,null,"仕様変更",null,null,null,null,{"$f":"+$U$20","v":""},null,null,null,null,"納期（現在）",null,null,null,null,null,null,null,null,null,null,null,null,null,null,"　"]
[null,null,null,null,null,null,null,null,null,null,null,null,null,null,null,null,null,null,null,null,null,null,null,null,null,null,null,null,null,null," 取 付 費",null,null,null,{"$f":"+$AI$21","v":""}]
[null,null,null,null,null,null,"納期変更",null,null,null,null,{"$f":"+$L$22","v":""},null,null,null,"受注取消",null,null,null,null,{"$f":"+$U$22","v":""}]
[null,null,null,null,null," ",null,"　",null,null,null,null,null,"　",null,null,null,null,"　",null,null,null,null,null,null,{"$f":"+$Z$23","v":"00:00:00"},null,null,null,null,"　合　計",null,null,null,{"$f":"+$AI$23","v":0}]
[null,null,null,null,null,"変更内容",null,null,null,{"$f":"+$J$24","v":""}]
[null,null,null,null,null,null,null,null,null,null,null,null,null,null,null,null,null,null,null,null,null,null,null,null,null,null,null,null,null,null,"　",null,null,null,"　"]
[null,null,null,null,null,{"$f":"+$F$26","v":0},null,null,null,null,null,null,null,null,null,null,null,null,null,null,null,null,null,null,null,"　"]
[null,null,null,null,null,null,null,null,null,null,null,null,null,null,null,null,null,null,null,null,null,null,null,null,null,"変更納期"]
[null,null,null,null,null,{"$f":"+$F$28","v":0}]
[null,null,null,null,null,null,null,null,null,null,null,null,null,null,null,null,null,null,null,null,null,null,null,null,null,{"$f":"+Z67","v":""},null,null,null,null,null,null,null,null,"　",null,null,"　"]
[null,null,null,null,null,{"$f":"+$F$30","v":0},null,null,null,null,null,null,null,null,null,null,null,null,null,null,null,null,null,null,null,null,null,null,null,null,null,null,null,null,"　",null,null,"　"]
[]
[null,null,null,null,null,{"$f":"+$F$32","v":0},null,null,null,null,null,null,null,null,null,null,null,null,null,null,null,null,null,null,null,null,null,"承認",null,null,null,"点検",null,null,null,"作成"]
[]
[null,null,null,null,null,{"$f":"+$F$34","v":0},null,null,null,null,null,null,null,null,null,null,null,null,null,null,null,null,null,null,null,null,null,null,null,null,null,null,null,null,null,{"$f":"+$AJ$34","v":"2020-06-10"}]
[null,null,null,null,null,null,null,null,null,null,null,null,null,null,null,null,null,null,null,null,null,null,null,null,null,null,null,null,null,null,null,null,null,null,null,null,{"$f":"+$AK$35","v":"井上"}]
[]
[]
[null,null,null,null,null,"経路　発行 [担当] → [社長] →[製造部長] →[経理] →[保存]　　",null,null,null,null,null,null,null,null,null,null,null,null,null,null,null,null,null,null,null,null,null,null,null,null,"株式会社　AAAAA"]
[]
[]
[]
[]
[null,null,null,null,null,"[形式001]",null,null,null,null,null,null,null," ",null,null,"受注内容変更届",null,null,null,null,null,null,null,null,null,null,"組立",null,null,null," "]
[null,null,null,null,null,null,null,null,null,null,"　"]
[]
[null,null,null,"使用方法¨管理規定標準書の本帳票記入要領参照","使用目的¨組立担当に変更内容を知らせる","コードNo",null,null,null,{"$f":"+J7","v":0},null,null,null," ",null,null,null,null," ",null,null,null," ",null,null,null,null,null,null,null,null,null,null,null,"帳票Ｎｏ.",null,null,1049]
[]
[null,null,null,null,null,"契約先",null,null,{"$f":"+I9","v":0}]
[]
[]
[null,null,null,null,null,"納入先",null,null,{"$f":"I12","v":0}]
[]
[]
[]
[null,null,null,null,null,"機種    型式",null,null,{"$f":"+I16","v":0},null,null,null,null,null,null,null,null,null,null,null,null,null,null,null,"機　番",null,null,null,null,null,"　台　数",null,null,null,"販売価格"]
[null,null,null,null,null,null,null,null,null,null,null,null,null,null,null,null,null,null,null,null,null,null,null,null,{"$f":"+Y17","v":0},null,null,null,null,null,1,null,null,null," "]
[]
[null,null,null,null,null,"　",null,null,"　",null,null,null,null,null,null,null,null,null,null,null,null,null,null,null,null,null,null,null,null,null,"　運賃",null,null,null," ",null,null,null,null,null,"　"]
[null,null,null,null,null,null,"価格変更",null,null,null,null,{"$f":"+L20","v":"●"},null,null,null,"仕様変更",null,null,null,null,{"$f":"+U20","v":""},null,null,null,null,"納期（現在）"]
[null,null,null,null,null,null,null,null,null,null,null,null,null,null,null,null,null,null,null,null,null,null,null,null,null,null,null,null,null,null," 取 付 費",null,null,null,{"$f":"+AI21","v":""}]
[null,null,null,null,null,null,"納期変更",null,null,null,null,{"$f":"+L22","v":""},null,null,null,"受注取消",null,null,null,null,{"$f":"+U22","v":""}]
[null,null,null,null,null," ",null,"　",null,null,null,null,null,"　",null,null,null,null,"　",null,null,null,null,null,null,{"$f":"+Z23","v":"00:00:00"},null,null,null,null,"　合　計",null,null,null," "]
[null,null,null,null,null,"変更内容",null,null,null,{"$f":"+J24","v":""}]
[null,null,null,null,null,null,null,null,null,null,null,null,null,null,null,null,null,null,null,null,null,null,null,null,null,null,null,null,null,null,"　",null,null,null,"　"]
[null,null,null,null,null,{"$f":"+F26","v":0},null,null,null,null,null,null,null,null,null,null,null,null,null,null,null,null,null,null,null,"　"]
[null,null,null,null,null,null,null,null,null,null,null,null,null,null,null,null,null,null,null,null,null,null,null,null,null,"変更納期"]
[null,null,null,null,null,{"$f":"+F28","v":0}]
[null,null,null,null,null,null,null,null,null,null,null,null,null,null,null,null,null,null,null,null,null,null,null,null,null,{"$f":"+Z67","v":""},null,null,null,null,null,null,null,null,"　",null,null,"　"]
[null,null,null,null,null,{"$f":"+F30","v":0},null,null,null,null,null,null,null,null,null,null,null,null,null,null,null,null,null,null,null,null,null,null,null,null,null,null,null,null,"　",null,null,"　"]
[]
[null,null,null,null,null,{"$f":"+F32","v":0},null,null,null,null,null,null,null,null,null,null,null,null,null,null,null,null,null,null,null,null,null,"承認",null,null,null,"点検",null,null,null,"作成"]
[]
[null,null,null,null,null,{"$f":"+F34","v":0},null,null,null,null,null,null,null,null,null,null,null,null,null,null,null,null,null,null,null,null,null,null,null,null,null,null,null,null,null,{"$f":"+AJ34","v":"2020-06-10"}]
[null,null,null,null,null,null,null,null,null,null,null,null,null,null,null,null,null,null,null,null,null,null,null,null,null,null,null,null,null,null,null,null,null,null,null,null,{"$f":"+AK35","v":"井上"}]
[]
[]
[null,null,null,null,null,"経路　発行 [担当] → [社長] →[製造部長] →[設計] →[保存]　　",null,null,null,null,null,null,null,null,null,null,null,null,null,null,null,null,null,null,null,null,null,null,null,null,"株式会社　AAAAA"]

{"sheet":"日付取得","index":12,"n_rows":1,"n_cols":2,"rows_kept":1,"cut":false,"hidden":false,"merged":[]}
[2019,5]